Transaction Number,Service - Fund ,Service  - Function ,Service - Cost Centre,Expense Type ,Expense Description,Supplier Name,Supplier Post Code (first 4 digits),Payment Date,Amount �
14859233,Human Resources and Organisational Development,"People, Culture and Organisational Resilience",Human Resources & Organisational Development,Employees,Training, N A P P I (UK) LIMITED,YO12,06/04/2022,"2,650.00"
16868233,Physical Support,Adults,Physical Support 65 and over,3rd Party Payments,Personal Budget - Domiciliary care,247 HOME CARE LTD,SN5 ,13/04/2022,"1,115.09"
15120233,School Transport,Inclusion and Achievement,Mainstream School Transport,Transport Costs,Home to School Transport,4K TRAVEL,SN2 ,06/04/2022,"2,483.33"
15116234,School Transport,Inclusion and Achievement,Mainstream School Transport,Transport Costs,Home to School Transport,4K TRAVEL,SN2 ,06/04/2022,"4,015.33"
14186233,School Transport,Inclusion and Achievement,Special Educational Needs Transport,Employees,Temporary / Agency - by Accounts Payable,4K TRAVEL,SN2 ,01/04/2022,950.00
14187233,School Transport,Inclusion and Achievement,Mainstream School Transport,Transport Costs,Home to School Transport,4K TRAVEL,SN2 ,01/04/2022,"4,015.33"
17699233,Highways & Transport,Highways & Transport,Highway Network Management,Supplies and Services,Equipment,4K TRAVEL,SN2 ,20/04/2022,"4,050.00"
15921233,Highways & Transport,Highways & Transport,Traffic Signalling,Premises Costs,Permanent Fixtures and Fittings,4WAY CONSULTING LTD,SK4 ,08/04/2022,"3,250.10"
18174233,Property Service Charged Properties,Property,Service Charged - Carriageworks,Premises Costs,Waste,707 LTD T/A CLICK WASTE,NG24,22/04/2022,"1,716.32"
15149233,Customer Strategy & Operations,Customer Strategy & Operations,Cemeteries & Crematoria,Premises Costs,Maintenance - Grounds,A J STONE CEMETERY SERVICES,SN4 ,06/04/2022,800.00
18228233,Homelessness and Travellers,Housing Services,Leased Private Managed Accommodation,Transfer Payments,Payment of Costs,REDACTED PERSONAL DATA,SN3 ,25/04/2022,755.00
18239233,Homelessness and Travellers,Housing Services,Leased Private Managed Accommodation,Transfer Payments,Payment of Costs,REDACTED PERSONAL DATA,SN3 ,25/04/2022,755.00
16156233,Sheltered Accomodation,Special Services,Lilian Lock Gardens,Premises Costs,Contract Cleaning,AAFD SERVICES LTD,SO14,11/04/2022,100.00
16156233,Sheltered Accomodation,Special Services,Middi Haines Court,Premises Costs,Contract Cleaning,AAFD SERVICES LTD,SO14,11/04/2022,75.00
16156233,Sheltered Accomodation,Special Services,Charles MacPherson Gardens,Premises Costs,Contract Cleaning,AAFD SERVICES LTD,SO14,11/04/2022,75.00
16156233,Facilities Management,"People, Culture and Organisational Resilience",Office Accommodation,Premises Costs,Contract Cleaning,AAFD SERVICES LTD,SO14,11/04/2022,"1,125.00"
16156233,Supported Employment,Housing Services,Enterprise Works,Premises Costs,Contract Cleaning,AAFD SERVICES LTD,SO14,11/04/2022,88.00
16156233,Sheltered Accomodation,Special Services,Espringham House,Premises Costs,Contract Cleaning,AAFD SERVICES LTD,SO14,11/04/2022,100.00
16156233,Sheltered Accomodation,Special Services,Chilton Gardens,Premises Costs,Contract Cleaning,AAFD SERVICES LTD,SO14,11/04/2022,75.00
16156233,Multistorey Properties,Special Services,Townsend House,Premises Costs,Contract Cleaning,AAFD SERVICES LTD,SO14,11/04/2022,168.00
16156233,Public Protection,Regulatory Services,Public Health Communities,Supplies and Services,Materials,AAFD SERVICES LTD,SO14,11/04/2022,150.00
16156233,Sheltered Accomodation,Special Services,Alfred Bown Court,Premises Costs,Contract Cleaning,AAFD SERVICES LTD,SO14,11/04/2022,75.00
16156233,Sheltered Accomodation,Special Services,Hastings Court,Premises Costs,Contract Cleaning,AAFD SERVICES LTD,SO14,11/04/2022,75.00
16156233,Sheltered Accomodation,Special Services,Bob May Court,Premises Costs,Contract Cleaning,AAFD SERVICES LTD,SO14,11/04/2022,75.00
16156233,Sheltered Accomodation,Special Services,Mervyn Webb Place,Premises Costs,Contract Cleaning,AAFD SERVICES LTD,SO14,11/04/2022,75.00
16485233,Early Years Block,DSG Skills and Attainment,Free Nursery Education Commissioning - three & four  year olds,3rd Party Payments,Contracts - Child Care,ABBEY MEADS COMMUNITY PRIMARY SCHOOL,SN25,11/04/2022,"11,273.04"
17745233,High Needs Block,DSG Skills and Attainment,SEN Resourcing Assessment Panel,3rd Party Payments,Top up funding - Academies and Free Schools Pre 16,ABBEY MEADS COMMUNITY PRIMARY SCHOOL,SN25,20/04/2022,"7,558.08"
16380234,Property Management,Property,Property Assets,Supplies and Services,Discretionary Costs,ABBEY SCAFFOLDING LTD,SN4 ,11/04/2022,450.00
15285233,Physical Support,Adults,Physical Support 18 - 64,3rd Party Payments,Personal Budget - Domiciliary care,ABICARE SERVICES LTD,BS32,06/04/2022,543.53
16896233,Physical Support,Adults,Physical Support 18 - 64,3rd Party Payments,Personal Budget - Domiciliary care,ABICARE SERVICES LTD,BS32,13/04/2022,543.53
18047234,Physical Support,Adults,Physical Support 18 - 64,3rd Party Payments,Personal Budget - Domiciliary care,ABICARE SERVICES LTD,BS32,20/04/2022,543.53
19182244,Physical Support,Adults,Physical Support 18 - 64,3rd Party Payments,Personal Budget - Domiciliary care,ABICARE SERVICES LTD,BS32,27/04/2022,568.73
18049236,Memory & Cognition,Adults,Support for Memory and Cognition 65 and over,3rd Party Payments,Personal Budget - Domiciliary care,ABICARE SERVICES LTD (LIVE IN),SP2 ,20/04/2022,"1,027.00"
16900233,Memory & Cognition,Adults,Support for Memory and Cognition 65 and over,3rd Party Payments,Personal Budget - Domiciliary care,ABICARE SERVICES LTD (LIVE IN),SP2 ,13/04/2022,"1,106.00"
18049234,Physical Support,Adults,Physical Support 18 - 64,3rd Party Payments,Personal Budget - Domiciliary care,ABICARE SERVICES LTD (LIVE IN),SP2 ,20/04/2022,988.68
19184233,Mental Health,Adults,Mental Health 65 and over,3rd Party Payments,Personal Budget - Domiciliary care,ABICARE SERVICES LTD (LIVE IN),SP2 ,27/04/2022,988.68
19183233,Mental Health,Adults,Mental Health 65 and over,3rd Party Payments,Personal Budget - Domiciliary care,ABICARE SERVICES LTD (LIVE IN),SP2 ,27/04/2022,"1,106.00"
19182246,Physical Support,Adults,Physical Support 18 - 64,3rd Party Payments,Personal Budget - Domiciliary care,ABICARE SERVICES LTD (LIVE IN),SP2 ,27/04/2022,988.68
16901233,Mental Health,Adults,Mental Health 65 and over,3rd Party Payments,Personal Budget - Domiciliary care,ABICARE SERVICES LTD (LIVE IN),SP2 ,13/04/2022,"1,106.00"
16899233,Physical Support,Adults,Physical Support 18 - 64,3rd Party Payments,Personal Budget - Domiciliary care,ABICARE SERVICES LTD (LIVE IN),SP2 ,13/04/2022,988.68
19182247,Memory & Cognition,Adults,Support for Memory and Cognition 65 and over,3rd Party Payments,Personal Budget - Domiciliary care,ABICARE SERVICES LTD (LIVE IN),SP2 ,27/04/2022,"1,106.00"
16898233,Mental Health,Adults,Mental Health 65 and over,3rd Party Payments,Personal Budget - Domiciliary care,ABICARE SERVICES LTD (LIVE IN),SP2 ,13/04/2022,988.68
15288237,Mental Health,Adults,Mental Health 65 and over,3rd Party Payments,Personal Budget - Domiciliary care,ABICARE SERVICES LTD (LIVE IN),SP2 ,06/04/2022,988.68
15288239,Mental Health,Adults,Mental Health 65 and over,3rd Party Payments,Personal Budget - Domiciliary care,ABICARE SERVICES LTD (LIVE IN),SP2 ,06/04/2022,"1,106.00"
18049237,Mental Health,Adults,Mental Health 65 and over,3rd Party Payments,Personal Budget - Domiciliary care,ABICARE SERVICES LTD (LIVE IN),SP2 ,20/04/2022,"1,106.00"
18049233,Mental Health,Adults,Mental Health 65 and over,3rd Party Payments,Personal Budget - Domiciliary care,ABICARE SERVICES LTD (LIVE IN),SP2 ,20/04/2022,988.68
15288238,Memory & Cognition,Adults,Support for Memory and Cognition 65 and over,3rd Party Payments,Personal Budget - Domiciliary care,ABICARE SERVICES LTD (LIVE IN),SP2 ,06/04/2022,"1,106.00"
15288240,Physical Support,Adults,Physical Support 18 - 64,3rd Party Payments,Personal Budget - Domiciliary care,ABICARE SERVICES LTD (LIVE IN),SP2 ,06/04/2022,988.68
17659233,Social Care,"Children, Families and Community Health Services",Placement - Care Leaver Team,3rd Party Payments,Supported Living,ABILITY SUPPORTED LIVING LTD,GL6 ,20/04/2022,"1,107.14"
16025233,Care Management & Safeguarding,Adults,Local Safeguarding Board,Supplies and Services,Fees,ABLE TRAINING AND CONSULTANCY (LINDA COBB),TN25,08/04/2022,550.00
20211233,Streetsmart,Streetsmart,Waterside Fleet Hires,Transport Costs,Vehicle Hire / Contract,ACCESS HIRE NATIONWIDE,WF6 ,29/04/2022,"1,401.43"
20212233,Streetsmart,Streetsmart,Waterside Fleet Hires,Transport Costs,Vehicle Hire / Contract,ACCESS HIRE NATIONWIDE,WF6 ,29/04/2022,"1,414.29"
15497233,Streetsmart,Streetsmart,Waterside Fleet Hires,Transport Costs,Vehicle Hire / Contract,ACCESS HIRE NATIONWIDE,WF6 ,06/04/2022,"1,461.43"
20212234,Streetsmart,Streetsmart,Waterside Fleet Hires,Transport Costs,Vehicle Hire / Contract,ACCESS HIRE NATIONWIDE,WF6 ,29/04/2022,"1,264.29"
18438239,Physical Support,Adults,Physical Support 18 - 64,3rd Party Payments,Residential Care,ACCOMPLISH,B45 ,22/04/2022,"5,573.04"
18438239,Physical Support,Adults,Physical Support 18 - 64,Income,Client Contribution - Residential,ACCOMPLISH,B45 ,22/04/2022,-414.20
17173233,Social Care,"Children, Families and Community Health Services",External Placements,3rd Party Payments,Independent Fostering Agency Placements,ACTION FOR CHILDREN,WD18,13/04/2022,"3,660.17"
17174233,Social Care,"Children, Families and Community Health Services",External Placements,3rd Party Payments,Independent Fostering Agency Placements,ACTION FOR CHILDREN,WD18,13/04/2022,"3,660.17"
17765235,High Needs Block,DSG Skills and Attainment,SEN Resourcing Assessment Panel,3rd Party Payments,Top up funding - Academies and Free Schools Post 16,ACTIVATE LEARNING EDUCATION TRUST,OX1 ,20/04/2022,"2,372.83"
19587233,Social Care,"Children, Families and Community Health Services",External Placements,3rd Party Payments,Independent Fostering Agency Placements,ACTIVE CARE SOLUTIONS LTD,B60 ,29/04/2022,"6,188.40"
19589233,Social Care,"Children, Families and Community Health Services",External Placements,3rd Party Payments,Independent Fostering Agency Placements,ACTIVE CARE SOLUTIONS LTD,B60 ,29/04/2022,"3,256.80"
19588233,Social Care,"Children, Families and Community Health Services",External Placements,3rd Party Payments,Independent Fostering Agency Placements,ACTIVE CARE SOLUTIONS LTD,B60 ,29/04/2022,"3,171.30"
20081233,Learning Disabilities,Adults,Learning Disability 26 - 64,Transfer Payments,Personal Budget - Direct Payments - Domiciliary Care,REDACTED PERSONAL DATA,SN4 ,29/04/2022,"1,146.29"
20105716,Learning Disabilities,Adults,Learning Disability 26 - 64,Transfer Payments,Personal Budget - Direct Payments - Domiciliary Care,REDACTED PERSONAL DATA,SN3 ,29/04/2022,"2,026.16"
18243234,Homelessness and Travellers,Housing Services,Leased Private Managed Accommodation,Transfer Payments,Payment of Costs,ADVANCE HOUSING & SUPPORT LTD,OX28,25/04/2022,"1,074.00"
19014233,Social Care,"Children, Families and Community Health Services",CP & CIN Social Work - South,3rd Party Payments,Supported Living,AGILE QUARTER ACCOMMODATION LTD,EC1V,27/04/2022,"2,000.00"
15680233,School Transport,Inclusion and Achievement,Special Educational Needs Transport,Transport Costs,Home to School Transport,AKCESS LTD,SN2 ,08/04/2022,"2,990.00"
15634233,School Transport,Inclusion and Achievement,Special Educational Needs Transport,Transport Costs,Home to School Transport,AKCESS LTD,SN2 ,08/04/2022,"92,589.19"
15650233,Physical Support,Adults,Physical Support 65 and over,Transport Costs,Home to Centre Transport,AKCESS LTD,SN2 ,08/04/2022,"5,208.33"
17392233,Travel,Highways & Transport,Public Transport,3rd Party Payments,Contract Payments,AKCESS LTD,SN2 ,20/04/2022,"14,680.14"
15682233,School Transport,Inclusion and Achievement,Special Educational Needs Transport,Transport Costs,Home to School Transport,AKCESS LTD,SN2 ,08/04/2022,"17,690.83"
15634233,School Transport,Inclusion and Achievement,Mainstream School Transport,Transport Costs,Home to School Transport,AKCESS LTD,SN2 ,08/04/2022,"1,889.58"
15650233,Learning Disabilities,Adults,Learning Disability 26 - 64,Transport Costs,Home to Centre Transport,AKCESS LTD,SN2 ,08/04/2022,"5,208.33"
15695233,School Transport,Inclusion and Achievement,Special Educational Needs Transport,Employees,Temporary / Agency - by Accounts Payable,AKCESS LTD,SN2 ,08/04/2022,"2,905.00"
15692233,School Transport,Inclusion and Achievement,Special Educational Needs Transport,Employees,Temporary / Agency - by Accounts Payable,AKCESS LTD,SN2 ,08/04/2022,"1,058.00"
15681233,School Transport,Inclusion and Achievement,Special Educational Needs Transport,Transport Costs,Home to School Transport,AKCESS LTD,SN2 ,08/04/2022,"63,666.67"
15633233,School Transport,Inclusion and Achievement,Special Educational Needs Transport,Employees,Temporary / Agency - by Accounts Payable,AKCESS LTD,SN2 ,08/04/2022,"5,795.00"
15650233,Physical Support,Adults,Physical Support 65 and over,Transport Costs,Home to Centre Transport,AKCESS LTD,SN2 ,08/04/2022,"2,604.17"
15650233,Physical Support,Adults,Physical Support 65 and over,Transport Costs,Home to Centre Transport,AKCESS LTD,SN2 ,08/04/2022,"5,208.33"
15650233,Learning Disabilities,Adults,Learning Disability 26 - 64,Transport Costs,Home to Centre Transport,AKCESS LTD,SN2 ,08/04/2022,"18,229.17"
16028233,Town Centre,"Economy, Growth and Place","No 7, 9 & 11 Carriage works @ Railway Village",Capital,Consultants,ALAN BAXTER LIMITED,EC1M,08/04/2022,"2,450.00"
14588233,Senior Management Team,"Children, Families and Community Health Services",Family Safeguarding Model,Supplies and Services,Services,ALASDAIR CANT & ASSOCIATES LIMITED,CB2 ,01/04/2022,"19,300.00"
18731233,Social Care,"Children, Families and Community Health Services",Placement Fostering Service,3rd Party Payments,Carers Skills Payments - Core,REDACTED PERSONAL DATA,SN4 ,25/04/2022,66.29
18731233,Social Care,"Children, Families and Community Health Services",Placement Fostering Service,3rd Party Payments,Carers Skills Payments - Core,REDACTED PERSONAL DATA,SN4 ,25/04/2022,116.00
18731233,Social Care,"Children, Families and Community Health Services",Placement Fostering Service,3rd Party Payments,Foster Care Basic Payments,REDACTED PERSONAL DATA,SN4 ,25/04/2022,520.20
16178233,Social Care,"Children, Families and Community Health Services",Placement Fostering Service,3rd Party Payments,Foster Care Basic Payments,REDACTED PERSONAL DATA,SN4 ,11/04/2022,520.20
17315233,Learning Disabilities,Adults,Learning Disability 26 - 64,3rd Party Payments,Supported Accommodation Scheme,REDACTED PERSONAL DATA,SN2 ,20/04/2022,"2,598.38"
20105751,Learning Disabilities,Adults,Learning Disability 26 - 64,Transfer Payments,Personal Budget - Direct Payments - Domiciliary Care,REDACTED PERSONAL DATA,SN25,29/04/2022,973.45
16571259,Early Years Block,DSG Skills and Attainment,Free Nursery Education Commissioning - three & four  year olds,3rd Party Payments,Contracts - Child Care,ALFRESCO CHILDCARE,SN6 ,11/04/2022,"24,034.39"
16571260,Early Years Block,DSG Skills and Attainment,Free Nursery Education Commissioning - two year olds,3rd Party Payments,Contracts - Child Care,ALFRESCO CHILDCARE,SN6 ,11/04/2022,"1,417.40"
17351233,Learning Disabilities,Adults,Learning Disability 26 - 64,3rd Party Payments,Supported Accommodation Scheme,REDACTED PERSONAL DATA,SN1 ,20/04/2022,"2,598.38"
19308233,School Transport,Inclusion and Achievement,Special Educational Needs Transport,Transport Costs,Home to School Transport,REDACTED PERSONAL DATA,SN5 ,27/04/2022,528.55
17352233,Learning Disabilities,Adults,Learning Disability 26 - 64,3rd Party Payments,Supported Accommodation Scheme,REDACTED PERSONAL DATA,SN2 ,20/04/2022,"1,820.63"
17352233,Learning Disabilities,Adults,Learning Disability 26 - 64,3rd Party Payments,Supported Accommodation Scheme,REDACTED PERSONAL DATA,SN2 ,20/04/2022,"1,762.00"
17352233,Learning Disabilities,Adults,Learning Disability 26 - 64,3rd Party Payments,Supported Accommodation Scheme,REDACTED PERSONAL DATA,SN2 ,20/04/2022,"2,110.04"
20088233,Learning Disabilities,Adults,Learning Disability 26 - 64,Transfer Payments,Personal Budget - Direct Payments - Domiciliary Care,REDACTED PERSONAL DATA,SN5 ,29/04/2022,"8,839.97"
18597233,Social Care,"Children, Families and Community Health Services",Legal Fees,Supplies and Services,Fees,REDACTED PERSONAL DATA,GL7 ,25/04/2022,"1,495.04"
16571263,Early Years Block,DSG Skills and Attainment,Free Nursery Education Commissioning - three & four  year olds,3rd Party Payments,Contracts - Child Care,REDACTED PERSONAL DATA,SN25,11/04/2022,"2,297.36"
16490233,Early Years Block,DSG Skills and Attainment,Free Nursery Education Commissioning - three & four  year olds,3rd Party Payments,Contracts - Child Care,REDACTED PERSONAL DATA,SN1 ,11/04/2022,708.76
16491233,Early Years Block,DSG Skills and Attainment,Free Nursery Education Commissioning - three & four  year olds,3rd Party Payments,Contracts - Child Care,REDACTED PERSONAL DATA,SN1 ,11/04/2022,857.89
20105551,Learning Disabilities,Adults,Learning Disability 26 - 64,Transfer Payments,Personal Budget - Direct Payments - Domiciliary Care,REDACTED PERSONAL DATA,SN4 ,29/04/2022,"3,427.95"
15254233,Streetsmart,Streetsmart,Waterside Fleet Workshops,Supplies and Services,Equipment,ALLIANCE AUTOMOTIVE UK T/A BRAYMARC,BD4 ,06/04/2022,150.00
15254233,Streetsmart,Streetsmart,Waterside Fleet Workshops,Supplies and Services,Equipment,ALLIANCE AUTOMOTIVE UK T/A BRAYMARC,BD4 ,06/04/2022,946.26
16183233,Treasury,Corporate Finance,Treasury,Supplies and Services,Bank Charges,ALLPAY-NET LIMITED,HR1 ,11/04/2022,546.96
17703233,Landlord Services,Supervision & Management,Estate Management Team,Supplies and Services,Contracts,ALLPAY-NET LIMITED,HR1 ,20/04/2022,"1,928.25"
16140233,Treasury,Corporate Finance,Treasury,Supplies and Services,Bank Charges,ALLPAY-NET LIMITED,HR1 ,11/04/2022,952.87
16666233,Town Centre,"Economy, Growth and Place",Kimmerfields enabling works,Capital,Professional Fees,ALPHA HIGHWAY CONSULTANTS LIMITED,SG5 ,13/04/2022,"1,745.00"
16571264,Early Years Block,DSG Skills and Attainment,Free Nursery Education Commissioning - three & four  year olds,3rd Party Payments,Contracts - Child Care,ALPHA PRE-SCHOOL,SN5 ,11/04/2022,"5,794.43"
16571265,Early Years Block,DSG Skills and Attainment,Free Nursery Education Commissioning - two year olds,3rd Party Payments,Contracts - Child Care,ALPHA PRE-SCHOOL,SN5 ,11/04/2022,"5,166.72"
18503233,Social Care,"Children, Families and Community Health Services",Legal Fees,Supplies and Services,Fees,ALPHABIOLABS,WA5 ,22/04/2022,"1,189.00"
18501233,Social Care,"Children, Families and Community Health Services",Legal Fees,Supplies and Services,Fees,ALPHABIOLABS,WA5 ,22/04/2022,734.00
18502233,Social Care,"Children, Families and Community Health Services",Legal Fees,Supplies and Services,Fees,ALPHABIOLABS,WA5 ,22/04/2022,"1,189.00"
15689233,Social Care,"Children, Families and Community Health Services",Legal Fees,Supplies and Services,Fees,ALPHABIOLABS,WA5 ,08/04/2022,560.00
15712233,Parking & Bus lanes,Highway Operations and Car Parking,Car Parking,Supplies and Services,Materials,ALSOPRINT LIMITED,CR0 ,08/04/2022,"1,850.00"
15026233,Highways Schemes,Strategic Planning and Highways,Wichelstowe Southern Access,Capital,Contractor Payments,ALUN GRIFFITHS (CONTRACTORS ) LTD,NP7 ,06/04/2022,"257,695.03"
19868233,Highways Schemes,Strategic Planning and Highways,Wichelstowe Southern Access,Capital,Contractor Payments,ALUN GRIFFITHS (CONTRACTORS ) LTD,NP7 ,29/04/2022,"771,088.91"
16571268,Early Years Block,DSG Skills and Attainment,Free Nursery Education Commissioning - three & four  year olds,3rd Party Payments,Contracts - Child Care,REDACTED PERSONAL DATA,SN2 ,11/04/2022,586.56
18529234,Disabled Children,"Children, Families and Community Health Services",DCT Daytime Short Breaks,Transfer Payments,Personal Budget - Direct Payments - Other,REDACTED PERSONAL DATA,SN4 ,25/04/2022,"2,569.00"
18529235,Disabled Children,"Children, Families and Community Health Services",Aiming High for Disabled Children,3rd Party Payments,Cash Support,REDACTED PERSONAL DATA,SN4 ,25/04/2022,576.00
14395233,Highways & Transport,Highways & Transport,Project Delivery,Supplies and Services,Services,AMEY OW LTD,L19 ,01/04/2022,"95,022.80"
19246233,Highways & Transport,Highways & Transport,Project Delivery,Supplies and Services,Services,AMEY OW LTD,L19 ,27/04/2022,"48,129.18"
18535233,Disabled Children,"Children, Families and Community Health Services",DCT Daytime Short Breaks,Transfer Payments,Personal Budget - Direct Payments - Other,REDACTED PERSONAL DATA,SN3 ,25/04/2022,"4,082.00"
20105294,Mental Health,Adults,Mental Health 18-64,Transfer Payments,Personal Budget - Direct Payments - Domiciliary Care,REDACTED PERSONAL DATA,SN25,29/04/2022,555.51
18533233,Disabled Children,"Children, Families and Community Health Services",DCT Daytime Short Breaks,Transfer Payments,Personal Budget - Direct Payments - Other,REDACTED PERSONAL DATA,SN3 ,25/04/2022,"1,251.00"
16497233,Early Years Block,DSG Skills and Attainment,Free Nursery Education Commissioning - three & four  year olds,3rd Party Payments,Contracts - Child Care,REDACTED PERSONAL DATA,SN25,11/04/2022,916.50
16571269,Early Years Block,DSG Skills and Attainment,Free Nursery Education Commissioning - three & four  year olds,3rd Party Payments,Contracts - Child Care,REDACTED PERSONAL DATA,SN3 ,11/04/2022,"2,570.88"
15719233,Social Care,"Children, Families and Community Health Services",Legal Fees,Supplies and Services,Fees,REDACTED PERSONAL DATA,EC4Y,08/04/2022,800.00
18493233,Social Care,"Children, Families and Community Health Services",Legal Fees,Supplies and Services,Fees,REDACTED PERSONAL DATA,EC4Y,22/04/2022,800.00
18386234,Social Care,"Children, Families and Community Health Services",Legal Fees,Supplies and Services,Fees,REDACTED PERSONAL DATA,EC4Y,22/04/2022,800.00
18386234,Social Care,"Children, Families and Community Health Services",Legal Fees,Supplies and Services,Fees,REDACTED PERSONAL DATA,EC4Y,22/04/2022,"2,000.00"
18493233,Social Care,"Children, Families and Community Health Services",Legal Fees,Supplies and Services,Fees,REDACTED PERSONAL DATA,EC4Y,22/04/2022,250.00
15718233,Social Care,"Children, Families and Community Health Services",Legal Fees,Supplies and Services,Fees,REDACTED PERSONAL DATA,EC4Y,08/04/2022,800.00
18386234,Social Care,"Children, Families and Community Health Services",Legal Fees,Supplies and Services,Fees,REDACTED PERSONAL DATA,EC4Y,22/04/2022,"1,000.00"
18386234,Social Care,"Children, Families and Community Health Services",Legal Fees,Supplies and Services,Fees,REDACTED PERSONAL DATA,EC4Y,22/04/2022,250.00
18196238,Homelessness and Travellers,Housing Services,Leased Private Managed Accommodation,Transfer Payments,Payment of Costs,REDACTED PERSONAL DATA,SN26,25/04/2022,675.00
16870233,Social Care,"Children, Families and Community Health Services",CP & CIN Social Work - North,Employees,Recruitment,ANDY SEDGWICK CONSULTING LTD,HP10,13/04/2022,"45,000.00"
16571505,Early Years Block,DSG Skills and Attainment,Free Nursery Education Commissioning - three & four  year olds,3rd Party Payments,Contracts - Child Care,REDACTED PERSONAL DATA,SN25,11/04/2022,582.57
16571503,Early Years Block,DSG Skills and Attainment,Free Nursery Education Commissioning - three & four  year olds,3rd Party Payments,Contracts - Child Care,REDACTED PERSONAL DATA,SN25,11/04/2022,"78,326.50"
16571504,Early Years Block,DSG Skills and Attainment,Free Nursery Education Commissioning - two year olds,3rd Party Payments,Contracts - Child Care,REDACTED PERSONAL DATA,SN25,11/04/2022,"12,055.68"
18241233,Homelessness and Travellers,Housing Services,Leased Private Managed Accommodation,Transfer Payments,Payment of Costs,ANGELVIEW PROPERTIES LTD,ALBO,25/04/2022,548.45
18241234,Homelessness and Travellers,Housing Services,Leased Private Managed Accommodation,Transfer Payments,Payment of Costs,ANGELVIEW PROPERTIES LTD,ALBO,25/04/2022,548.51
16466234,Planned Maintenance Programme,HRA Capital Financing,Windows,Capital,Contractor Payments,ANGLIAN BUILDING PRODUCTS LIMITED,NR6 ,11/04/2022,"1,713.69"
18965233,Planned Maintenance Programme,HRA Capital Financing,Windows,Capital,Contractor Payments,ANGLIAN BUILDING PRODUCTS LIMITED,NR6 ,27/04/2022,"1,152.28"
18965233,Planned Maintenance Programme,HRA Capital Financing,Windows,Capital,Contractor Payments,ANGLIAN BUILDING PRODUCTS LIMITED,NR6 ,27/04/2022,"2,121.02"
18965233,Planned Maintenance Programme,HRA Capital Financing,Windows,Capital,Contractor Payments,ANGLIAN BUILDING PRODUCTS LIMITED,NR6 ,27/04/2022,"1,766.84"
18965233,Planned Maintenance Programme,HRA Capital Financing,Windows,Capital,Contractor Payments,ANGLIAN BUILDING PRODUCTS LIMITED,NR6 ,27/04/2022,"1,704.31"
18965233,Planned Maintenance Programme,HRA Capital Financing,Windows,Capital,Contractor Payments,ANGLIAN BUILDING PRODUCTS LIMITED,NR6 ,27/04/2022,"2,129.10"
18965233,Planned Maintenance Programme,HRA Capital Financing,Windows,Capital,Contractor Payments,ANGLIAN BUILDING PRODUCTS LIMITED,NR6 ,27/04/2022,"2,454.43"
18965233,Planned Maintenance Programme,HRA Capital Financing,Windows,Capital,Contractor Payments,ANGLIAN BUILDING PRODUCTS LIMITED,NR6 ,27/04/2022,"1,730.70"
18965233,Planned Maintenance Programme,HRA Capital Financing,Windows,Capital,Contractor Payments,ANGLIAN BUILDING PRODUCTS LIMITED,NR6 ,27/04/2022,"1,320.25"
16466234,Planned Maintenance Programme,HRA Capital Financing,Windows,Capital,Contractor Payments,ANGLIAN BUILDING PRODUCTS LIMITED,NR6 ,11/04/2022,"1,794.05"
18965233,Planned Maintenance Programme,HRA Capital Financing,Windows,Capital,Contractor Payments,ANGLIAN BUILDING PRODUCTS LIMITED,NR6 ,27/04/2022,"2,808.87"
18965233,Planned Maintenance Programme,HRA Capital Financing,Windows,Capital,Contractor Payments,ANGLIAN BUILDING PRODUCTS LIMITED,NR6 ,27/04/2022,"1,734.12"
18965233,Planned Maintenance Programme,HRA Capital Financing,Windows,Capital,Contractor Payments,ANGLIAN BUILDING PRODUCTS LIMITED,NR6 ,27/04/2022,"1,461.65"
18965233,Planned Maintenance Programme,HRA Capital Financing,Windows,Capital,Contractor Payments,ANGLIAN BUILDING PRODUCTS LIMITED,NR6 ,27/04/2022,"1,152.80"
16466234,Planned Maintenance Programme,HRA Capital Financing,Windows,Capital,Contractor Payments,ANGLIAN BUILDING PRODUCTS LIMITED,NR6 ,11/04/2022,640.88
16466234,Planned Maintenance Programme,HRA Capital Financing,Windows,Capital,Contractor Payments,ANGLIAN BUILDING PRODUCTS LIMITED,NR6 ,11/04/2022,378.29
16466234,Planned Maintenance Programme,HRA Capital Financing,Windows,Capital,Contractor Payments,ANGLIAN BUILDING PRODUCTS LIMITED,NR6 ,11/04/2022,"1,779.55"
16466234,Planned Maintenance Programme,HRA Capital Financing,Windows,Capital,Contractor Payments,ANGLIAN BUILDING PRODUCTS LIMITED,NR6 ,11/04/2022,"1,914.04"
16466234,Planned Maintenance Programme,HRA Capital Financing,Windows,Capital,Contractor Payments,ANGLIAN BUILDING PRODUCTS LIMITED,NR6 ,11/04/2022,"1,805.82"
16466234,Planned Maintenance Programme,HRA Capital Financing,Windows,Capital,Contractor Payments,ANGLIAN BUILDING PRODUCTS LIMITED,NR6 ,11/04/2022,"2,016.20"
16466234,Planned Maintenance Programme,HRA Capital Financing,Windows,Capital,Contractor Payments,ANGLIAN BUILDING PRODUCTS LIMITED,NR6 ,11/04/2022,608.39
18965233,Planned Maintenance Programme,HRA Capital Financing,Windows,Capital,Contractor Payments,ANGLIAN BUILDING PRODUCTS LIMITED,NR6 ,27/04/2022,"2,408.58"
16466234,Planned Maintenance Programme,HRA Capital Financing,Windows,Capital,Contractor Payments,ANGLIAN BUILDING PRODUCTS LIMITED,NR6 ,11/04/2022,"1,783.74"
16466234,Planned Maintenance Programme,HRA Capital Financing,Windows,Capital,Contractor Payments,ANGLIAN BUILDING PRODUCTS LIMITED,NR6 ,11/04/2022,825.79
16466234,Planned Maintenance Programme,HRA Capital Financing,Windows,Capital,Contractor Payments,ANGLIAN BUILDING PRODUCTS LIMITED,NR6 ,11/04/2022,"1,933.44"
18965233,Planned Maintenance Programme,HRA Capital Financing,Windows,Capital,Contractor Payments,ANGLIAN BUILDING PRODUCTS LIMITED,NR6 ,27/04/2022,839.65
18965233,Planned Maintenance Programme,HRA Capital Financing,Windows,Capital,Contractor Payments,ANGLIAN BUILDING PRODUCTS LIMITED,NR6 ,27/04/2022,"1,497.58"
18965233,Planned Maintenance Programme,HRA Capital Financing,Windows,Capital,Contractor Payments,ANGLIAN BUILDING PRODUCTS LIMITED,NR6 ,27/04/2022,"1,966.04"
18965233,Planned Maintenance Programme,HRA Capital Financing,Windows,Capital,Contractor Payments,ANGLIAN BUILDING PRODUCTS LIMITED,NR6 ,27/04/2022,"1,714.33"
18965233,Planned Maintenance Programme,HRA Capital Financing,Windows,Capital,Contractor Payments,ANGLIAN BUILDING PRODUCTS LIMITED,NR6 ,27/04/2022,"2,126.92"
18965233,Planned Maintenance Programme,HRA Capital Financing,Windows,Capital,Contractor Payments,ANGLIAN BUILDING PRODUCTS LIMITED,NR6 ,27/04/2022,"1,766.42"
18965233,Planned Maintenance Programme,HRA Capital Financing,Windows,Capital,Contractor Payments,ANGLIAN BUILDING PRODUCTS LIMITED,NR6 ,27/04/2022,"1,755.87"
18965233,Planned Maintenance Programme,HRA Capital Financing,Windows,Capital,Contractor Payments,ANGLIAN BUILDING PRODUCTS LIMITED,NR6 ,27/04/2022,"1,769.18"
16466234,Planned Maintenance Programme,HRA Capital Financing,Windows,Capital,Contractor Payments,ANGLIAN BUILDING PRODUCTS LIMITED,NR6 ,11/04/2022,"2,336.98"
16466234,Planned Maintenance Programme,HRA Capital Financing,Windows,Capital,Contractor Payments,ANGLIAN BUILDING PRODUCTS LIMITED,NR6 ,11/04/2022,683.36
16466234,Planned Maintenance Programme,HRA Capital Financing,Windows,Capital,Contractor Payments,ANGLIAN BUILDING PRODUCTS LIMITED,NR6 ,11/04/2022,"2,130.03"
16466234,Planned Maintenance Programme,HRA Capital Financing,Windows,Capital,Contractor Payments,ANGLIAN BUILDING PRODUCTS LIMITED,NR6 ,11/04/2022,"1,685.65"
18965233,Planned Maintenance Programme,HRA Capital Financing,Windows,Capital,Contractor Payments,ANGLIAN BUILDING PRODUCTS LIMITED,NR6 ,27/04/2022,640.88
18965233,Planned Maintenance Programme,HRA Capital Financing,Windows,Capital,Contractor Payments,ANGLIAN BUILDING PRODUCTS LIMITED,NR6 ,27/04/2022,"1,388.72"
18965233,Planned Maintenance Programme,HRA Capital Financing,Windows,Capital,Contractor Payments,ANGLIAN BUILDING PRODUCTS LIMITED,NR6 ,27/04/2022,"1,767.69"
18965233,Planned Maintenance Programme,HRA Capital Financing,Windows,Capital,Contractor Payments,ANGLIAN BUILDING PRODUCTS LIMITED,NR6 ,27/04/2022,"2,178.38"
18965233,Planned Maintenance Programme,HRA Capital Financing,Windows,Capital,Contractor Payments,ANGLIAN BUILDING PRODUCTS LIMITED,NR6 ,27/04/2022,"2,127.33"
18965233,Planned Maintenance Programme,HRA Capital Financing,Windows,Capital,Contractor Payments,ANGLIAN BUILDING PRODUCTS LIMITED,NR6 ,27/04/2022,"1,478.18"
18965233,Planned Maintenance Programme,HRA Capital Financing,Windows,Capital,Contractor Payments,ANGLIAN BUILDING PRODUCTS LIMITED,NR6 ,27/04/2022,"1,152.39"
20105720,Physical Support,Adults,Physical Support 18 - 64,Transfer Payments,Personal Budget - Direct Payments - Domiciliary Care,REDACTED PERSONAL DATA,SN25,29/04/2022,"2,385.10"
18060233,Early Help,"Children, Families and Community Health Services",On Trak Youth Counselling Service,3rd Party Payments,Contract Payments,REDACTED PERSONAL DATA,SN2 ,20/04/2022,540.00
Corporate Card Transaction,ASC Finance Services Teams,ASC Finance Services,ASC Money Management Team,Supplies and Services,Services,Ao Retail Limited,,29/03/2022,649.00
18143233,Supported Employment,Housing Services,Community Meals,Supplies and Services,Food,APETITO LIMITED,BA14,22/04/2022,884.32
18144233,Supported Employment,Housing Services,Community Meals,Supplies and Services,Food,APETITO LIMITED,BA14,22/04/2022,"1,003.71"
18470233,Supported Employment,Housing Services,Community Meals,Supplies and Services,Food,APETITO LIMITED,BA14,22/04/2022,911.43
18145233,Supported Employment,Housing Services,Community Meals,Supplies and Services,Food,APETITO LIMITED,BA14,22/04/2022,940.28
18758233,Responsive Repairs,Repairs,Responsive Repairs,3rd Party Payments,Contract Payments,APEX SCAFFOLDING SERVICES,SN2 ,25/04/2022,585.00
19256233,Responsive Repairs,Repairs,Responsive Repairs,Supplies and Services,Materials,APEX SCAFFOLDING SERVICES,SN2 ,27/04/2022,420.00
19254233,Responsive Repairs,Repairs,Responsive Repairs,Supplies and Services,Materials,APEX SCAFFOLDING SERVICES,SN2 ,27/04/2022,640.00
17064234,HRA Overheads,Supervision & Management,Admin / Management General,Supplies and Services,Post,APOGEE CORPORATION LIMITED,EC2A,13/04/2022,"5,258.25"
17937233,,,Balance Sheet,Balance Sheet & Recharge,Resources Recharges,APOGEE CORPORATION LIMITED,EC2A,20/04/2022,707.95
17066233,HRA Overheads,Supervision & Management,Admin / Management General,Supplies and Services,Post,APOGEE CORPORATION LIMITED,EC2A,13/04/2022,"3,106.42"
17937233,,,Balance Sheet,Balance Sheet & Recharge,Resources Recharges,APOGEE CORPORATION LIMITED,EC2A,20/04/2022,"4,040.63"
14207233,,,Balance Sheet,Balance Sheet & Recharge,MFD recharges,APOGEE CORPORATION LIMITED,ME16,01/04/2022,"10,234.56"
17938233,,,Balance Sheet,Balance Sheet & Recharge,Resources Recharges,APOGEE CORPORATION LIMITED,EC2A,20/04/2022,"13,773.11"
18430233,Learning Disabilities,Adults,Learning Disability 26 - 64,3rd Party Payments,Residential Care,APPLEFORD LTD T/A DANESWOOD,BS25,22/04/2022,"19,174.68"
18430233,Learning Disabilities,Adults,Learning Disability 26 - 64,Income,Client Contribution - Residential,APPLEFORD LTD T/A DANESWOOD,BS25,22/04/2022,-397.00
15598233,Adults - Staffing and Supporting People,Adults,Blue Badges,Supplies and Services,Materials,APS GROUP,SK3 ,08/04/2022,873.60
20214233,Business Support,"People, Culture and Organisational Resilience",Leadership Support,Supplies and Services,Subscriptions,APSE--------------------------------,M32 ,29/04/2022,"4,054.00"
15353233,Property & Assets,Property & Assets,General Enhancement Works Corporate Buildings,Capital,Contractor Payments,AQUA SOLVE WATER MANAGEMENT,OX44,06/04/2022,"1,187.50"
16571270,Early Years Block,DSG Skills and Attainment,Free Nursery Education Commissioning - three & four  year olds,3rd Party Payments,Contracts - Child Care,REDACTED PERSONAL DATA,SN2 ,11/04/2022,"9,139.00"
19149233,Landscaping & Open Space,Culture & Heritage & Art,Great Western Community Forest,Capital,Contractor Payments,ARCHAEOLOGICAL SURVEYS LTD,SN11,27/04/2022,"1,150.00"
Corporate Card Transaction,ASC Finance Services Teams,ASC Finance Services,ASC Money Management Team,Supplies and Services,Services,Argos Ltd,,19/04/2022,521.95
Corporate Card Transaction,ASC Finance Services Teams,ASC Finance Services,ASC Money Management Team,Supplies and Services,Services,Argos Ltd,,19/04/2022,511.94
15491293,Elections & Democracy,Elections and Democracy,Local Elections,Premises Costs,Rents,ARKELLS BREWERY LTD,SN2 ,08/04/2022,650.00
17864233,Public Health,Public Health,Health Checks,3rd Party Payments,Contract Payments,ARTHOUSE 97 & EASY READ UK,WF2 ,20/04/2022,950.00
15184234,Homelessness and Travellers,Housing Services,Leased Private Managed Accommodation,Transfer Payments,Payment of Costs,ASCENT------------,SN2 ,06/04/2022,970.00
14365233,Communications & Engagement,Communications & Engagement,"Policy, Campaigns and Communications",Supplies and Services,Materials,ASF SIGNS LTD,SN4 ,01/04/2022,545.00
18430234,Mental Health,Adults,Mental Health 18-64,Income,Client Contribution - Residential,ASH VIEW HOUSE,BS15,22/04/2022,-394.20
18430234,Mental Health,Adults,Mental Health 18-64,3rd Party Payments,Residential Care,ASH VIEW HOUSE,BS15,22/04/2022,"7,114.24"
18415235,Physical Support,Adults,Physical Support 65 and over,3rd Party Payments,Residential Care,ASHBURY LODGE,SN3 ,22/04/2022,"2,270.52"
18415235,Memory & Cognition,Adults,Support for Memory and Cognition 65 and over,3rd Party Payments,Residential Care,ASHBURY LODGE,SN3 ,22/04/2022,"2,541.64"
18415235,Memory & Cognition,Adults,Support for Memory and Cognition 65 and over,Income,Client Contribution - Residential,ASHBURY LODGE,SN3 ,22/04/2022,-855.12
18415235,Physical Support,Adults,Physical Support 65 and over,Income,Client Contribution - Residential,ASHBURY LODGE,SN3 ,22/04/2022,-608.80
18415235,Physical Support,Adults,Physical Support 65 and over,Income,Client Contribution - Residential,ASHBURY LODGE,SN3 ,22/04/2022,-587.40
18415235,Mental Health,Adults,Mental Health 65 and over,3rd Party Payments,Residential Care,ASHBURY LODGE,SN3 ,22/04/2022,"2,541.64"
18415235,Physical Support,Adults,Physical Support 65 and over,Income,Client Contribution - Residential,ASHBURY LODGE,SN3 ,22/04/2022,-470.85
18415235,Physical Support,Adults,Physical Support 65 and over,3rd Party Payments,Residential Care,ASHBURY LODGE,SN3 ,22/04/2022,-87.08
18415235,Physical Support,Adults,Physical Support 65 and over,3rd Party Payments,Residential Care,ASHBURY LODGE,SN3 ,22/04/2022,"2,541.64"
18415235,Physical Support,Adults,Physical Support 65 and over,Income,Client Contribution - Residential,ASHBURY LODGE,SN3 ,22/04/2022,"1,325.12"
18415235,Physical Support,Adults,Physical Support 65 and over,Income,Client Contribution - Residential,ASHBURY LODGE,SN3 ,22/04/2022,"-1,093.40"
18415235,Physical Support,Adults,Physical Support 65 and over,Income,Client Contribution - Residential,ASHBURY LODGE,SN3 ,22/04/2022,974.40
18415235,Physical Support,Adults,Physical Support 65 and over,Income,Client Contribution - Residential,ASHBURY LODGE,SN3 ,22/04/2022,-595.40
18415235,Physical Support,Adults,Physical Support 65 and over,3rd Party Payments,Residential Care,ASHBURY LODGE,SN3 ,22/04/2022,"-2,699.44"
18415235,Physical Support,Adults,Physical Support 65 and over,3rd Party Payments,Residential Care,ASHBURY LODGE,SN3 ,22/04/2022,"-3,721.69"
18415235,Physical Support,Adults,Physical Support 65 and over,3rd Party Payments,Residential Care,ASHBURY LODGE,SN3 ,22/04/2022,"2,834.42"
18415235,Physical Support,Adults,Physical Support 65 and over,Income,Client Contribution - Residential,ASHBURY LODGE,SN3 ,22/04/2022,468.60
18415235,Physical Support,Adults,Physical Support 65 and over,Income,Client Contribution - Residential,ASHBURY LODGE,SN3 ,22/04/2022,-610.00
18415235,Physical Support,Adults,Physical Support 65 and over,3rd Party Payments,Residential Care,ASHBURY LODGE,SN3 ,22/04/2022,"-3,570.22"
18415235,Physical Support,Adults,Physical Support 65 and over,3rd Party Payments,Residential Care,ASHBURY LODGE,SN3 ,22/04/2022,"2,438.20"
18415235,Mental Health,Adults,Mental Health 65 and over,Income,Client Contribution - Residential,ASHBURY LODGE,SN3 ,22/04/2022,-805.32
18415235,Physical Support,Adults,Physical Support 65 and over,Income,Client Contribution - Residential,ASHBURY LODGE,SN3 ,22/04/2022,868.91
18415235,Physical Support,Adults,Physical Support 65 and over,Income,Client Contribution - Residential,ASHBURY LODGE,SN3 ,22/04/2022,"-1,032.64"
18415235,Physical Support,Adults,Physical Support 65 and over,3rd Party Payments,Residential Care,ASHBURY LODGE,SN3 ,22/04/2022,"2,560.12"
18415235,Physical Support,Adults,Physical Support 65 and over,Income,Client Contribution - Residential,ASHBURY LODGE,SN3 ,22/04/2022,64.64
18415235,Physical Support,Adults,Physical Support 65 and over,Income,Client Contribution - Residential,ASHBURY LODGE,SN3 ,22/04/2022,-627.80
18415235,Physical Support,Adults,Physical Support 65 and over,3rd Party Payments,Residential Care,ASHBURY LODGE,SN3 ,22/04/2022,"5,485.95"
18415235,Physical Support,Adults,Physical Support 65 and over,Income,Client Contribution - Residential,ASHBURY LODGE,SN3 ,22/04/2022,415.29
18415235,Care Management & Safeguarding,Adults,Community Response Hub,3rd Party Payments,Residential Care,ASHBURY LODGE,SN3 ,22/04/2022,"-1,724.68"
18415235,Physical Support,Adults,Physical Support 65 and over,Income,Client Contribution - Residential,ASHBURY LODGE,SN3 ,22/04/2022,21.19
18415235,Physical Support,Adults,Physical Support 65 and over,Income,Client Contribution - Residential,ASHBURY LODGE,SN3 ,22/04/2022,-875.20
18415235,Physical Support,Adults,Physical Support 65 and over,Income,Client Contribution - Residential,ASHBURY LODGE,SN3 ,22/04/2022,-608.76
18415235,Physical Support,Adults,Physical Support 65 and over,Income,Client Contribution - Residential,ASHBURY LODGE,SN3 ,22/04/2022,"-1,252.80"
18415235,Physical Support,Adults,Physical Support 65 and over,Income,Client Contribution - Residential,ASHBURY LODGE,SN3 ,22/04/2022,20.76
18415235,Physical Support,Adults,Physical Support 65 and over,Income,Client Contribution - Residential,ASHBURY LODGE,SN3 ,22/04/2022,-833.52
18415235,Physical Support,Adults,Physical Support 65 and over,3rd Party Payments,Residential Care,ASHBURY LODGE,SN3 ,22/04/2022,"-1,741.57"
18257233,Public Health,Public Health,Sexual Health & Health Protection Budget,3rd Party Payments,Contract Payments,ASHINGTON HOUSE SURGERY,SN5 ,22/04/2022,"5,320.00"
18119233,Public Health,Public Health,Smoking & Tobacco,3rd Party Payments,Contract Payments,ASHINGTON WAY PHARMACY,SN5 ,22/04/2022,145.00
18119233,Public Health,Public Health,Smoking & Tobacco,3rd Party Payments,Contract Payments,ASHINGTON WAY PHARMACY,SN5 ,22/04/2022,576.72
20105763,Physical Support,Adults,Physical Support 18 - 64,Transfer Payments,Personal Budget - Direct Payments - Domiciliary Care,REDACTED PERSONAL DATA,SN25,29/04/2022,"1,510.98"
15749234,Libraries,Inclusion and Achievement,Library Delivery,Supplies and Services,Materials,ASKEWS AND HOLTS LIBRARY SERVICES LIMITED,PR1 ,08/04/2022,"1,002.50"
15645233,Libraries,Inclusion and Achievement,Library Delivery,Supplies and Services,Materials,ASKEWS AND HOLTS LIBRARY SERVICES LIMITED,PR1 ,08/04/2022,754.89
15741233,Libraries,Inclusion and Achievement,Library Delivery,Supplies and Services,Materials,ASKEWS AND HOLTS LIBRARY SERVICES LIMITED,PR1 ,08/04/2022,"4,306.19"
17951233,Libraries,Inclusion and Achievement,Library Delivery,Supplies and Services,Materials,ASKEWS AND HOLTS LIBRARY SERVICES LIMITED,PR1 ,20/04/2022,"1,695.12"
14872233,Libraries,Inclusion and Achievement,Library Delivery,Supplies and Services,Materials,ASKEWS AND HOLTS LIBRARY SERVICES LIMITED,PR1 ,04/04/2022,"1,763.46"
18930233,Libraries,Inclusion and Achievement,Library Delivery,Supplies and Services,Materials,ASKEWS AND HOLTS LIBRARY SERVICES LIMITED,PR1 ,27/04/2022,994.26
18931233,Libraries,Inclusion and Achievement,Library Delivery,Supplies and Services,Materials,ASKEWS AND HOLTS LIBRARY SERVICES LIMITED,PR1 ,27/04/2022,"1,452.64"
15644233,Libraries,Inclusion and Achievement,Library Delivery,Supplies and Services,Materials,ASKEWS AND HOLTS LIBRARY SERVICES LIMITED,PR1 ,08/04/2022,"2,379.36"
18566233,Highways Schemes,Strategic Planning and Highways,Thamesdown Drive Traffic Signal,Capital,Contractor Payments,ASPECT TRAFFIC SOLUTIONS LTD,GL6 ,25/04/2022,"1,048.00"
18421241,Learning Disabilities,Adults,Learning Disability 26 - 64,3rd Party Payments,Residential Care,ASPECTS & MILESTONES TRUST,BS16,22/04/2022,"6,062.60"
18421241,Learning Disabilities,Adults,Learning Disability 26 - 64,Income,Client Contribution - Residential,ASPECTS & MILESTONES TRUST,BS16,22/04/2022,-425.60
18432233,Physical Support,Adults,Physical Support 18 - 64,3rd Party Payments,Supported Living,ASPECTS 2 LTD,B70 ,22/04/2022,"3,931.20"
18432233,Mental Health,Adults,Mental Health 65 and over,3rd Party Payments,Supported Living,ASPECTS 2 LTD,B70 ,22/04/2022,"3,052.80"
18432233,Learning Disabilities,Adults,Learning Disability 26 - 64,3rd Party Payments,Residential Care,ASPECTS 2 LTD,B70 ,22/04/2022,"7,883.28"
18432233,Learning Disabilities,Adults,Learning Disability 26 - 64,Income,Client Contribution - Residential,ASPECTS 2 LTD,B70 ,22/04/2022,-414.20
18432233,Physical Support,Adults,Physical Support 18 - 64,3rd Party Payments,Supported Living,ASPECTS 2 LTD,B70 ,22/04/2022,"5,512.56"
18436237,Learning Disabilities,Adults,Learning Disability 26 - 64,3rd Party Payments,Residential Care,ASTON CARE LIMITED,RG30,22/04/2022,"6,076.80"
18436237,Learning Disabilities,Adults,Learning Disability 26 - 64,3rd Party Payments,Residential Care,ASTON CARE LIMITED,RG30,22/04/2022,"8,712.72"
18436237,Learning Disabilities,Adults,Learning Disability 26 - 64,Income,Client Contribution - Residential,ASTON CARE LIMITED,RG30,22/04/2022,-594.36
18436237,Learning Disabilities,Adults,Learning Disability 26 - 64,Income,Client Contribution - Residential,ASTON CARE LIMITED,RG30,22/04/2022,"-1,033.20"
18436238,Learning Disabilities,Adults,Learning Disability 26 - 64,3rd Party Payments,Residential Care,ASTON CARE LIMITED,RG30,22/04/2022,"8,787.40"
18436237,Learning Disabilities,Adults,Learning Disability 26 - 64,3rd Party Payments,Residential Care,ASTON CARE LIMITED,RG30,22/04/2022,"6,611.88"
18436238,Learning Disabilities,Adults,Learning Disability 26 - 64,Income,Client Contribution - Residential,ASTON CARE LIMITED,RG30,22/04/2022,-262.40
18436237,Learning Disabilities,Adults,Learning Disability 26 - 64,Income,Client Contribution - Residential,ASTON CARE LIMITED,RG30,22/04/2022,-349.00
15289235,Early Help,"Children, Families and Community Health Services","Holiday, Activities & Food Grant",3rd Party Payments,Contracts - Child Care,ATBSHOP LTD,SN2 ,06/04/2022,611.95
17139233,Highways & Transport,Highways & Transport,Project Delivery,Supplies and Services,Services,ATKINS LTD,WR5 ,13/04/2022,"23,710.37"
17138233,Highways & Transport,Highways & Transport,Project Delivery,Supplies and Services,Services,ATKINS LTD,WR5 ,13/04/2022,"12,899.46"
20105894,Physical Support,Adults,Physical Support 65 and over,Transfer Payments,Personal Budget - Direct Payments - Domiciliary Care,REDACTED PERSONAL DATA,SP11,29/04/2022,"3,943.39"
18439233,Learning Disabilities,Adults,Learning Disability 65 and over,Income,Client Contribution - Residential,AUTONOMY LIFE LIMITED,SN12,22/04/2022,-528.80
18439233,Learning Disabilities,Adults,Learning Disability 65 and over,3rd Party Payments,Residential Care,AUTONOMY LIFE LIMITED,SN12,22/04/2022,"8,954.64"
17844233,Streetsmart,Streetsmart,Waterside Fleet Workshops,Supplies and Services,Equipment,AUTOTECH TRAINING LTD,MK14,20/04/2022,"1,197.00"
19094233,Social Care,"Children, Families and Community Health Services",External Placements,3rd Party Payments,Supported Living,AVISANT CONSULTING LTD,EC1V,27/04/2022,"5,292.14"
14750233,Property Estates,Property,Estates - Corporate Property General,Supplies and Services,Fees,AVISON YOUNG (UK) LTD,B1 2,04/04/2022,"1,810.03"
19350233,Care Management & Safeguarding,Adults,Mental Health Non-Pool,Employees,Non-SBC Staff Terms - Basic Pay,AVON & WILTSHIRE MENTAL HEALTH PARTNERSHIP NHS TRUST,BA1 ,27/04/2022,578.47
19489233,Care Management & Safeguarding,Adults,Mental Health Non-Pool,3rd Party Payments,Contracts - Social Care,AVON & WILTSHIRE MENTAL HEALTH PARTNERSHIP NHS TRUST,BA1 ,29/04/2022,"24,088.83"
19345233,Care Management & Safeguarding,Adults,Mental Health Non-Pool,Employees,Non-SBC Staff Terms - Basic Pay,AVON & WILTSHIRE MENTAL HEALTH PARTNERSHIP NHS TRUST,BA1 ,27/04/2022,"3,201.59"
19493233,Care Management & Safeguarding,Adults,Mental Health Non-Pool,3rd Party Payments,Contracts - Social Care,AVON & WILTSHIRE MENTAL HEALTH PARTNERSHIP NHS TRUST,BA1 ,29/04/2022,"24,088.83"
18416241,Learning Disabilities,Adults,Learning Disability 26 - 64,3rd Party Payments,Residential Care,AVON AUTISTIC FOUNDATION LTD,BS11,22/04/2022,"4,878.40"
18416242,Learning Disabilities,Adults,Learning Disability 26 - 64,Income,Client Contribution - Residential,AVON AUTISTIC FOUNDATION LTD,BS11,22/04/2022,-414.20
18416241,Learning Disabilities,Adults,Learning Disability 26 - 64,Income,Client Contribution - Residential,AVON AUTISTIC FOUNDATION LTD,BS11,22/04/2022,-414.20
18416242,Learning Disabilities,Adults,Learning Disability 26 - 64,3rd Party Payments,Residential Care,AVON AUTISTIC FOUNDATION LTD,BS11,22/04/2022,"6,823.92"
18247233,Homelessness and Travellers,Housing Services,Leased Private Managed Accommodation,Transfer Payments,Payment of Costs,AVONPARK PROPERTIES LTD,NW1W,25/04/2022,550.00
18209243,Homelessness and Travellers,Housing Services,Leased Private Managed Accommodation,Transfer Payments,Payment of Costs,AVONPARK PROPERTIES LTD,NW1W,25/04/2022,650.00
18209242,Homelessness and Travellers,Housing Services,Leased Private Managed Accommodation,Transfer Payments,Payment of Costs,AVONPARK PROPERTIES LTD,NW1W,25/04/2022,615.00
14390235,Human Resources and Organisational Development,"People, Culture and Organisational Resilience",Human Resources & Organisational Development,Employees,Training,AWARENESS TRAINING LTD,GL54,01/04/2022,750.00
14084233,Disabled Children,"Children, Families and Community Health Services",Salt Way Centre Running Costs,Premises Costs,Maintenance - Grounds,AZURA NETWORKS,BN11,01/04/2022,578.00
14251233,Digital & Business Change,Digital & Business Change,IT Operations,Supplies and Services,Equipment,AZURA NETWORKS,BN11,01/04/2022,"1,050.00"
18438237,Physical Support,Adults,Physical Support 65 and over,3rd Party Payments,Nursing Care,BARCHESTER HEALTHCARE HOMES,GL7 ,22/04/2022,"3,249.60"
18438237,Physical Support,Adults,Physical Support 65 and over,Income,Client Contribution - Nursing,BARCHESTER HEALTHCARE HOMES,GL7 ,22/04/2022,-809.92
18438237,Memory & Cognition,Adults,Support for Memory and Cognition 65 and over,3rd Party Payments,Nursing Care,BARCHESTER HEALTHCARE HOMES,GL7 ,22/04/2022,"5,968.08"
16571274,Early Years Block,DSG Skills and Attainment,Free Nursery Education Commissioning - three & four  year olds,3rd Party Payments,Contracts - Child Care,BARN OWL PRE-SCHOOL,SN4 ,11/04/2022,"30,754.37"
16571276,Early Years Block,DSG Skills and Attainment,Free Nursery Education Commissioning - three & four  year olds,3rd Party Payments,Contracts - Child Care,BARN OWL PRE-SCHOOL,SN4 ,11/04/2022,580.37
16571275,Early Years Block,DSG Skills and Attainment,Free Nursery Education Commissioning - three & four  year olds,3rd Party Payments,Contracts - Child Care,BARN OWL PRE-SCHOOL,SN4 ,11/04/2022,732.37
15198233,School Transport,Inclusion and Achievement,Mainstream School Transport,Transport Costs,Home to School Transport,BARNES COACHES LTD,SN3 ,06/04/2022,859.28
16678233,School Transport,Inclusion and Achievement,Special Educational Needs Transport,Employees,Temporary / Agency - by Accounts Payable,BARNES COACHES LTD,SN3 ,13/04/2022,872.10
16678233,School Transport,Inclusion and Achievement,Mainstream School Transport,Transport Costs,Home to School Transport,BARNES COACHES LTD,SN3 ,13/04/2022,"4,032.00"
17123233,School Transport,Inclusion and Achievement,Special Educational Needs Transport,Transport Costs,Home to School Transport,BARNES COACHES LTD,SN3 ,13/04/2022,"2,912.00"
17123233,School Transport,Inclusion and Achievement,Special Educational Needs Transport,Employees,Temporary / Agency - by Accounts Payable,BARNES COACHES LTD,SN3 ,13/04/2022,629.85
15198233,School Transport,Inclusion and Achievement,Mainstream School Transport,Transport Costs,Home to School Transport,BARNES COACHES LTD,SN3 ,06/04/2022,"3,335.00"
15198233,School Transport,Inclusion and Achievement,Mainstream School Transport,Transport Costs,Home to School Transport,BARNES COACHES LTD,SN3 ,06/04/2022,"10,925.00"
15197233,School Transport,Inclusion and Achievement,Mainstream School Transport,Transport Costs,Home to School Transport,BARNES COACHES LTD,SN3 ,06/04/2022,"1,114.35"
15197233,School Transport,Inclusion and Achievement,Mainstream School Transport,Transport Costs,Home to School Transport,BARNES COACHES LTD,SN3 ,06/04/2022,"5,152.00"
18430237,Physical Support,Adults,Physical Support 65 and over,3rd Party Payments,Nursing Care,BASSETT HOUSE CARE HOME,SN4 ,22/04/2022,"2,847.56"
18430237,Physical Support,Adults,Physical Support 65 and over,Income,Client Contribution - Nursing,BASSETT HOUSE CARE HOME,SN4 ,22/04/2022,-879.52
14764233,Communications & Engagement,Communications & Engagement,"Policy, Campaigns and Communications",Supplies and Services,Materials,BAY MEDIA LTD,NW5 ,04/04/2022,"1,131.00"
17812233,Supported Housing,Special Services,Supported Housing Management,Supplies and Services,Equipment,BED FACTORY SWINDON T/A TBF (UK) LTD,SN3 ,20/04/2022,"1,419.35"
17732234,High Needs Block,DSG Skills and Attainment,SEN Resourcing Assessment Panel,3rd Party Payments,Top up funding - Maintained providers Pre 16,BEECHCROFT INFANT SCHOOL,SN2 ,20/04/2022,"5,794.58"
17105235,Schools - Primary,DSG Skills and Attainment,Primary School Budgets,3rd Party Payments,Mainstream Delegated Funding,BEECHCROFT INFANT SCHOOL,SN2 ,13/04/2022,"97,492.00"
17112239,DSG Other Funding,DSG Skills and Attainment,DFE Additional Grants,3rd Party Payments,Payment of Pupil Premium to school,BEECHCROFT INFANT SCHOOL,SN2 ,13/04/2022,"7,558.00"
18429241,Learning Disabilities,Adults,Learning Disability 26 - 64,3rd Party Payments,Residential Care,BEECHWOOD COURT LTD,CF10,22/04/2022,"24,475.20"
18429241,Learning Disabilities,Adults,Learning Disability 26 - 64,Income,Client Contribution - Residential,BEECHWOOD COURT LTD,CF10,22/04/2022,-322.56
18429241,Learning Disabilities,Adults,Learning Disability 26 - 64,3rd Party Payments,Residential Care,BEECHWOOD COURT LTD,CF10,22/04/2022,"11,704.48"
14392285,Property Management,Property,Corporate Repairs & Maintenance Programme,Supplies and Services,Building Maintenance,BEEFY'S SKIPS,SN26,01/04/2022,541.67
14393233,Property Management,Property,Corporate Repairs & Maintenance Programme,Supplies and Services,Building Maintenance,BEEFY'S SKIPS,SN26,01/04/2022,541.67
18146233,Other Repairs,Repairs,Delivery Team & Overheads,Supplies and Services,Materials,BEESLEYS TOOLS,SN2 ,22/04/2022,24.99
18146233,Other Repairs,Repairs,Delivery Team & Overheads,Supplies and Services,Materials,BEESLEYS TOOLS,SN2 ,22/04/2022,14.50
18146233,Other Repairs,Repairs,Delivery Team & Overheads,Supplies and Services,Materials,BEESLEYS TOOLS,SN2 ,22/04/2022,28.00
18146233,Other Repairs,Repairs,Delivery Team & Overheads,Supplies and Services,Materials,BEESLEYS TOOLS,SN2 ,22/04/2022,27.48
18146233,Other Repairs,Repairs,Delivery Team & Overheads,Supplies and Services,Materials,BEESLEYS TOOLS,SN2 ,22/04/2022,10.48
18146233,Other Repairs,Repairs,Delivery Team & Overheads,Supplies and Services,Materials,BEESLEYS TOOLS,SN2 ,22/04/2022,105.98
18146233,Other Repairs,Repairs,Delivery Team & Overheads,Supplies and Services,Materials,BEESLEYS TOOLS,SN2 ,22/04/2022,20.60
18146233,Void Repairs,Supervision & Management,Void Property Repairs,Supplies and Services,Materials,BEESLEYS TOOLS,SN2 ,22/04/2022,139.00
18148233,Other Repairs,Repairs,Asbestos Services,Supplies and Services,Materials,BEESLEYS TOOLS,SN2 ,22/04/2022,90.00
18146233,Other Repairs,Repairs,Delivery Team & Overheads,Supplies and Services,Materials,BEESLEYS TOOLS,SN2 ,22/04/2022,71.00
18146233,Other Repairs,Repairs,Delivery Team & Overheads,Supplies and Services,Materials,BEESLEYS TOOLS,SN2 ,22/04/2022,52.36
18146233,Other Repairs,Repairs,Delivery Team & Overheads,Supplies and Services,Materials,BEESLEYS TOOLS,SN2 ,22/04/2022,7.20
18148233,Other Repairs,Repairs,Asbestos Services,Supplies and Services,Materials,BEESLEYS TOOLS,SN2 ,22/04/2022,12.50
18146233,Other Repairs,Repairs,Delivery Team & Overheads,Supplies and Services,Materials,BEESLEYS TOOLS,SN2 ,22/04/2022,7.99
18146233,Other Repairs,Repairs,Delivery Team & Overheads,Supplies and Services,Materials,BEESLEYS TOOLS,SN2 ,22/04/2022,12.99
18146233,Void Repairs,Supervision & Management,Void Property Repairs,Supplies and Services,Materials,BEESLEYS TOOLS,SN2 ,22/04/2022,23.25
18146233,Other Repairs,Repairs,Delivery Team & Overheads,Supplies and Services,Materials,BEESLEYS TOOLS,SN2 ,22/04/2022,4.95
18146233,Other Repairs,Repairs,Delivery Team & Overheads,Supplies and Services,Materials,BEESLEYS TOOLS,SN2 ,22/04/2022,11.06
18146233,Other Repairs,Repairs,Delivery Team & Overheads,Supplies and Services,Materials,BEESLEYS TOOLS,SN2 ,22/04/2022,94.38
18146233,Other Repairs,Repairs,Delivery Team & Overheads,Supplies and Services,Materials,BEESLEYS TOOLS,SN2 ,22/04/2022,14.99
18146233,Other Repairs,Repairs,Delivery Team & Overheads,Supplies and Services,Materials,BEESLEYS TOOLS,SN2 ,22/04/2022,26.18
18146233,Other Repairs,Repairs,Delivery Team & Overheads,Supplies and Services,Materials,BEESLEYS TOOLS,SN2 ,22/04/2022,20.00
18146233,Other Repairs,Repairs,Delivery Team & Overheads,Supplies and Services,Materials,BEESLEYS TOOLS,SN2 ,22/04/2022,72.00
18148233,Other Repairs,Repairs,Asbestos Services,Supplies and Services,Materials,BEESLEYS TOOLS,SN2 ,22/04/2022,216.00
18148233,Other Repairs,Repairs,Asbestos Services,Supplies and Services,Materials,BEESLEYS TOOLS,SN2 ,22/04/2022,99.00
18146233,Other Repairs,Repairs,Delivery Team & Overheads,Supplies and Services,Materials,BEESLEYS TOOLS,SN2 ,22/04/2022,7.90
18146233,Other Repairs,Repairs,Delivery Team & Overheads,Supplies and Services,Materials,BEESLEYS TOOLS,SN2 ,22/04/2022,19.70
18146233,Void Repairs,Supervision & Management,Void Property Repairs,Supplies and Services,Materials,BEESLEYS TOOLS,SN2 ,22/04/2022,149.99
18513233,Parking & Bus lanes,Highway Operations and Car Parking,Street Parking,Supplies and Services,Materials,BEMROSE BOOTH PARAGON LTD,HU7 ,22/04/2022,"4,936.80"
Corporate Card Transaction,ASC Finance Services Teams,ASC Finance Services,ASC Money Management Team,Supplies and Services,Services,Bensonsforbedsretail,,08/04/2022,2294.98
14206233,Social Care,"Children, Families and Community Health Services",CP & CIN Social Work - South,3rd Party Payments,Day Care,BESPOKE GUARDIANS LTD,SN6 ,01/04/2022,600.00
16052233,Social Care,"Children, Families and Community Health Services",CP & CIN Social Work - North,3rd Party Payments,Personal Needs,BESPOKE GUARDIANS LTD,SN6 ,11/04/2022,"3,500.00"
15822233,Landlord Services,Supervision & Management,Sales Team,Transfer Payments,Payment of Costs,BEST OF BOTH HOME IMPROVEMENTS LTD,SN1 ,08/04/2022,495.00
20128233,Social Care,"Children, Families and Community Health Services",Placement - Care Leaver Team,3rd Party Payments,Education / Training,REDACTED PERSONAL DATA,NR5 ,29/04/2022,600.00
16571277,Early Years Block,DSG Skills and Attainment,Free Nursery Education Commissioning - three & four  year olds,3rd Party Payments,Contracts - Child Care,REDACTED PERSONAL DATA,SN4 ,11/04/2022,"15,299.44"
20105878,Physical Support,Adults,Physical Support 18 - 64,Transfer Payments,Personal Budget - Direct Payments - Domiciliary Care,REDACTED PERSONAL DATA,SN2 ,29/04/2022,"1,200.22"
18496233,Social Care,"Children, Families and Community Health Services",Legal Fees,Supplies and Services,Fees,BEVIRS SOLICITORS,SN1 ,22/04/2022,"1,178.60"
14802233,Public Health,Public Health,Health Checks,Supplies and Services,Testing / Inspection,BHR PHARMACEUTICALS LTD,CV11,04/04/2022,"2,380.00"
15261233,Libraries,Inclusion and Achievement,Library Delivery,Supplies and Services,Repairs & Maintenance,BIBLIOTHECA LTD,SK8 ,06/04/2022,"7,150.00"
14946233,Libraries,Inclusion and Achievement,Central,Premises Costs,Waste,BIFFA WASTE SERVICES LTD,HP12,06/04/2022,438.75
18000233,Lydiard Park,Streetsmart,Lydiard House & Park,Supplies and Services,Goods for resale,BILLY ROSS WHOLESALE,PA3 ,20/04/2022,"1,418.40"
17111233,DSG Other Funding,DSG Skills and Attainment,DFE Additional Grants,3rd Party Payments,Payment of Pupil Premium to school,BISHOPSTONE C E PRIMARY SCHOOL,SN6 ,13/04/2022,808.00
17104235,Schools - Primary,DSG Skills and Attainment,Primary School Budgets,3rd Party Payments,Mainstream Delegated Funding,BISHOPSTONE C E PRIMARY SCHOOL,SN6 ,13/04/2022,"26,319.00"
15200233,Streetsmart,Streetsmart,Waterside Fleet Hires,Transport Costs,Vehicle Hire / Contract,BLAKEDALE LTD,PR7 ,06/04/2022,782.00
15201233,Streetsmart,Streetsmart,Waterside Fleet Hires,Transport Costs,Vehicle Hire / Contract,BLAKEDALE LTD,PR7 ,06/04/2022,425.00
17561233,Non-HRA Vehicles,Transport,Vehicle & Plant replacement strategy,Capital,Contractor Payments,BLAKEDALE LTD,PR7 ,20/04/2022,"19,650.00"
15202233,Streetsmart,Streetsmart,Waterside Fleet Hires,Transport Costs,Vehicle Hire / Contract,BLAKEDALE LTD,PR7 ,06/04/2022,782.00
17562233,Non-HRA Vehicles,Transport,Vehicle & Plant replacement strategy,Capital,Contractor Payments,BLAKEDALE LTD,PR7 ,20/04/2022,"19,390.00"
16925234,Landscaping & Open Space,Culture & Heritage & Art,Moredon Recreation - Multi Sports Hub,Capital,Contractor Payments,BLB KILMINSTER BEER LLP,SN1 ,13/04/2022,"8,350.00"
15837233,Social Care,"Children, Families and Community Health Services",External Placements,3rd Party Payments,Parent & Child Placements,BLUE SKY,HA1 ,08/04/2022,"3,927.96"
15833233,Social Care,"Children, Families and Community Health Services",External Placements,3rd Party Payments,Independent Fostering Agency Placements,BLUE SKY,HA1 ,08/04/2022,"5,469.33"
15835235,Social Care,"Children, Families and Community Health Services",External Placements,3rd Party Payments,Independent Fostering Agency Placements,BLUE SKY,HA1 ,08/04/2022,"3,429.53"
15836233,Social Care,"Children, Families and Community Health Services",External Placements,3rd Party Payments,Independent Fostering Agency Placements,BLUE SKY,HA1 ,08/04/2022,"6,510.00"
18415236,Physical Support,Adults,Physical Support 65 and over,3rd Party Payments,Residential Care,BLUEBELLS RESIDENTIAL HOME,SN25,22/04/2022,"4,800.00"
18415236,Mental Health,Adults,Mental Health 65 and over,3rd Party Payments,Residential Care,BLUEBELLS RESIDENTIAL HOME,SN25,22/04/2022,"3,800.00"
18415236,Physical Support,Adults,Physical Support 65 and over,Income,Client Contribution - Residential,BLUEBELLS RESIDENTIAL HOME,SN25,22/04/2022,"-1,140.68"
18415236,Physical Support,Adults,Physical Support 65 and over,Income,Client Contribution - Residential,BLUEBELLS RESIDENTIAL HOME,SN25,22/04/2022,-688.80
18415236,Physical Support,Adults,Physical Support 65 and over,3rd Party Payments,Residential Care,BLUEBELLS RESIDENTIAL HOME,SN25,22/04/2022,"3,672.00"
16020249,Learning Disabilities,Adults,Learning Disability 26 - 64,3rd Party Payments,Personal Budget - Domiciliary care,BLUEBIRD CARE (SWINDON),SN25,08/04/2022,501.28
16020245,Physical Support,Adults,Physical Support 65 and over,3rd Party Payments,Personal Budget - Domiciliary care,BLUEBIRD CARE (SWINDON),SN25,08/04/2022,578.40
16020252,Physical Support,Adults,Physical Support 65 and over,3rd Party Payments,Personal Budget - Domiciliary care,BLUEBIRD CARE (SWINDON),SN25,08/04/2022,"1,113.42"
16020248,Learning Disabilities,Adults,Learning Disability 26 - 64,3rd Party Payments,Personal Budget - Domiciliary care,BLUEBIRD CARE (SWINDON),SN25,08/04/2022,742.28
16020242,Learning Disabilities,Adults,Learning Disability 26 - 64,3rd Party Payments,Personal Budget - Domiciliary care,BLUEBIRD CARE (SWINDON),SN25,08/04/2022,636.24
16020243,Learning Disabilities,Adults,Learning Disability 26 - 64,3rd Party Payments,Personal Budget - Domiciliary care,BLUEBIRD CARE (SWINDON),SN25,08/04/2022,882.06
16571280,Early Years Block,DSG Skills and Attainment,Free Nursery Education Commissioning - three & four  year olds,3rd Party Payments,Contracts - Child Care,REDACTED PERSONAL DATA,SN3 ,11/04/2022,"32,536.83"
16571281,Early Years Block,DSG Skills and Attainment,Free Nursery Education Commissioning - two year olds,3rd Party Payments,Contracts - Child Care,REDACTED PERSONAL DATA,SN3 ,11/04/2022,"1,262.97"
18435237,Mental Health,Adults,Mental Health 65 and over,3rd Party Payments,Residential Care,BOLEALLER HOUSE LTD,EX15,22/04/2022,"4,451.76"
15272233,Libraries,Inclusion and Achievement,Library Delivery,Supplies and Services,Materials,BOLINDA UK LTD,RG14,06/04/2022,854.42
15276233,Libraries,Inclusion and Achievement,Library Delivery,Supplies and Services,Materials,BOLINDA UK LTD,RG14,06/04/2022,877.90
18421235,Physical Support,Adults,Physical Support 18 - 64,Income,Client Contribution - Nursing,BOTHWELLS LTD,HA6 ,22/04/2022,-425.60
18421235,Physical Support,Adults,Physical Support 65 and over,3rd Party Payments,Nursing Care,BOTHWELLS LTD,HA6 ,22/04/2022,"2,438.20"
18421235,Physical Support,Adults,Physical Support 65 and over,3rd Party Payments,Nursing Care,BOTHWELLS LTD,HA6 ,22/04/2022,"4,207.71"
18421235,Physical Support,Adults,Physical Support 65 and over,Income,Client Contribution - Nursing,BOTHWELLS LTD,HA6 ,22/04/2022,-659.80
18421235,Physical Support,Adults,Physical Support 65 and over,Income,Client Contribution - Nursing,BOTHWELLS LTD,HA6 ,22/04/2022,-569.40
18421235,Physical Support,Adults,Physical Support 65 and over,Income,Client Contribution - Nursing,BOTHWELLS LTD,HA6 ,22/04/2022,-648.28
18421235,Learning Disabilities,Adults,Learning Disability 26 - 64,3rd Party Payments,Nursing Care,BOTHWELLS LTD,HA6 ,22/04/2022,"3,922.20"
18421235,Physical Support,Adults,Physical Support 18 - 64,3rd Party Payments,Nursing Care,BOTHWELLS LTD,HA6 ,22/04/2022,"2,438.20"
18421235,Physical Support,Adults,Physical Support 18 - 64,Income,Client Contribution - Nursing,BOTHWELLS LTD,HA6 ,22/04/2022,-414.20
18421235,Physical Support,Adults,Physical Support 65 and over,3rd Party Payments,Nursing Care,BOTHWELLS LTD,HA6 ,22/04/2022,"2,808.00"
18421235,Physical Support,Adults,Physical Support 65 and over,3rd Party Payments,Nursing Care,BOTHWELLS LTD,HA6 ,22/04/2022,"2,270.52"
18421235,Physical Support,Adults,Physical Support 65 and over,Income,Client Contribution - Nursing,BOTHWELLS LTD,HA6 ,22/04/2022,"1,366.84"
18421235,Physical Support,Adults,Physical Support 65 and over,Income,Client Contribution - Nursing,BOTHWELLS LTD,HA6 ,22/04/2022,-523.80
18421235,Physical Support,Adults,Physical Support 18 - 64,3rd Party Payments,Nursing Care,BOTHWELLS LTD,HA6 ,22/04/2022,"2,270.52"
18421235,Physical Support,Adults,Physical Support 65 and over,Income,Client Contribution - Nursing,BOTHWELLS LTD,HA6 ,22/04/2022,480.60
18421235,Physical Support,Adults,Physical Support 65 and over,Income,Client Contribution - Nursing,BOTHWELLS LTD,HA6 ,22/04/2022,-608.80
18421235,Physical Support,Adults,Physical Support 65 and over,Income,Client Contribution - Nursing,BOTHWELLS LTD,HA6 ,22/04/2022,"-1,396.03"
18421235,Physical Support,Adults,Physical Support 65 and over,Income,Client Contribution - Nursing,BOTHWELLS LTD,HA6 ,22/04/2022,-494.85
18421235,Physical Support,Adults,Physical Support 65 and over,3rd Party Payments,Nursing Care,BOTHWELLS LTD,HA6 ,22/04/2022,"-6,832.71"
18421235,Physical Support,Adults,Physical Support 65 and over,3rd Party Payments,Nursing Care,BOTHWELLS LTD,HA6 ,22/04/2022,"-2,049.91"
14263233,Property Estates,Property,Investment Properties,Supplies and Services,Fees,BPE SOLICITORS LLP,GL50,01/04/2022,"2,000.00"
14936233,Property Estates,Property,Estates - Kendrick Close,Supplies and Services,Fees,BPE SOLICITORS LLP,GL50,06/04/2022,900.00
16664233,Property Estates,Property,Estates - Kendrick Close,Supplies and Services,Fees,BPE SOLICITORS LLP,GL50,13/04/2022,"2,400.00"
14937233,Property Estates,Property,Estates - Kendrick Close,Supplies and Services,Fees,BPE SOLICITORS LLP,GL50,06/04/2022,750.00
14949233,Property Estates,Property,Estates - Kendrick Close,Supplies and Services,Fees,BPE SOLICITORS LLP,GL50,06/04/2022,"2,550.00"
14260233,Property Estates,Property,Investment Properties,Supplies and Services,Fees,BPE SOLICITORS LLP,GL50,01/04/2022,"2,000.00"
17008233,Wichelstowe,"Economy, Growth and Place",District Centre,Capital,Professional Fees,BRADLEY MURPHY DESIGN LIMITED,CV35,13/04/2022,850.00
16571285,Early Years Block,DSG Skills and Attainment,Free Nursery Education Commissioning - two year olds,3rd Party Payments,Contracts - Child Care,BRAMBLE HOUSE DAY NURSERY LTD,SN2 ,11/04/2022,"5,166.72"
17570233,High Needs Block,DSG Skills and Attainment,SEN Resourcing Assessment Panel,3rd Party Payments,Top up funding - Maintained providers Pre 16,BRAMBLE HOUSE DAY NURSERY LTD,SN2 ,20/04/2022,624.00
16571284,Early Years Block,DSG Skills and Attainment,Free Nursery Education Commissioning - three & four  year olds,3rd Party Payments,Contracts - Child Care,BRAMBLE HOUSE DAY NURSERY LTD,SN2 ,11/04/2022,"41,646.61"
17186233,Social Care,"Children, Families and Community Health Services",External Placements,3rd Party Payments,Residential Care,BRANAS ISAF LIMITED,EN6 ,13/04/2022,"23,785.80"
17104240,Schools - Primary,DSG Skills and Attainment,Primary School Budgets,3rd Party Payments,Mainstream Delegated Funding,BRIDLEWOOD PRIMARY SCHOOL,SN25,13/04/2022,"75,276.00"
17727233,High Needs Block,DSG Skills and Attainment,SEN Resourcing Assessment Panel,3rd Party Payments,Top up funding - Maintained providers Pre 16,BRIDLEWOOD PRIMARY SCHOOL,SN25,20/04/2022,"6,428.67"
17112235,DSG Other Funding,DSG Skills and Attainment,DFE Additional Grants,3rd Party Payments,Payment of Pupil Premium to school,BRIDLEWOOD PRIMARY SCHOOL,SN25,13/04/2022,"4,152.00"
16499234,Early Years Block,DSG Skills and Attainment,Free Nursery Education Commissioning - three & four  year olds,3rd Party Payments,Contracts - Child Care,BRIDLEWOOD PRIMARY SCHOOL,SN25,11/04/2022,"6,834.35"
16993233,Streetsmart,Streetsmart,Coate Water,Supplies and Services,Materials,BRISTOL CITY COUNCIL,BS1 ,13/04/2022,480.00
16993233,Streetsmart,Streetsmart,Coate Water,Supplies and Services,Materials,BRISTOL CITY COUNCIL,BS1 ,13/04/2022,30.00
15157233,Property Management,Property,Corporate Repairs & Maintenance Programme,Premises Costs,Maintenance - Buildings,BRISTOL FIRE,BS37,06/04/2022,"9,077.73"
17282233,Homelessness and Travellers,Housing Services,ASC Rental Properties,Transfer Payments,Payment of Costs,BRITISH GAS TRADING LTD,NN4 ,20/04/2022,52.00
17282233,Homelessness and Travellers,Housing Services,ASC Rental Properties,Transfer Payments,Payment of Costs,BRITISH GAS TRADING LTD,NN4 ,20/04/2022,"1,592.47"
19036233,Revenues & Benefits,Revenues & Benefits,Swindon Emergency Assistance Fund,Supplies and Services,Materials,BRITISH HEART FOUNDATION,NW1 ,27/04/2022,"1,038.00"
18509233,Parking & Bus lanes,Highway Operations and Car Parking,Car Parking,Supplies and Services,Fees,BRITISH PARKING ASSOCIATION,RH16,22/04/2022,"1,172.00"
19904234,,,Balance Sheet,Balance Sheet & Recharge,British Telecom invoices,BRITISH TELECOMMUNICATIONS PLC,NE82,29/04/2022,"52,891.12"
16632233,Corporate,Corporate Finance,Corporate Financial Management,Supplies and Services,Fees,BROADSTONE CONSULTANTS & ACTUARIES LTD,BS1 ,13/04/2022,"2,715.50"
14484233,Corporate,Corporate Finance,Corporate Financial Management,Supplies and Services,Fees,BROADSTONE CONSULTANTS & ACTUARIES LTD,BS1 ,01/04/2022,"4,302.93"
17888233,Public Health,Public Health,DAAT,3rd Party Payments,Contract Payments,BROADWAY LODGE LTD,BS24,20/04/2022,"4,400.00"
17767235,High Needs Block,DSG Skills and Attainment,Post 16 - New Responsibilties,3rd Party Payments,Independent Service Provider- Post 16,BRUNEL EDUCATION,SN25,20/04/2022,"121,739.06"
17119233,High Needs Block,DSG Skills and Attainment,Advisory Teacher Services,Supplies and Services,Payments to Educational Bodies,REDACTED PERSONAL DATA,SN25,13/04/2022,"11,317.00"
15041233,SEND Funds,Skills & Attainment,Education High Needs Provision,Capital,Contractor Payments,REDACTED PERSONAL DATA,SN25,06/04/2022,"4,290.00"
15043233,SEND Funds,Skills & Attainment,Education High Needs Provision,Capital,Contractor Payments,REDACTED PERSONAL DATA,SN25,06/04/2022,"8,995.00"
17118233,High Needs Block,DSG Skills and Attainment,Advisory Teacher Services,Supplies and Services,Payments to Educational Bodies,REDACTED PERSONAL DATA,SN25,13/04/2022,"7,250.00"
19472233,High Needs Block,DSG Skills and Attainment,SEN Resourcing Assessment Panel,Supplies and Services,Services,REDACTED PERSONAL DATA,SN2 ,27/04/2022,"3,570.40"
19471233,High Needs Block,DSG Skills and Attainment,SEN Resourcing Assessment Panel,Supplies and Services,Services,REDACTED PERSONAL DATA,SN2 ,27/04/2022,"16,740.00"
15540233,Local Transport Plan Funded,Strategic Planning and Highways,Surface Water Management,Capital,Contractor Payments,BRUNEL SURVEYS LTD,CM20,06/04/2022,"8,426.40"
19873234,NEV,"Economy, Growth and Place",Southern Connector Road,Capital,Consultants,BRUTON KNOWLES,GL2 ,29/04/2022,"3,486.60"
19872233,NEV,"Economy, Growth and Place",Gablecross Junction,Capital,Consultants,BRUTON KNOWLES,GL2 ,29/04/2022,"1,004.04"
20209233,Supported Employment,Housing Services,EW - Timber,Supplies and Services,Materials,BSW TIMBER LIMITED,TD4 ,29/04/2022,"9,537.39"
20223235,Highways & Transport,Highways & Transport,Traffic Management & Road Safety,3rd Party Payments,Contract Payments,BUCHANAN COMPUTING,W6 7,29/04/2022,868.00
20221233,NEV,"Economy, Growth and Place",Southern Connector Road,Capital,Contractor Payments,BUCKINGHAM GROUP CONTRACTING LIMITED,MK18,29/04/2022,"2,552,771.51"
15677233,Highways & Transport,Highways & Transport,Highways Management,Supplies and Services,Subscriptions,BUILDING SOFTWARE LTD,EX16,08/04/2022,"16,350.00"
17841233,Schools Maintenance,Skills & Attainment,Condition Works,Capital,Contractor Payments,BUILDTECH SW LIMITED,GL53,20/04/2022,"4,837.93"
17841233,Schools Maintenance,Skills & Attainment,Condition Works,Capital,Contractor Payments,BUILDTECH SW LIMITED,GL53,20/04/2022,"7,256.90"
15977234,Schools Maintenance,Skills & Attainment,Condition Works,Capital,Contractor Payments,BUILDTECH SW LIMITED,GL53,08/04/2022,864.00
15977234,Schools Maintenance,Skills & Attainment,Condition Works,Capital,Contractor Payments,BUILDTECH SW LIMITED,GL53,08/04/2022,473.77
16571288,Early Years Block,DSG Skills and Attainment,Free Nursery Education Commissioning - three & four  year olds,3rd Party Payments,Contracts - Child Care,"BUSY BEES, BROOME MANOR",SN3 ,11/04/2022,"65,763.49"
16571289,Early Years Block,DSG Skills and Attainment,Free Nursery Education Commissioning - two year olds,3rd Party Payments,Contracts - Child Care,"BUSY BEES, BROOME MANOR",SN3 ,11/04/2022,"3,444.48"
16571292,Early Years Block,DSG Skills and Attainment,Free Nursery Education Commissioning - three & four  year olds,3rd Party Payments,Contracts - Child Care,"BUSY BEES, BROOME MANOR",SN3 ,11/04/2022,-846.00
16571293,Early Years Block,DSG Skills and Attainment,Free Nursery Education Commissioning - three & four  year olds,3rd Party Payments,Contracts - Child Care,"BUSY BEES, PEATMOOR",SN5 ,11/04/2022,"69,958.07"
16571294,Early Years Block,DSG Skills and Attainment,Free Nursery Education Commissioning - two year olds,3rd Party Payments,Contracts - Child Care,"BUSY BEES, PEATMOOR",SN5 ,11/04/2022,"3,444.48"
16571297,Early Years Block,DSG Skills and Attainment,Free Nursery Education Commissioning - three & four  year olds,3rd Party Payments,Contracts - Child Care,"BUSY BEES, ST ANDREWS RIDGE",SN25,11/04/2022,"83,150.11"
16571298,Early Years Block,DSG Skills and Attainment,Free Nursery Education Commissioning - two year olds,3rd Party Payments,Contracts - Child Care,"BUSY BEES, ST ANDREWS RIDGE",SN25,11/04/2022,"2,296.32"
17189235,Museums & Heritage,Culture & Heritage,Steam:Education & Curatorial,Supplies and Services,Discretionary Costs,REDACTED PERSONAL DATA,SO30,13/04/2022,564.44
17322233,Learning Disabilities,Adults,Learning Disability 26 - 64,3rd Party Payments,Supported Accommodation Scheme,REDACTED PERSONAL DATA,SN3 ,20/04/2022,"2,171.02"
19957233,Responsive Repairs,Repairs,Responsive Repairs,Supplies and Services,Materials,C BREWER & SONS LTD,SN2 ,29/04/2022,192.72
19957233,Responsive Repairs,Repairs,Responsive Repairs,Supplies and Services,Materials,C BREWER & SONS LTD,SN2 ,29/04/2022,449.10
18425234,Learning Disabilities,Adults,Learning Disability 65 and over,3rd Party Payments,Residential Care,C.H.O.I.C.E LTD,RG12,22/04/2022,"7,981.56"
18424234,Learning Disabilities,Adults,Learning Disability 26 - 64,Income,Client Contribution - Residential,C.H.O.I.C.E LTD,RG12,22/04/2022,-423.00
18424234,Learning Disabilities,Adults,Learning Disability 26 - 64,3rd Party Payments,Residential Care,C.H.O.I.C.E LTD,RG12,22/04/2022,"6,433.64"
18425234,Learning Disabilities,Adults,Learning Disability 26 - 64,Income,Client Contribution - Residential,C.H.O.I.C.E LTD,RG12,22/04/2022,-391.00
18425236,Learning Disabilities,Adults,Learning Disability 26 - 64,Income,Client Contribution - Residential,C.H.O.I.C.E LTD,RG12,22/04/2022,-207.60
18425236,Learning Disabilities,Adults,Learning Disability 26 - 64,3rd Party Payments,Residential Care,C.H.O.I.C.E LTD,RG12,22/04/2022,"10,463.20"
18424233,Learning Disabilities,Adults,Learning Disability 26 - 64,3rd Party Payments,Residential Care,C.H.O.I.C.E LTD,RG12,22/04/2022,"8,753.48"
18425236,Learning Disabilities,Adults,Learning Disability 26 - 64,Income,Client Contribution - Residential,C.H.O.I.C.E LTD,RG12,22/04/2022,-414.20
18424235,Learning Disabilities,Adults,Learning Disability 26 - 64,Income,Client Contribution - Residential,C.H.O.I.C.E LTD,RG12,22/04/2022,-415.00
18425233,Learning Disabilities,Adults,Learning Disability 65 and over,3rd Party Payments,Residential Care,C.H.O.I.C.E LTD,RG12,22/04/2022,"8,467.76"
18425234,Learning Disabilities,Adults,Learning Disability 65 and over,Income,Client Contribution - Residential,C.H.O.I.C.E LTD,RG12,22/04/2022,-636.32
18425236,Physical Support,Adults,Physical Support 18 - 64,Income,Client Contribution - Residential,C.H.O.I.C.E LTD,RG12,22/04/2022,-414.20
18425236,Learning Disabilities,Adults,Learning Disability 26 - 64,3rd Party Payments,Residential Care,C.H.O.I.C.E LTD,RG12,22/04/2022,"11,174.56"
18425233,Learning Disabilities,Adults,Learning Disability 26 - 64,Income,Client Contribution - Residential,C.H.O.I.C.E LTD,RG12,22/04/2022,-595.32
18425234,Learning Disabilities,Adults,Learning Disability 65 and over,3rd Party Payments,Residential Care,C.H.O.I.C.E LTD,RG12,22/04/2022,"9,066.24"
18424233,Learning Disabilities,Adults,Learning Disability 26 - 64,Income,Client Contribution - Residential,C.H.O.I.C.E LTD,RG12,22/04/2022,-298.20
18425236,Physical Support,Adults,Physical Support 18 - 64,3rd Party Payments,Residential Care,C.H.O.I.C.E LTD,RG12,22/04/2022,"9,782.60"
18425233,Learning Disabilities,Adults,Learning Disability 65 and over,3rd Party Payments,Residential Care,C.H.O.I.C.E LTD,RG12,22/04/2022,"8,038.56"
18425233,Learning Disabilities,Adults,Learning Disability 65 and over,Income,Client Contribution - Residential,C.H.O.I.C.E LTD,RG12,22/04/2022,-607.60
18425235,Mental Health,Adults,Mental Health 18-64,3rd Party Payments,Residential Care,C.H.O.I.C.E LTD,RG12,22/04/2022,"7,598.64"
18424235,Learning Disabilities,Adults,Learning Disability 26 - 64,3rd Party Payments,Residential Care,C.H.O.I.C.E LTD,RG12,22/04/2022,"10,410.52"
18424234,Learning Disabilities,Adults,Learning Disability 26 - 64,3rd Party Payments,Residential Care,C.H.O.I.C.E LTD,RG12,22/04/2022,"6,412.20"
18425234,Learning Disabilities,Adults,Learning Disability 26 - 64,3rd Party Payments,Residential Care,C.H.O.I.C.E LTD,RG12,22/04/2022,"6,531.60"
18425234,Learning Disabilities,Adults,Learning Disability 65 and over,Income,Client Contribution - Residential,C.H.O.I.C.E LTD,RG12,22/04/2022,-550.84
14216233,Youth Offending,"Children, Families and Community Health Services",YJS - Effective Practise,Supplies and Services,Repairs & Maintenance,CACI LTD,W14 ,01/04/2022,"11,108.59"
17187233,Social Care,"Children, Families and Community Health Services",External Placements,3rd Party Payments,Residential Care,CALCOT SERVICES FOR CHILDREN LTD,RG7 ,13/04/2022,"22,200.00"
19574233,Social Care,"Children, Families and Community Health Services",External Placements,3rd Party Payments,Residential Care,CALCOT SERVICES FOR CHILDREN LTD,RG7 ,29/04/2022,"28,928.40"
19575233,Social Care,"Children, Families and Community Health Services",External Placements,3rd Party Payments,Residential Care,CALCOT SERVICES FOR CHILDREN LTD,RG7 ,29/04/2022,"28,414.20"
20105613,Learning Disabilities,Adults,Learning Disability 26 - 64,Transfer Payments,Personal Budget - Direct Payments - Domiciliary Care,REDACTED PERSONAL DATA,SP11,29/04/2022,"1,844.31"
20105614,Learning Disabilities,Adults,Learning Disability 26 - 64,Transfer Payments,Personal Budget - Direct Payments - Domiciliary Care,REDACTED PERSONAL DATA,SP11,29/04/2022,"1,097.95"
20105788,Learning Disabilities,Adults,Learning Disability 26 - 64,Transfer Payments,Personal Budget - Direct Payments - Domiciliary Care,REDACTED PERSONAL DATA,SP11,29/04/2022,631.33
17185233,Social Care,"Children, Families and Community Health Services",External Placements,3rd Party Payments,Residential Care,CAMBIAN CHILDCARE LTD,EN6 ,13/04/2022,"23,691.30"
17184233,Social Care,"Children, Families and Community Health Services",External Placements,3rd Party Payments,Residential Care,CAMBIAN CHILDCARE LTD,EN6 ,13/04/2022,"25,427.10"
19556233,DSG Other Funding,DSG Skills and Attainment,LAC pupil premium,Supplies and Services,Services,REDACTED PERSONAL DATA,EN6 ,29/04/2022,850.00
20234233,High Needs Block,DSG Skills and Attainment,Out of Borough School Fees,3rd Party Payments,OLA Special schools- Pre 16,CAMBRIDGESHIRE COUNTY COUNCIL,CB3 ,29/04/2022,"1,834.30"
20020235,Physical Support,Adults,Physical Support 18 - 64,Transfer Payments,Personal Budget - Direct Payments - Domiciliary Care,REDACTED PERSONAL DATA,SN25,29/04/2022,832.29
17889233,Planned Maintenance Programme,HRA Capital Financing,Aids & Adaptations,Capital,Contractor Payments,CANTILLON GROUP LTD,SN5 ,20/04/2022,"4,889.10"
18303234,Planned Maintenance Programme,HRA Capital Financing,Aids & Adaptations,Capital,Contractor Payments,CANTILLON GROUP LTD,SN25,22/04/2022,"5,255.29"
18303234,Planned Maintenance Programme,HRA Capital Financing,Aids & Adaptations,Capital,Contractor Payments,CANTILLON GROUP LTD,SN25,22/04/2022,"5,432.15"
18303234,Planned Maintenance Programme,HRA Capital Financing,Aids & Adaptations,Capital,Contractor Payments,CANTILLON GROUP LTD,SN25,22/04/2022,"5,566.38"
17889233,Planned Maintenance Programme,HRA Capital Financing,Aids & Adaptations,Capital,Contractor Payments,CANTILLON GROUP LTD,SN5 ,20/04/2022,"5,659.43"
18303234,Planned Maintenance Programme,HRA Capital Financing,Bathrooms,Capital,Contractor Payments,CANTILLON GROUP LTD,SN25,22/04/2022,"5,009.03"
18303234,Planned Maintenance Programme,HRA Capital Financing,Aids & Adaptations,Capital,Contractor Payments,CANTILLON GROUP LTD,SN25,22/04/2022,"3,373.53"
17889233,Planned Maintenance Programme,HRA Capital Financing,Aids & Adaptations,Capital,Contractor Payments,CANTILLON GROUP LTD,SN5 ,20/04/2022,"4,603.87"
18303234,Planned Maintenance Programme,HRA Capital Financing,Aids & Adaptations,Capital,Contractor Payments,CANTILLON GROUP LTD,SN25,22/04/2022,"4,807.89"
17889233,Planned Maintenance Programme,HRA Capital Financing,Aids & Adaptations,Capital,Contractor Payments,CANTILLON GROUP LTD,SN5 ,20/04/2022,"4,897.61"
17889233,Planned Maintenance Programme,HRA Capital Financing,Aids & Adaptations,Capital,Contractor Payments,CANTILLON GROUP LTD,SN5 ,20/04/2022,"5,413.19"
18303234,Planned Maintenance Programme,HRA Capital Financing,Aids & Adaptations,Capital,Contractor Payments,CANTILLON GROUP LTD,SN25,22/04/2022,"-20,000.00"
17889233,Planned Maintenance Programme,HRA Capital Financing,Aids & Adaptations,Capital,Contractor Payments,CANTILLON GROUP LTD,SN5 ,20/04/2022,"9,784.66"
17889233,Planned Maintenance Programme,HRA Capital Financing,Aids & Adaptations,Capital,Contractor Payments,CANTILLON GROUP LTD,SN5 ,20/04/2022,"4,860.67"
17889233,Planned Maintenance Programme,HRA Capital Financing,Aids & Adaptations,Capital,Contractor Payments,CANTILLON GROUP LTD,SN5 ,20/04/2022,"4,906.52"
17889233,Planned Maintenance Programme,HRA Capital Financing,Bathrooms,Capital,Contractor Payments,CANTILLON GROUP LTD,SN5 ,20/04/2022,"3,842.47"
18303234,Planned Maintenance Programme,HRA Capital Financing,Bathrooms,Capital,Contractor Payments,CANTILLON GROUP LTD,SN25,22/04/2022,"4,250.31"
18303234,Planned Maintenance Programme,HRA Capital Financing,Aids & Adaptations,Capital,Contractor Payments,CANTILLON GROUP LTD,SN25,22/04/2022,"20,000.00"
18303234,Planned Maintenance Programme,HRA Capital Financing,Aids & Adaptations,Capital,Contractor Payments,CANTILLON GROUP LTD,SN25,22/04/2022,"4,889.46"
17889233,Planned Maintenance Programme,HRA Capital Financing,Aids & Adaptations,Capital,Contractor Payments,CANTILLON GROUP LTD,SN5 ,20/04/2022,"4,807.89"
18303234,Planned Maintenance Programme,HRA Capital Financing,Aids & Adaptations,Capital,Contractor Payments,CANTILLON GROUP LTD,SN25,22/04/2022,"3,024.36"
18303234,Planned Maintenance Programme,HRA Capital Financing,Aids & Adaptations,Capital,Contractor Payments,CANTILLON GROUP LTD,SN25,22/04/2022,"5,812.19"
18303234,Planned Maintenance Programme,HRA Capital Financing,Aids & Adaptations,Capital,Contractor Payments,CANTILLON GROUP LTD,SN25,22/04/2022,"6,648.05"
17889233,Planned Maintenance Programme,HRA Capital Financing,Aids & Adaptations,Capital,Contractor Payments,CANTILLON GROUP LTD,SN5 ,20/04/2022,"-20,000.00"
17889233,Planned Maintenance Programme,HRA Capital Financing,Aids & Adaptations,Capital,Contractor Payments,CANTILLON GROUP LTD,SN5 ,20/04/2022,"20,000.00"
17889233,Planned Maintenance Programme,HRA Capital Financing,Aids & Adaptations,Capital,Contractor Payments,CANTILLON GROUP LTD,SN5 ,20/04/2022,"5,231.15"
17168233,Business Development,Supervision & Management,ICT & Administration,Supplies and Services,License Costs,CAPITA BUSINESS SERVICES LTD,DL1 ,13/04/2022,"47,786.38"
14747233,Digital & Business Change,Digital & Business Change,IT Operations,3rd Party Payments,Capita Strategic Partnership Service Charges,CAPITA BUSINESS SERVICES LTD,DL1 ,06/04/2022,"13,659.44"
14748233,Digital & Business Change,Digital & Business Change,IT Operations,3rd Party Payments,Capita Strategic Partnership Service Charges,CAPITA BUSINESS SERVICES LTD,DL1 ,04/04/2022,"13,659.44"
17860233,Business Development,Supervision & Management,ICT & Administration,3rd Party Payments,Contract Payments,CAPITA BUSINESS SERVICES LTD,DL1 ,20/04/2022,"12,528.62"
18075234,Revenues & Benefits,Revenues & Benefits,Revenues,3rd Party Payments,Capita Strategic Partnership Service Charges,CAPITA BUSINESS SERVICES LTD,DL1 ,20/04/2022,800.00
18075234,Revenues & Benefits,Revenues & Benefits,Benefits,3rd Party Payments,Capita Strategic Partnership Service Charges,CAPITA BUSINESS SERVICES LTD,DL1 ,20/04/2022,"2,613.00"
18075234,Revenues & Benefits,Revenues & Benefits,Revenues,3rd Party Payments,Capita Strategic Partnership Service Charges,CAPITA BUSINESS SERVICES LTD,DL1 ,20/04/2022,"12,838.24"
18075234,Revenues & Benefits,Revenues & Benefits,Revenues,3rd Party Payments,Capita Strategic Partnership Service Charges,CAPITA BUSINESS SERVICES LTD,DL1 ,20/04/2022,"110,984.36"
18075234,Revenues & Benefits,Revenues & Benefits,Benefits,3rd Party Payments,Capita Strategic Partnership Service Charges,CAPITA BUSINESS SERVICES LTD,DL1 ,20/04/2022,"196,361.57"
17814233,Human Resources and Organisational Development,"People, Culture and Organisational Resilience",Human Resources Operations,Supplies and Services,Fees,CAPITA RESOURCING LTD,RG22,20/04/2022,"2,069.00"
17814233,Human Resources and Organisational Development,"People, Culture and Organisational Resilience",Human Resources Operations,Supplies and Services,Fees,CAPITA RESOURCING LTD,RG22,20/04/2022,549.85
17813233,Human Resources and Organisational Development,"People, Culture and Organisational Resilience",Human Resources Operations,Supplies and Services,Fees,CAPITA RESOURCING LTD,RG22,20/04/2022,770.85
17813233,Human Resources and Organisational Development,"People, Culture and Organisational Resilience",Human Resources Operations,Supplies and Services,Fees,CAPITA RESOURCING LTD,RG22,20/04/2022,"2,864.00"
19390233,Disabled Children,"Children, Families and Community Health Services",ICES Paediatric,Supplies and Services,Equipment,CARE & INDEPENDENCE SYSTEMS LTD,OX26,27/04/2022,"1,076.50"
16037233,Human Resources and Organisational Development,"People, Culture and Organisational Resilience",Human Resources Operations,Employees,Employee Related Schemes,CARE FIRST,GL3 ,08/04/2022,"5,450.50"
18416236,Learning Disabilities,Adults,Learning Disability 65 and over,Income,Client Contribution - Residential,CARE LTD,BS16,22/04/2022,-855.00
18416236,Learning Disabilities,Adults,Learning Disability 65 and over,3rd Party Payments,Residential Care,CARE LTD,BS16,22/04/2022,"6,192.64"
17559233,Physical Support,Adults,Fessey House,Supplies and Services,Services,CARE QUALITY COMMISSION,WF3 ,20/04/2022,"3,932.00"
17559233,Learning Disabilities,Adults,Firethorn Close,Supplies and Services,Services,CARE QUALITY COMMISSION,WF3 ,20/04/2022,891.00
17559233,Physical Support,Adults,Fessey House,Supplies and Services,Services,CARE QUALITY COMMISSION,WF3 ,20/04/2022,"11,050.00"
17559233,Learning Disabilities,Adults,Firethorn Close,Supplies and Services,Services,CARE QUALITY COMMISSION,WF3 ,20/04/2022,"1,634.00"
17559233,Learning Disabilities,Adults,Service Delivery LD,Supplies and Services,Services,CARE QUALITY COMMISSION,WF3 ,20/04/2022,"3,497.00"
17559233,Physical Support,Adults,Whitbourne House,Supplies and Services,Services,CARE QUALITY COMMISSION,WF3 ,20/04/2022,"6,533.00"
16597244,Physical Support,Adults,Physical Support 65 and over,3rd Party Payments,Personal Budget - Domiciliary care,CAREWATCH (SWINDON),BA14,13/04/2022,"1,214.64"
16596234,Physical Support,Adults,Physical Support 65 and over,3rd Party Payments,Personal Budget - Domiciliary care,CAREWATCH (SWINDON),BA14,13/04/2022,809.76
16597246,Physical Support,Adults,Physical Support 65 and over,3rd Party Payments,Personal Budget - Domiciliary care,CAREWATCH (SWINDON),BA14,13/04/2022,539.84
16597243,Physical Support,Adults,Physical Support 65 and over,3rd Party Payments,Personal Budget - Domiciliary care,CAREWATCH (SWINDON),BA14,13/04/2022,"1,233.92"
16597251,Physical Support,Adults,Physical Support 65 and over,3rd Party Payments,Personal Budget - Domiciliary care,CAREWATCH (SWINDON),BA14,13/04/2022,"2,236.48"
16597248,Physical Support,Adults,Physical Support 18 - 64,3rd Party Payments,Personal Budget - Domiciliary care,CAREWATCH (SWINDON),BA14,13/04/2022,"2,863.08"
16597242,Physical Support,Adults,Physical Support 65 and over,3rd Party Payments,Personal Budget - Domiciliary care,CAREWATCH (SWINDON),BA14,13/04/2022,"2,892.00"
16594233,Physical Support,Adults,Physical Support 65 and over,3rd Party Payments,Carers,CAREWATCH (SWINDON),BA14,13/04/2022,616.96
16597250,Physical Support,Adults,Physical Support 65 and over,3rd Party Payments,Personal Budget - Domiciliary care,CAREWATCH (SWINDON),BA14,13/04/2022,"1,349.60"
16595233,Physical Support,Adults,Physical Support 65 and over,3rd Party Payments,Personal Budget - Domiciliary care,CAREWATCH (SWINDON),BA14,13/04/2022,"3,094.44"
16593234,Physical Support,Adults,Physical Support 65 and over,3rd Party Payments,Personal Budget - Domiciliary care,CAREWATCH (SWINDON),BA14,13/04/2022,790.48
16597235,Physical Support,Adults,Physical Support 65 and over,3rd Party Payments,Personal Budget - Domiciliary care,CAREWATCH (SWINDON),BA14,13/04/2022,751.92
16597238,Physical Support,Adults,Physical Support 65 and over,3rd Party Payments,Personal Budget - Domiciliary care,CAREWATCH (SWINDON),BA14,13/04/2022,"2,429.28"
17175233,Social Care,"Children, Families and Community Health Services",External Placements,3rd Party Payments,Residential Care,CARING FEATHERS LTD,NW10,13/04/2022,"6,685.71"
17679233,Social Care,"Children, Families and Community Health Services",Placement - Care Leaver Team,Transport Costs,Client Costs of Public Transport,CARING FOR COMMUNITIES AND PEOPLE (CCP),GL50,20/04/2022,409.00
16006233,Disabled Children,"Children, Families and Community Health Services",DCT Daytime Short Breaks,3rd Party Payments,Respite Care,CARING FOR COMMUNITIES AND PEOPLE (CCP),GL50,08/04/2022,942.60
17679233,Social Care,"Children, Families and Community Health Services",Placement - Care Leaver Team,3rd Party Payments,Cash Support,CARING FOR COMMUNITIES AND PEOPLE (CCP),GL50,20/04/2022,231.60
18048234,Physical Support,Adults,Physical Support 65 and over,3rd Party Payments,Personal Budget - Domiciliary care,CARING HEART CARERS LIMITED,SN25,20/04/2022,849.44
16021233,Physical Support,Adults,Physical Support 18 - 64,3rd Party Payments,Personal Budget - Domiciliary care,CARING HEART CARERS LIMITED,SN25,08/04/2022,925.44
16021234,Physical Support,Adults,Physical Support 65 and over,3rd Party Payments,Personal Budget - Domiciliary care,CARING HEART CARERS LIMITED,SN25,08/04/2022,"1,002.56"
16021235,Physical Support,Adults,Physical Support 18 - 64,3rd Party Payments,Personal Budget - Domiciliary care,CARING HEART CARERS LIMITED,SN25,08/04/2022,964.00
20105238,Learning Disabilities,Adults,Learning Disability 26 - 64,Transfer Payments,Personal Budget - Direct Payments - Domiciliary Care,REDACTED PERSONAL DATA,SN2 ,29/04/2022,"2,357.18"
20105239,Learning Disabilities,Adults,Learning Disability 26 - 64,Transfer Payments,Personal Budget - Direct Payments - Domiciliary Care,REDACTED PERSONAL DATA,SN2 ,29/04/2022,"1,879.89"
18081233,Early Years Block,DSG Skills and Attainment,Free Nursery Education Commissioning - three & four  year olds,3rd Party Payments,Contracts - Child Care,REDACTED PERSONAL DATA,SN25,20/04/2022,611.49
16571304,Early Years Block,DSG Skills and Attainment,Free Nursery Education Commissioning - three & four  year olds,3rd Party Payments,Contracts - Child Care,REDACTED PERSONAL DATA,SN25,11/04/2022,"1,588.11"
16571303,Early Years Block,DSG Skills and Attainment,Free Nursery Education Commissioning - three & four  year olds,3rd Party Payments,Contracts - Child Care,REDACTED PERSONAL DATA,SN4 ,11/04/2022,"2,142.40"
18530249,Disabled Children,"Children, Families and Community Health Services",DCT Daytime Short Breaks,Transfer Payments,Personal Budget - Direct Payments - Other,REDACTED PERSONAL DATA,SN2 ,25/04/2022,"3,123.00"
20105699,Learning Disabilities,Adults,Learning Disability 26 - 64,Transfer Payments,Direct Payments - ILF,REDACTED PERSONAL DATA,SN2 ,29/04/2022,"1,864.74"
20105698,Learning Disabilities,Adults,Learning Disability 26 - 64,Transfer Payments,Personal Budget - Direct Payments - Domiciliary Care,REDACTED PERSONAL DATA,SN2 ,29/04/2022,"1,755.30"
16500236,Early Years Block,DSG Skills and Attainment,Free Nursery Education Commissioning - three & four  year olds,3rd Party Payments,Contracts - Child Care,REDACTED PERSONAL DATA,SN3 ,11/04/2022,681.09
18524233,Social Care,"Children, Families and Community Health Services",Legal Fees,Supplies and Services,Fees,CARTER BROWN LTD,B15 ,22/04/2022,822.10
19011233,Highways & Transport,Highways & Transport,Traffic Management & Road Safety,Supplies and Services,Services,CARYN KOH ART,SN25,27/04/2022,"1,026.00"
20105270,Learning Disabilities,Adults,Learning Disability 26 - 64,Transfer Payments,Personal Budget - Direct Payments - Domiciliary Care,REDACTED PERSONAL DATA,SN6 ,29/04/2022,"2,562.99"
16041233,Traded Services,Inclusion and Achievement,Plas Pencelli Outdoor Education Centre,Supplies and Services,Materials,CASTELL HOWELL FOOD LIMITED,SA14,08/04/2022,274.61
14400233,Traded Services,Inclusion and Achievement,Plas Pencelli Outdoor Education Centre,Supplies and Services,Materials,CASTELL HOWELL FOOD LIMITED,SA14,01/04/2022,"1,283.80"
15475233,Traded Services,Inclusion and Achievement,Plas Pencelli Outdoor Education Centre,Supplies and Services,Materials,CASTELL HOWELL FOOD LIMITED,SA14,06/04/2022,749.76
16041233,Traded Services,Inclusion and Achievement,Plas Pencelli Outdoor Education Centre,Supplies and Services,Materials,CASTELL HOWELL FOOD LIMITED,SA14,08/04/2022,"1,236.13"
15475233,Traded Services,Inclusion and Achievement,Plas Pencelli Outdoor Education Centre,Supplies and Services,Materials,CASTELL HOWELL FOOD LIMITED,SA14,06/04/2022,"1,935.47"
14400233,Traded Services,Inclusion and Achievement,Plas Pencelli Outdoor Education Centre,Supplies and Services,Materials,CASTELL HOWELL FOOD LIMITED,SA14,01/04/2022,493.83
15616233,Treasury,Corporate Finance,Private Finance Initiatives (PFI),Supplies and Services,Contracts,CASTLE GATE LEGAL & COMMERCIAL LTD,NG12,08/04/2022,500.00
17317233,,,Balance Sheet,Balance Sheet & Recharge,Water invoices,CASTLE WATER LTD,PH10,20/04/2022,"17,953.37"
15496233,Social Care,"Children, Families and Community Health Services",No Recourse to Public Funds,3rd Party Payments,No Recourse to Public Funds,CASTLES ESTATE AGENTS & MORTGAGE SERVICES LTD,SN1 ,13/04/2022,750.00
15494233,Social Care,"Children, Families and Community Health Services",No Recourse to Public Funds,3rd Party Payments,No Recourse to Public Funds,CASTLES ESTATE AGENTS & MORTGAGE SERVICES LTD,SN1 ,06/04/2022,750.00
15969233,Social Care,"Children, Families and Community Health Services",Care Leavers Team,3rd Party Payments,Personal Needs,CATCH22,TN16,08/04/2022,"2,995.00"
18418241,Learning Disabilities,Adults,Learning Disability 26 - 64,Income,Client Contribution - Residential,CATHEDRAL HOMES,GL1 ,22/04/2022,-414.20
18418241,Learning Disabilities,Adults,Learning Disability 26 - 64,3rd Party Payments,Residential Care,CATHEDRAL HOMES,GL1 ,22/04/2022,"5,002.12"
18418241,Learning Disabilities,Adults,Learning Disability 26 - 64,3rd Party Payments,Residential Care,CATHEDRAL HOMES,GL1 ,22/04/2022,"5,669.08"
19905233,Museums & Heritage,Culture & Heritage,Steam:Operations,Supplies and Services,Contracts,CATHEDRAL LEASING LIMITED,B77 ,29/04/2022,"1,089.48"
16500239,Early Years Block,DSG Skills and Attainment,Free Nursery Education Commissioning - three & four  year olds,3rd Party Payments,Contracts - Child Care,REDACTED PERSONAL DATA,SN5 ,11/04/2022,513.24
17350233,Learning Disabilities,Adults,Learning Disability 26 - 64,3rd Party Payments,Supported Accommodation Scheme,REDACTED PERSONAL DATA,SN6 ,20/04/2022,"2,598.38"
17350233,Learning Disabilities,Adults,Learning Disability 26 - 64,3rd Party Payments,Supported Accommodation Scheme,REDACTED PERSONAL DATA,SN6 ,20/04/2022,"1,762.00"
17350233,Learning Disabilities,Adults,Learning Disability 26 - 64,3rd Party Payments,Supported Accommodation Scheme,REDACTED PERSONAL DATA,SN6 ,20/04/2022,"2,171.02"
17180233,Social Care,"Children, Families and Community Health Services",External Placements,3rd Party Payments,Residential Care,CAUSEWAY CARE HOMES LTD,RG30,13/04/2022,"15,000.00"
14631239,Physical Support,Adults,Physical Support 65 and over,3rd Party Payments,Personal Budget - Domiciliary care,CELTIC CARE SERVICES LTD,SN15,06/04/2022,"1,079.68"
14631236,Physical Support,Adults,Physical Support 65 and over,3rd Party Payments,Personal Budget - Domiciliary care,CELTIC CARE SERVICES LTD,SN15,06/04/2022,"2,429.28"
14631238,Physical Support,Adults,Physical Support 65 and over,3rd Party Payments,Personal Budget - Domiciliary care,CELTIC CARE SERVICES LTD,SN15,06/04/2022,"1,542.40"
14631241,Physical Support,Adults,Physical Support 65 and over,3rd Party Payments,Personal Budget - Domiciliary care,CELTIC CARE SERVICES LTD,SN15,06/04/2022,"1,330.32"
19280233,Physical Support,Adults,Physical Support 65 and over,3rd Party Payments,Personal Budget - Domiciliary care,CELTIC CARE SERVICES LTD,SN15,27/04/2022,"1,417.38"
19279233,Physical Support,Adults,Physical Support 65 and over,3rd Party Payments,Personal Budget - Domiciliary care,CELTIC CARE SERVICES LTD,SN15,27/04/2022,"1,435.60"
19278235,Physical Support,Adults,Physical Support 65 and over,3rd Party Payments,Personal Budget - Domiciliary care,CELTIC CARE SERVICES LTD,SN15,27/04/2022,"1,635.60"
19282233,Mental Health,Adults,Mental Health 65 and over,3rd Party Payments,Personal Budget - Domiciliary care,CELTIC CARE SERVICES LTD,SN15,27/04/2022,574.24
14631237,Mental Health,Adults,Mental Health 65 and over,3rd Party Payments,Personal Budget - Domiciliary care,CELTIC CARE SERVICES LTD,SN15,06/04/2022,539.84
14631240,Physical Support,Adults,Physical Support 65 and over,3rd Party Payments,Personal Budget - Domiciliary care,CELTIC CARE SERVICES LTD,SN15,06/04/2022,"1,349.60"
19278234,Physical Support,Adults,Physical Support 65 and over,3rd Party Payments,Personal Budget - Domiciliary care,CELTIC CARE SERVICES LTD,SN15,27/04/2022,"2,584.08"
16571309,Early Years Block,DSG Skills and Attainment,Free Nursery Education Commissioning - two year olds,3rd Party Payments,Contracts - Child Care,CENTRAL PRE-SCHOOL,SN1 ,11/04/2022,"4,994.50"
16571308,Early Years Block,DSG Skills and Attainment,Free Nursery Education Commissioning - three & four  year olds,3rd Party Payments,Contracts - Child Care,CENTRAL PRE-SCHOOL,SN1 ,11/04/2022,"29,760.48"
15080233,Highways & Transport,Highways & Transport,Rights of Way (ROW),Supplies and Services,Repairs & Maintenance,CENTREWIRE LTD,ST3 ,06/04/2022,"2,466.00"
14854233,Public Health,Public Health,Contain Outbreak Management Fund (COMF),Supplies and Services,Services,CHAMELEON PDE (INACTIVE SEE 6137602),CA6 ,04/04/2022,"6,400.00"
19031235,Lydiard Park,Streetsmart,Lydiard : Hotel Operations,Supplies and Services,Hire / Rental,CHAMPIONS (UK) PLC,LE12,27/04/2022,"3,125.00"
19942233,Lydiard Park,Streetsmart,Lydiard : Forest Caf�,Supplies and Services,Food,CHAPPLE & JENKINS LTD,BS15,29/04/2022,8.94
19938234,Facilities Management,"People, Culture and Organisational Resilience",Waterside Canteen,Supplies and Services,Confectionary,CHAPPLE & JENKINS LTD,BS15,29/04/2022,511.01
16451233,Lydiard Park,Streetsmart,Lydiard : Forest Caf�,Supplies and Services,Food,CHAPPLE & JENKINS LTD,BS15,11/04/2022,54.16
19942233,Lydiard Park,Streetsmart,Lydiard : Forest Caf�,Supplies and Services,Confectionary,CHAPPLE & JENKINS LTD,BS15,29/04/2022,773.17
16394233,Lydiard Park,Streetsmart,Lydiard : Forest Caf�,Supplies and Services,Confectionary,CHAPPLE & JENKINS LTD,BS15,11/04/2022,501.87
16451233,Lydiard Park,Streetsmart,Lydiard : Forest Caf�,Supplies and Services,Confectionary,CHAPPLE & JENKINS LTD,BS15,11/04/2022,84.59
16451233,Lydiard Park,Streetsmart,Lydiard : Forest Caf�,Supplies and Services,Confectionary,CHAPPLE & JENKINS LTD,BS15,11/04/2022,739.62
16394233,Lydiard Park,Streetsmart,Lydiard : Forest Caf�,Supplies and Services,Food,CHAPPLE & JENKINS LTD,BS15,11/04/2022,24.99
19942233,Lydiard Park,Streetsmart,Lydiard : Forest Caf�,Supplies and Services,Confectionary,CHAPPLE & JENKINS LTD,BS15,29/04/2022,68.74
16394233,Lydiard Park,Streetsmart,Lydiard : Forest Caf�,Supplies and Services,Confectionary,CHAPPLE & JENKINS LTD,BS15,11/04/2022,14.96
16454233,Learning Disabilities,Adults,Firethorn Close,Supplies and Services,Materials,CHARLES FARRIS LTD,BA12,11/04/2022,480.00
15359233,Void Repairs,Supervision & Management,Void Property Repairs,3rd Party Payments,Contract Payments,CHARLES HARDING ESTATE AGENTS LIMITED,SN1 ,06/04/2022,35.00
20201234,Other Repairs,Repairs,Unallocated job costs from OPEN system,Premises Costs,Repairs - Buildings,CHARLES HARDING ESTATE AGENTS LIMITED,SN1 ,29/04/2022,30.00
15619233,Void Repairs,Supervision & Management,Void Property Repairs,3rd Party Payments,Contract Payments,CHARLES HARDING ESTATE AGENTS LIMITED,SN1 ,08/04/2022,35.00
16686233,Physical Support,Adults,Fessey House,Supplies and Services,Food,CHARLES SAUNDERS LTD,BS37,13/04/2022,271.41
19937233,Lydiard Park,Streetsmart,Lydiard : Forest Caf�,Supplies and Services,Confectionary,CHARLES SAUNDERS LTD,BS37,29/04/2022,288.55
16577233,Lydiard Park,Streetsmart,Lydiard : Forest Caf�,Supplies and Services,Food,CHARLES SAUNDERS LTD,BS37,13/04/2022,14.32
16577233,Lydiard Park,Streetsmart,Lydiard : Forest Caf�,Supplies and Services,Food,CHARLES SAUNDERS LTD,BS37,13/04/2022,500.83
19876233,Lydiard Park,Streetsmart,Lydiard : Coach House Caf�,Supplies and Services,Food,CHARLES SAUNDERS LTD,BS37,29/04/2022,83.71
19876233,Lydiard Park,Streetsmart,Lydiard : Coach House Caf�,Supplies and Services,Confectionary,CHARLES SAUNDERS LTD,BS37,29/04/2022,67.00
16684233,Physical Support,Adults,Fessey House,Supplies and Services,Food,CHARLES SAUNDERS LTD,BS37,13/04/2022,692.74
19882233,Lydiard Park,Streetsmart,Lydiard : Forest Caf�,Supplies and Services,Confectionary,CHARLES SAUNDERS LTD,BS37,29/04/2022,72.66
19937233,Lydiard Park,Streetsmart,Lydiard : Forest Caf�,Supplies and Services,Confectionary,CHARLES SAUNDERS LTD,BS37,29/04/2022,"2,627.04"
16613233,Lydiard Park,Streetsmart,Lydiard : Forest Caf�,Supplies and Services,Confectionary,CHARLES SAUNDERS LTD,BS37,13/04/2022,40.54
16330233,Lydiard Park,Streetsmart,Lydiard : Forest Caf�,Supplies and Services,Confectionary,CHARLES SAUNDERS LTD,BS37,11/04/2022,"1,473.28"
16613233,Lydiard Park,Streetsmart,Lydiard : Forest Caf�,Supplies and Services,Food,CHARLES SAUNDERS LTD,BS37,13/04/2022,379.11
18562233,Physical Support,Adults,Fessey House,Supplies and Services,Food,CHARLES SAUNDERS LTD,BS37,25/04/2022,161.27
18562233,Physical Support,Adults,Fessey House,Supplies and Services,Food,CHARLES SAUNDERS LTD,BS37,25/04/2022,677.42
16683233,Physical Support,Adults,Fessey House,Supplies and Services,Food,CHARLES SAUNDERS LTD,BS37,13/04/2022,62.29
16684233,Physical Support,Adults,Fessey House,Supplies and Services,Food,CHARLES SAUNDERS LTD,BS37,13/04/2022,92.93
16577233,Lydiard Park,Streetsmart,Lydiard : Forest Caf�,Supplies and Services,Confectionary,CHARLES SAUNDERS LTD,BS37,13/04/2022,35.46
19937233,Lydiard Park,Streetsmart,Lydiard : Forest Caf�,Supplies and Services,Food,CHARLES SAUNDERS LTD,BS37,29/04/2022,459.65
19881233,Facilities Management,"People, Culture and Organisational Resilience",Waterside Canteen,Supplies and Services,Food,CHARLES SAUNDERS LTD,BS37,29/04/2022,709.85
16613233,Lydiard Park,Streetsmart,Lydiard : Forest Caf�,Supplies and Services,Confectionary,CHARLES SAUNDERS LTD,BS37,13/04/2022,577.10
16577233,Lydiard Park,Streetsmart,Lydiard : Forest Caf�,Supplies and Services,Confectionary,CHARLES SAUNDERS LTD,BS37,13/04/2022,203.88
14796233,Lydiard Park,Streetsmart,Lydiard : Forest Caf�,Supplies and Services,Food,CHARLES SAUNDERS LTD,BS37,04/04/2022,291.79
19876233,Lydiard Park,Streetsmart,Lydiard : Coach House Caf�,Supplies and Services,Confectionary,CHARLES SAUNDERS LTD,BS37,29/04/2022,360.04
14820233,Lydiard Park,Streetsmart,Lydiard : Coach House Caf�,Supplies and Services,Confectionary,CHARLES SAUNDERS LTD,BS37,04/04/2022,147.70
16686233,Physical Support,Adults,Fessey House,Supplies and Services,Food,CHARLES SAUNDERS LTD,BS37,13/04/2022,843.96
16683233,Physical Support,Adults,Fessey House,Supplies and Services,Food,CHARLES SAUNDERS LTD,BS37,13/04/2022,961.97
19882233,Lydiard Park,Streetsmart,Lydiard : Forest Caf�,Supplies and Services,Food,CHARLES SAUNDERS LTD,BS37,29/04/2022,22.54
19882233,Lydiard Park,Streetsmart,Lydiard : Forest Caf�,Supplies and Services,Food,CHARLES SAUNDERS LTD,BS37,29/04/2022,"1,276.12"
14820233,Lydiard Park,Streetsmart,Lydiard : Coach House Caf�,Supplies and Services,Confectionary,CHARLES SAUNDERS LTD,BS37,04/04/2022,362.84
14820233,Lydiard Park,Streetsmart,Lydiard : Coach House Caf�,Supplies and Services,Food,CHARLES SAUNDERS LTD,BS37,04/04/2022,88.95
18561233,Physical Support,Adults,Fessey House,Supplies and Services,Food,CHARLES SAUNDERS LTD,BS37,25/04/2022,928.74
14796233,Lydiard Park,Streetsmart,Lydiard : Forest Caf�,Supplies and Services,Confectionary,CHARLES SAUNDERS LTD,BS37,04/04/2022,"1,070.37"
16330233,Lydiard Park,Streetsmart,Lydiard : Forest Caf�,Supplies and Services,Food,CHARLES SAUNDERS LTD,BS37,11/04/2022,228.23
18561233,Physical Support,Adults,Fessey House,Supplies and Services,Food,CHARLES SAUNDERS LTD,BS37,25/04/2022,59.77
16571542,Early Years Block,DSG Skills and Attainment,Free Nursery Education Commissioning - three & four  year olds,3rd Party Payments,Contracts - Child Care,CHEEKY CHIMPS,SN2 ,11/04/2022,"65,354.10"
16571543,Early Years Block,DSG Skills and Attainment,Free Nursery Education Commissioning - two year olds,3rd Party Payments,Contracts - Child Care,CHEEKY CHIMPS,SN2 ,11/04/2022,"6,027.84"
16571544,Early Years Block,DSG Skills and Attainment,Free Nursery Education Commissioning - three & four  year olds,3rd Party Payments,Contracts - Child Care,CHEEKY CHIMPS,SN2 ,11/04/2022,"1,240.04"
16571545,Early Years Block,DSG Skills and Attainment,Free Nursery Education Commissioning - three & four  year olds,3rd Party Payments,Contracts - Child Care,CHEEKY CHIMPS,SN2 ,11/04/2022,982.67
18338233,High Needs Block,DSG Skills and Attainment,SEND Support,Supplies and Services,Payments to Educational Bodies,CHEEKY CHIMPS,SN2 ,22/04/2022,760.00
18340242,High Needs Block,DSG Skills and Attainment,SEND Support,Supplies and Services,Payments to Educational Bodies,CHEEKY CHIMPS,SN2 ,22/04/2022,"3,040.00"
18415233,Physical Support,Adults,Physical Support 65 and over,Income,Client Contribution - Nursing,CHERITON (SW CARE) LTD,GL52,22/04/2022,42.53
18415233,Physical Support,Adults,Physical Support 65 and over,Income,Client Contribution - Nursing,CHERITON (SW CARE) LTD,GL52,22/04/2022,"-1,479.52"
18415233,Physical Support,Adults,Physical Support 65 and over,3rd Party Payments,Residential Care,CHERITON (SW CARE) LTD,GL52,22/04/2022,"2,560.12"
18415233,Physical Support,Adults,Physical Support 65 and over,3rd Party Payments,Residential Care,CHERITON (SW CARE) LTD,GL52,22/04/2022,"1,554.36"
18415233,Physical Support,Adults,Physical Support 65 and over,Income,Client Contribution - Residential,CHERITON (SW CARE) LTD,GL52,22/04/2022,-608.80
18415233,Physical Support,Adults,Physical Support 65 and over,Income,Client Contribution - Residential,CHERITON (SW CARE) LTD,GL52,22/04/2022,-605.40
18415233,Physical Support,Adults,Physical Support 65 and over,3rd Party Payments,Nursing Care,CHERITON (SW CARE) LTD,GL52,22/04/2022,"-4,110.90"
18415233,Physical Support,Adults,Physical Support 65 and over,Income,Client Contribution - Nursing,CHERITON (SW CARE) LTD,GL52,22/04/2022,-678.48
18415233,Physical Support,Adults,Physical Support 18 - 64,3rd Party Payments,Residential Care,CHERITON (SW CARE) LTD,GL52,22/04/2022,"2,270.52"
18415233,Physical Support,Adults,Physical Support 65 and over,Income,Client Contribution - Residential,CHERITON (SW CARE) LTD,GL52,22/04/2022,-610.00
18415233,Physical Support,Adults,Physical Support 65 and over,3rd Party Payments,Residential Care,CHERITON (SW CARE) LTD,GL52,22/04/2022,"2,438.20"
18415233,Physical Support,Adults,Physical Support 65 and over,3rd Party Payments,Nursing Care,CHERITON (SW CARE) LTD,GL52,22/04/2022,"3,672.00"
18415233,Physical Support,Adults,Physical Support 65 and over,3rd Party Payments,Residential Care,CHERITON (SW CARE) LTD,GL52,22/04/2022,"-3,730.14"
18415233,Physical Support,Adults,Physical Support 65 and over,3rd Party Payments,Residential Care,CHERITON (SW CARE) LTD,GL52,22/04/2022,"2,270.52"
18415233,Physical Support,Adults,Physical Support 65 and over,Income,Client Contribution - Residential,CHERITON (SW CARE) LTD,GL52,22/04/2022,-370.36
18415233,Physical Support,Adults,Physical Support 65 and over,Income,Client Contribution - Residential,CHERITON (SW CARE) LTD,GL52,22/04/2022,-572.20
18415233,Physical Support,Adults,Physical Support 65 and over,Income,Client Contribution - Nursing,CHERITON (SW CARE) LTD,GL52,22/04/2022,893.10
18415233,Physical Support,Adults,Physical Support 65 and over,3rd Party Payments,Nursing Care,CHERITON (SW CARE) LTD,GL52,22/04/2022,"3,310.52"
18415233,Physical Support,Adults,Physical Support 65 and over,3rd Party Payments,Nursing Care,CHERITON (SW CARE) LTD,GL52,22/04/2022,"2,955.82"
18415233,Physical Support,Adults,Physical Support 65 and over,3rd Party Payments,Residential Care,CHERITON (SW CARE) LTD,GL52,22/04/2022,"2,541.64"
18415233,Physical Support,Adults,Physical Support 65 and over,3rd Party Payments,Residential Care,CHERITON (SW CARE) LTD,GL52,22/04/2022,"-3,243.60"
17587233,Physical Support,Adults,Physical Support 65 and over,3rd Party Payments,Residential Care,CHERITON (SW CARE) LTD,SN1 ,20/04/2022,"3,831.46"
18415233,Physical Support,Adults,Physical Support 65 and over,3rd Party Payments,Nursing Care,CHERITON (SW CARE) LTD,GL52,22/04/2022,"2,270.52"
16571572,Early Years Block,DSG Skills and Attainment,Free Nursery Education Commissioning - three & four  year olds,3rd Party Payments,Contracts - Child Care,CHILD BASE NURSERIES,MK16,11/04/2022,"61,613.79"
16571573,Early Years Block,DSG Skills and Attainment,Free Nursery Education Commissioning - two year olds,3rd Party Payments,Contracts - Child Care,CHILD BASE NURSERIES,MK16,11/04/2022,"5,198.88"
19198233,Responsive Repairs,Repairs,Responsive Repairs,3rd Party Payments,Contract Payments,CHILD SCAFFOLDING LTD,SN1 ,27/04/2022,880.00
19231233,Responsive Repairs,Repairs,Responsive Repairs,3rd Party Payments,Contract Payments,CHILD SCAFFOLDING LTD,SN1 ,27/04/2022,860.00
19231233,Responsive Repairs,Repairs,Responsive Repairs,3rd Party Payments,Contract Payments,CHILD SCAFFOLDING LTD,SN1 ,27/04/2022,680.00
19230233,Responsive Repairs,Repairs,Responsive Repairs,Supplies and Services,Materials,CHILD SCAFFOLDING LTD,SN1 ,27/04/2022,195.00
19230233,Responsive Repairs,Repairs,Responsive Repairs,Supplies and Services,Materials,CHILD SCAFFOLDING LTD,SN1 ,27/04/2022,65.00
19198233,Responsive Repairs,Repairs,Responsive Repairs,3rd Party Payments,Contract Payments,CHILD SCAFFOLDING LTD,SN1 ,27/04/2022,580.00
19230233,Responsive Repairs,Repairs,Responsive Repairs,Supplies and Services,Materials,CHILD SCAFFOLDING LTD,SN1 ,27/04/2022,260.00
19231233,Responsive Repairs,Repairs,Responsive Repairs,3rd Party Payments,Contract Payments,CHILD SCAFFOLDING LTD,SN1 ,27/04/2022,480.00
19230233,Responsive Repairs,Repairs,Responsive Repairs,3rd Party Payments,Contract Payments,CHILD SCAFFOLDING LTD,SN1 ,27/04/2022,65.00
19231233,Responsive Repairs,Repairs,Responsive Repairs,3rd Party Payments,Contract Payments,CHILD SCAFFOLDING LTD,SN1 ,27/04/2022,880.00
19198233,Responsive Repairs,Repairs,Responsive Repairs,3rd Party Payments,Contract Payments,CHILD SCAFFOLDING LTD,SN1 ,27/04/2022,480.00
19198233,Responsive Repairs,Repairs,Responsive Repairs,3rd Party Payments,Contract Payments,CHILD SCAFFOLDING LTD,SN1 ,27/04/2022,420.00
19231233,Responsive Repairs,Repairs,Responsive Repairs,3rd Party Payments,Contract Payments,CHILD SCAFFOLDING LTD,SN1 ,27/04/2022,620.00
19231233,Responsive Repairs,Repairs,Responsive Repairs,3rd Party Payments,Contract Payments,CHILD SCAFFOLDING LTD,SN1 ,27/04/2022,660.00
19198233,Responsive Repairs,Repairs,Responsive Repairs,3rd Party Payments,Contract Payments,CHILD SCAFFOLDING LTD,SN1 ,27/04/2022,820.00
19230233,Responsive Repairs,Repairs,Responsive Repairs,Supplies and Services,Materials,CHILD SCAFFOLDING LTD,SN1 ,27/04/2022,130.00
19231233,Responsive Repairs,Repairs,Responsive Repairs,3rd Party Payments,Contract Payments,CHILD SCAFFOLDING LTD,SN1 ,27/04/2022,980.00
19231233,Responsive Repairs,Repairs,Responsive Repairs,3rd Party Payments,Contract Payments,CHILD SCAFFOLDING LTD,SN1 ,27/04/2022,560.00
19198233,Responsive Repairs,Repairs,Responsive Repairs,3rd Party Payments,Contract Payments,CHILD SCAFFOLDING LTD,SN1 ,27/04/2022,280.00
14515233,Social Care,"Children, Families and Community Health Services",Looked After Children Service,3rd Party Payments,Personal Needs,CHILDREN'S CONTACT SERVICES LTD,BS9 ,01/04/2022,"1,707.88"
18188233,Social Care,"Children, Families and Community Health Services",Looked After Children Service,3rd Party Payments,Personal Needs,CHILDREN'S CONTACT SERVICES LTD,BS9 ,22/04/2022,"2,062.20"
18122233,Parking & Bus lanes,Highway Operations and Car Parking,Street Parking,Supplies and Services,Materials,CHIPSIDE LTD,SN15,22/04/2022,517.65
18122233,Parking & Bus lanes,Highway Operations and Car Parking,Street Parking,Supplies and Services,Materials,CHIPSIDE LTD,SN15,22/04/2022,632.70
18122233,Parking & Bus lanes,Highway Operations and Car Parking,Bus Lane Enforcement,Supplies and Services,Materials,CHIPSIDE LTD,SN15,22/04/2022,"1,931.16"
18122233,Parking & Bus lanes,Highway Operations and Car Parking,Bus Lane Enforcement,Supplies and Services,Materials,CHIPSIDE LTD,SN15,22/04/2022,354.90
17111234,DSG Other Funding,DSG Skills and Attainment,DFE Additional Grants,3rd Party Payments,Payment of Pupil Premium to school,CHISELDON PRIMARY SCHOOL,SN4 ,13/04/2022,"3,483.00"
16502234,Early Years Block,DSG Skills and Attainment,Free Nursery Education Commissioning - three & four  year olds,3rd Party Payments,Contracts - Child Care,CHISELDON PRIMARY SCHOOL,SN4 ,11/04/2022,"4,771.32"
16502235,Early Years Block,DSG Skills and Attainment,Free Nursery Education Commissioning - two year olds,3rd Party Payments,Contracts - Child Care,CHISELDON PRIMARY SCHOOL,SN4 ,11/04/2022,559.73
17104236,Schools - Primary,DSG Skills and Attainment,Primary School Budgets,3rd Party Payments,Mainstream Delegated Funding,CHISELDON PRIMARY SCHOOL,SN4 ,13/04/2022,"62,191.00"
18421237,Learning Disabilities,Adults,Learning Disability 65 and over,Income,Client Contribution - Residential,CHOSEN CARE LTD,GL3 ,22/04/2022,-605.80
18421237,Learning Disabilities,Adults,Learning Disability 26 - 64,3rd Party Payments,Residential Care,CHOSEN CARE LTD,GL3 ,22/04/2022,"10,666.24"
18421237,Learning Disabilities,Adults,Learning Disability 26 - 64,3rd Party Payments,Residential Care,CHOSEN CARE LTD,GL3 ,22/04/2022,"6,799.00"
18421237,Learning Disabilities,Adults,Learning Disability 26 - 64,Income,Client Contribution - Residential,CHOSEN CARE LTD,GL3 ,22/04/2022,-319.00
18421237,Learning Disabilities,Adults,Learning Disability 65 and over,3rd Party Payments,Residential Care,CHOSEN CARE LTD,GL3 ,22/04/2022,"6,943.76"
18421237,Learning Disabilities,Adults,Learning Disability 26 - 64,3rd Party Payments,Residential Care,CHOSEN CARE LTD,GL3 ,22/04/2022,"6,792.04"
18421237,Learning Disabilities,Adults,Learning Disability 26 - 64,Income,Client Contribution - Residential,CHOSEN CARE LTD,GL3 ,22/04/2022,-359.00
18607233,Care Management & Safeguarding,Adults,Mental Capacity & DOL,3rd Party Payments,Contracts - Social Care,CHRIS HORNE BIA/AMHP LIMITED,OX18,25/04/2022,515.75
20105446,Physical Support,Adults,Physical Support 18 - 64,Transfer Payments,Personal Budget - Direct Payments - Domiciliary Care,REDACTED PERSONAL DATA,SN25,29/04/2022,752.60
18654233,Social Care,"Children, Families and Community Health Services",Placement Adoption Service,3rd Party Payments,Adoption Allowances,REDACTED PERSONAL DATA,SN6 ,25/04/2022,699.84
16306233,Social Care,"Children, Families and Community Health Services",Placement Adoption Service,3rd Party Payments,Adoption Allowances,REDACTED PERSONAL DATA,SN6 ,11/04/2022,699.84
18655233,Social Care,"Children, Families and Community Health Services",Placement Adoption Service,3rd Party Payments,Adoption Allowances,REDACTED PERSONAL DATA,SN6 ,25/04/2022,"1,055.64"
16306234,Social Care,"Children, Families and Community Health Services",Placement Adoption Service,3rd Party Payments,Adoption Allowances,REDACTED PERSONAL DATA,SN6 ,11/04/2022,"1,055.64"
18352233,Disabled Children,"Children, Families and Community Health Services",DCT Daytime Short Breaks,3rd Party Payments,Respite Care,REDACTED PERSONAL DATA,CV1 ,22/04/2022,780.00
15832235,Social Care,"Children, Families and Community Health Services",External Placements,3rd Party Payments,Independent Fostering Agency Placements,CHRYSALISCARE LTD,DA7 ,08/04/2022,"5,881.01"
15832234,Social Care,"Children, Families and Community Health Services",External Placements,3rd Party Payments,Independent Fostering Agency Placements,CHRYSALISCARE LTD,DA7 ,08/04/2022,"3,697.99"
17193233,Other Repairs,Repairs,Asbestos Services,Premises Costs,Permanent Fixtures and Fittings,CHUBB FIRE & SECURITY T/A CHUBB COMMUNITY CARE,BB1 ,13/04/2022,"38,572.29"
19100233,Homeline,Special Services,Homeline,Supplies and Services,Repairs & Maintenance,CHUBB FIRE & SECURITY T/A CHUBB COMMUNITY CARE,BB1 ,27/04/2022,947.50
19163233,Homeline,Special Services,Homeline,Supplies and Services,Materials,CHUBB FIRE & SECURITY T/A CHUBB COMMUNITY CARE,BB1 ,27/04/2022,"1,895.00"
18430236,Physical Support,Adults,Physical Support 65 and over,3rd Party Payments,Nursing Care,CHURCH VIEW,SN3 ,22/04/2022,"-2,277.57"
18430236,Physical Support,Adults,Physical Support 65 and over,3rd Party Payments,Nursing Care,CHURCH VIEW,SN3 ,22/04/2022,"-4,669.02"
18430236,Physical Support,Adults,Physical Support 65 and over,3rd Party Payments,Nursing Care,CHURCH VIEW,SN3 ,22/04/2022,"3,310.52"
18430236,Physical Support,Adults,Physical Support 65 and over,Income,Client Contribution - Nursing,CHURCH VIEW,SN3 ,22/04/2022,-910.56
18430236,Physical Support,Adults,Physical Support 65 and over,3rd Party Payments,Nursing Care,CHURCH VIEW,SN3 ,22/04/2022,"2,270.52"
18430236,Physical Support,Adults,Physical Support 65 and over,3rd Party Payments,Nursing Care,CHURCH VIEW,SN3 ,22/04/2022,"2,837.59"
18430236,Physical Support,Adults,Physical Support 65 and over,Income,Client Contribution - Nursing,CHURCH VIEW,SN3 ,22/04/2022,-620.28
18430236,Physical Support,Adults,Physical Support 65 and over,3rd Party Payments,Nursing Care,CHURCH VIEW,SN3 ,22/04/2022,"2,438.20"
18430236,Physical Support,Adults,Physical Support 65 and over,Income,Client Contribution - Nursing,CHURCH VIEW,SN3 ,22/04/2022,-610.00
18430236,Physical Support,Adults,Physical Support 65 and over,Income,Client Contribution - Nursing,CHURCH VIEW,SN3 ,22/04/2022,-351.16
18430236,Physical Support,Adults,Physical Support 65 and over,Income,Client Contribution - Nursing,CHURCH VIEW,SN3 ,22/04/2022,"-1,802.48"
18430236,Physical Support,Adults,Physical Support 65 and over,Income,Client Contribution - Nursing,CHURCH VIEW,SN3 ,22/04/2022,-606.52
18430236,Physical Support,Adults,Physical Support 65 and over,Income,Client Contribution - Nursing,CHURCH VIEW,SN3 ,22/04/2022,-936.84
18430236,Physical Support,Adults,Physical Support 65 and over,Income,Client Contribution - Residential,CHURCH VIEW,SN3 ,22/04/2022,-763.24
18430236,Physical Support,Adults,Physical Support 65 and over,3rd Party Payments,Nursing Care,CHURCH VIEW,SN3 ,22/04/2022,"3,188.60"
18430236,Physical Support,Adults,Physical Support 65 and over,Income,Client Contribution - Nursing,CHURCH VIEW,SN3 ,22/04/2022,"-1,288.96"
18430236,Physical Support,Adults,Physical Support 65 and over,Income,Client Contribution - Nursing,CHURCH VIEW,SN3 ,22/04/2022,-999.64
18430236,Physical Support,Adults,Physical Support 65 and over,3rd Party Payments,Residential Care,CHURCH VIEW,SN3 ,22/04/2022,"2,438.20"
18436235,Learning Disabilities,Adults,Learning Disability 26 - 64,Income,Client Contribution - Residential,CIDERSTONE HOUSE,SN25,22/04/2022,-423.00
18436235,Learning Disabilities,Adults,Learning Disability 26 - 64,Income,Client Contribution - Residential,CIDERSTONE HOUSE,SN25,22/04/2022,"3,776.79"
18436235,Learning Disabilities,Adults,Learning Disability 26 - 64,3rd Party Payments,Residential Care,CIDERSTONE HOUSE,SN25,22/04/2022,"10,573.60"
18436235,Learning Disabilities,Adults,Learning Disability 26 - 64,3rd Party Payments,Residential Care,CIDERSTONE HOUSE,SN25,22/04/2022,"10,043.80"
18436235,Learning Disabilities,Adults,Learning Disability 26 - 64,Income,Client Contribution - Residential,CIDERSTONE HOUSE,SN25,22/04/2022,-414.20
18436235,Learning Disabilities,Adults,Learning Disability 26 - 64,Income,Client Contribution - Residential,CIDERSTONE HOUSE,SN25,22/04/2022,"-3,800.00"
18436235,Learning Disabilities,Adults,Learning Disability 26 - 64,3rd Party Payments,Residential Care,CIDERSTONE HOUSE,SN25,22/04/2022,"9,286.08"
18436235,Learning Disabilities,Adults,Learning Disability 26 - 64,3rd Party Payments,Residential Care,CIDERSTONE HOUSE,SN25,22/04/2022,"6,301.27"
18436235,Learning Disabilities,Adults,Learning Disability 26 - 64,Income,Client Contribution - Residential,CIDERSTONE HOUSE,SN25,22/04/2022,-425.60
18436235,Learning Disabilities,Adults,Learning Disability 26 - 64,Income,Client Contribution - Residential,CIDERSTONE HOUSE,SN25,22/04/2022,-297.76
18436235,Learning Disabilities,Adults,Learning Disability 26 - 64,3rd Party Payments,Residential Care,CIDERSTONE HOUSE,SN25,22/04/2022,"-5,969.62"
18436235,Learning Disabilities,Adults,Learning Disability 26 - 64,3rd Party Payments,Residential Care,CIDERSTONE HOUSE,SN25,22/04/2022,"9,587.08"
18436235,Learning Disabilities,Adults,Learning Disability 26 - 64,Income,Client Contribution - Residential,CIDERSTONE HOUSE,SN25,22/04/2022,288.80
18436235,Learning Disabilities,Adults,Learning Disability 26 - 64,Income,Client Contribution - Residential,CIDERSTONE HOUSE,SN25,22/04/2022,-677.60
18436235,Learning Disabilities,Adults,Learning Disability 26 - 64,3rd Party Payments,Residential Care,CIDERSTONE HOUSE,SN25,22/04/2022,-331.65
18436235,Learning Disabilities,Adults,Learning Disability 26 - 64,3rd Party Payments,Residential Care,CIDERSTONE HOUSE,SN25,22/04/2022,"9,469.76"
18436235,Learning Disabilities,Adults,Learning Disability 26 - 64,Income,Client Contribution - Residential,CIDERSTONE HOUSE,SN25,22/04/2022,282.09
18436235,Learning Disabilities,Adults,Learning Disability 26 - 64,Income,Client Contribution - Residential,CIDERSTONE HOUSE,SN25,22/04/2022,15.67
18436235,Learning Disabilities,Adults,Learning Disability 26 - 64,Income,Client Contribution - Residential,CIDERSTONE HOUSE,SN25,22/04/2022,-438.80
15594233,Internal Audit,Internal Audit,Internal Audit,Supplies and Services,Services,CIPFA BUSINESS LIMITED,E1 8,08/04/2022,"4,387.50"
17767236,High Needs Block,DSG Skills and Attainment,Post 16 - New Responsibilties,3rd Party Payments,FE Colleges,CIRENCESTER COLLEGE,GL7 ,20/04/2022,"2,365.25"
17766233,High Needs Block,DSG Skills and Attainment,Out of Borough School Fees,3rd Party Payments,Other Local Authority Mainstream Schools- Pre 16,CIRENCESTER KINGSHILL SCHOOL,GL7 ,20/04/2022,581.83
17765239,High Needs Block,DSG Skills and Attainment,Out of Borough School Fees,3rd Party Payments,Other Local Authority Mainstream Schools- Pre 16,CIRENCESTER KINGSHILL SCHOOL,GL7 ,20/04/2022,581.83
18196236,Homelessness and Travellers,Housing Services,Leased Private Managed Accommodation,Transfer Payments,Payment of Costs,REDACTED PERSONAL DATA,SN5 ,25/04/2022,500.00
Corporate Card Transaction,Community Health & Wellbeing,Public Health,Community Health and Wellbeing Management,Supplies and Services,Materials,Citrix Systems Inc.,,11/04/2022,617.36
15623233,Planned Maintenance Programme,HRA Capital Financing,Exceptional Extensive,Capital,Contractor Payments,CITY ENERGY NETWORK LTD,CF10,08/04/2022,"2,589.96"
18758234,Planned Maintenance Programme,HRA Capital Financing,Exceptional Extensive,Capital,Contractor Payments,CITY ENERGY NETWORK LTD,CF10,27/04/2022,"1,924.00"
15623233,Planned Maintenance Programme,HRA Capital Financing,Exceptional Extensive,Capital,Contractor Payments,CITY ENERGY NETWORK LTD,CF10,08/04/2022,"1,924.00"
15624233,Planned Maintenance Programme,HRA Capital Financing,Exceptional Extensive,Capital,Contractor Payments,CITY ENERGY NETWORK LTD,CF10,08/04/2022,586.40
19035233,Elections & Democracy,Elections and Democracy,Local Elections,Supplies and Services,Materials,CIVICA ELECTION SERVICES LIMITED,N8 0,27/04/2022,"4,192.51"
19035233,Elections & Democracy,Elections and Democracy,Local Elections,Supplies and Services,Post,CIVICA ELECTION SERVICES LIMITED,N8 0,27/04/2022,475.00
15045233,Elections & Democracy,Elections and Democracy,Register of Electors,Supplies and Services,Materials,CIVICA ELECTION SERVICES LIMITED,N8 0,06/04/2022,465.24
19035233,Elections & Democracy,Elections and Democracy,Local Elections,Supplies and Services,Post,CIVICA ELECTION SERVICES LIMITED,N8 0,27/04/2022,13.49
15045233,Elections & Democracy,Elections and Democracy,Register of Electors,Supplies and Services,Post,CIVICA ELECTION SERVICES LIMITED,N8 0,06/04/2022,483.25
15611233,Planning & Regulatory,Strategic Planning,Economy & Development Management,Employees,Temporary / Agency - by Accounts Payable,CLAIRE ALEXANDER,BS37,08/04/2022,"10,315.20"
18530240,Disabled Children,"Children, Families and Community Health Services",DCT Daytime Short Breaks,Transfer Payments,Personal Budget - Direct Payments - Other,REDACTED PERSONAL DATA,SN3 ,25/04/2022,"2,547.00"
17765237,High Needs Block,DSG Skills and Attainment,Statemented Pupils Equipment,Supplies and Services,Services,REDACTED PERSONAL DATA,SN6 ,20/04/2022,570.00
16503236,Early Years Block,DSG Skills and Attainment,Free Nursery Education Commissioning - three & four  year olds,3rd Party Payments,Contracts - Child Care,REDACTED PERSONAL DATA,SN2 ,11/04/2022,586.56
18730233,Social Care,"Children, Families and Community Health Services",Placement Fostering Service,3rd Party Payments,Carers Skills Payments - Core,REDACTED PERSONAL DATA,SN6 ,25/04/2022,66.29
18730233,Social Care,"Children, Families and Community Health Services",Placement Fostering Service,3rd Party Payments,Foster Care Basic Payments,REDACTED PERSONAL DATA,SN6 ,25/04/2022,342.00
17816233,Social Care,"Children, Families and Community Health Services",CP & CIN Social Work - South,3rd Party Payments,Personal Needs,REDACTED PERSONAL DATA,SN6 ,20/04/2022,850.00
18730233,Social Care,"Children, Families and Community Health Services",Placement Fostering Service,3rd Party Payments,Carers Skills Payments - Core,REDACTED PERSONAL DATA,SN6 ,25/04/2022,116.00
19875233,NEV,"Economy, Growth and Place",Southern Connector Road,Capital,Consultants,CLARKE WILLMOTT LLP,BS1 ,29/04/2022,720.00
16571314,Early Years Block,DSG Skills and Attainment,Free Nursery Education Commissioning - three & four  year olds,3rd Party Payments,Contracts - Child Care,CLIFTON ST PRE-SCHOOL,SN1 ,11/04/2022,"22,182.25"
15491238,Elections & Democracy,Elections and Democracy,Local Elections,Premises Costs,Rents,CLIFTON ST PRE-SCHOOL,SN1 ,08/04/2022,500.00
17564233,Early Years Block,DSG Skills and Attainment,Free Nursery Education Commissioning - three & four  year olds,3rd Party Payments,Contracts - Child Care,CLIFTON ST PRE-SCHOOL,SN1 ,20/04/2022,680.00
18429237,Physical Support,Adults,Physical Support 65 and over,3rd Party Payments,Residential Care,COATE WATER CARE CO LTD,SN3 ,22/04/2022,"2,438.20"
18429237,Physical Support,Adults,Physical Support 65 and over,Income,Client Contribution - Residential,COATE WATER CARE CO LTD,SN3 ,22/04/2022,-510.92
18429237,Physical Support,Adults,Physical Support 65 and over,Income,Client Contribution - Residential,COATE WATER CARE CO LTD,SN3 ,22/04/2022,"-1,201.84"
18429237,Physical Support,Adults,Physical Support 65 and over,Income,Client Contribution - Residential,COATE WATER CARE CO LTD,SN3 ,22/04/2022,-911.16
18429237,Physical Support,Adults,Physical Support 65 and over,Income,Client Contribution - Residential,COATE WATER CARE CO LTD,SN3 ,22/04/2022,-732.00
18429237,Physical Support,Adults,Physical Support 65 and over,Income,Client Contribution - Residential,COATE WATER CARE CO LTD,SN3 ,22/04/2022,"-1,135.44"
18429237,Physical Support,Adults,Physical Support 18 - 64,Income,Client Contribution - Residential,COATE WATER CARE CO LTD,SN3 ,22/04/2022,-359.00
18429237,Physical Support,Adults,Physical Support 65 and over,Income,Client Contribution - Residential,COATE WATER CARE CO LTD,SN3 ,22/04/2022,-954.00
18429237,Physical Support,Adults,Physical Support 18 - 64,3rd Party Payments,Residential Care,COATE WATER CARE CO LTD,SN3 ,22/04/2022,"3,264.00"
18429237,Physical Support,Adults,Physical Support 65 and over,Income,Client Contribution - Residential,COATE WATER CARE CO LTD,SN3 ,22/04/2022,"1,108.32"
18429237,Physical Support,Adults,Physical Support 65 and over,Income,Client Contribution - Residential,COATE WATER CARE CO LTD,SN3 ,22/04/2022,-893.72
18429237,Physical Support,Adults,Physical Support 65 and over,Income,Client Contribution - Residential,COATE WATER CARE CO LTD,SN3 ,22/04/2022,-718.80
18429237,Physical Support,Adults,Physical Support 65 and over,3rd Party Payments,Residential Care,COATE WATER CARE CO LTD,SN3 ,22/04/2022,"3,200.00"
18429237,Physical Support,Adults,Physical Support 65 and over,Income,Client Contribution - Residential,COATE WATER CARE CO LTD,SN3 ,22/04/2022,-847.36
18429237,Physical Support,Adults,Physical Support 65 and over,Income,Client Contribution - Residential,COATE WATER CARE CO LTD,SN3 ,22/04/2022,-630.56
18429237,Physical Support,Adults,Physical Support 65 and over,Income,Client Contribution - Residential,COATE WATER CARE CO LTD,SN3 ,22/04/2022,-597.40
18429237,Physical Support,Adults,Physical Support 65 and over,Income,Client Contribution - Residential,COATE WATER CARE CO LTD,SN3 ,22/04/2022,-539.40
18429237,Physical Support,Adults,Physical Support 65 and over,Income,Client Contribution - Residential,COATE WATER CARE CO LTD,SN3 ,22/04/2022,-955.48
18429237,Mental Health,Adults,Mental Health 65 and over,3rd Party Payments,Residential Care,COATE WATER CARE CO LTD,SN3 ,22/04/2022,"2,800.00"
18429237,Physical Support,Adults,Physical Support 65 and over,Income,Client Contribution - Residential,COATE WATER CARE CO LTD,SN3 ,22/04/2022,-716.61
18429237,Physical Support,Adults,Physical Support 65 and over,Income,Client Contribution - Residential,COATE WATER CARE CO LTD,SN3 ,22/04/2022,88.67
18429237,Physical Support,Adults,Physical Support 65 and over,Income,Client Contribution - Residential,COATE WATER CARE CO LTD,SN3 ,22/04/2022,"-1,434.76"
18429237,Physical Support,Adults,Physical Support 65 and over,3rd Party Payments,Residential Care,COATE WATER CARE CO LTD,SN3 ,22/04/2022,"-2,176.96"
18429237,Physical Support,Adults,Physical Support 65 and over,Income,Client Contribution - Residential,COATE WATER CARE CO LTD,SN3 ,22/04/2022,-559.40
18429237,Physical Support,Adults,Physical Support 65 and over,3rd Party Payments,Residential Care,COATE WATER CARE CO LTD,SN3 ,22/04/2022,"3,468.00"
18429237,Physical Support,Adults,Physical Support 65 and over,Income,Client Contribution - Residential,COATE WATER CARE CO LTD,SN3 ,22/04/2022,-862.04
18429237,Physical Support,Adults,Physical Support 65 and over,3rd Party Payments,Residential Care,COATE WATER CARE CO LTD,SN3 ,22/04/2022,"3,264.00"
18429237,Physical Support,Adults,Physical Support 65 and over,Income,Client Contribution - Residential,COATE WATER CARE CO LTD,SN3 ,22/04/2022,700.92
18429237,Physical Support,Adults,Physical Support 65 and over,Income,Client Contribution - Residential,COATE WATER CARE CO LTD,SN3 ,22/04/2022,-622.80
18429237,Physical Support,Adults,Physical Support 65 and over,Income,Client Contribution - Residential,COATE WATER CARE CO LTD,SN3 ,22/04/2022,-506.20
18429237,Physical Support,Adults,Physical Support 65 and over,3rd Party Payments,Residential Care,COATE WATER CARE CO LTD,SN3 ,22/04/2022,"2,541.64"
18429237,Physical Support,Adults,Physical Support 18 - 64,3rd Party Payments,Residential Care,COATE WATER CARE CO LTD,SN3 ,22/04/2022,"2,438.20"
18429237,Physical Support,Adults,Physical Support 18 - 64,3rd Party Payments,Residential Care,COATE WATER CARE CO LTD,SN3 ,22/04/2022,"2,541.64"
18418239,Learning Disabilities,Adults,Learning Disability 26 - 64,3rd Party Payments,Residential Care,COCKLEBURY FARMHOUSE,SN15,22/04/2022,"8,288.00"
18418239,Learning Disabilities,Adults,Learning Disability 26 - 64,Income,Client Contribution - Residential,COCKLEBURY FARMHOUSE,SN15,22/04/2022,-425.60
17115233,Town Centre,"Economy, Growth and Place",Fleming Way Bus Boulevard,Capital,Contractor Payments,COLAS LTD,B37 ,13/04/2022,"47,565.00"
16571318,Early Years Block,DSG Skills and Attainment,Free Nursery Education Commissioning - three & four  year olds,3rd Party Payments,Contracts - Child Care,COLEVIEW PRE-SCHOOL,SN3 ,11/04/2022,"26,613.47"
17495233,NEV,"Economy, Growth and Place",Gablecross Junction,Capital,Consultants,COLLIERS INTERNATIONAL PROPERTY CONSULTANTS LTD,W1U ,20/04/2022,"2,000.00"
16571322,Early Years Block,DSG Skills and Attainment,Free Nursery Education Commissioning - two year olds,3rd Party Payments,Contracts - Child Care,COLOURFUL TIME DAY NURSERY LTD,SN5 ,11/04/2022,"3,444.48"
16571321,Early Years Block,DSG Skills and Attainment,Free Nursery Education Commissioning - three & four  year olds,3rd Party Payments,Contracts - Child Care,COLOURFUL TIME DAY NURSERY LTD,SN5 ,11/04/2022,"40,788.93"
18416239,Learning Disabilities,Adults,Learning Disability 26 - 64,Income,Client Contribution - Supported Living,COMMUNITY ACCESS NETWORK LTD,SN25,22/04/2022,-142.80
18416239,Learning Disabilities,Adults,Learning Disability 26 - 64,3rd Party Payments,Supported Living,COMMUNITY ACCESS NETWORK LTD,SN25,22/04/2022,"1,207.68"
18416238,Learning Disabilities,Adults,Learning Disability 65 and over,3rd Party Payments,Residential Care,COMMUNITY ACCESS NETWORK LTD,SN25,22/04/2022,"4,609.64"
18416238,Learning Disabilities,Adults,Learning Disability 26 - 64,Income,Client Contribution - Residential,COMMUNITY ACCESS NETWORK LTD,SN25,22/04/2022,-293.60
18416238,Learning Disabilities,Adults,Learning Disability 65 and over,Income,Client Contribution - Residential,COMMUNITY ACCESS NETWORK LTD,SN25,22/04/2022,-578.20
18416239,Learning Disabilities,Adults,Learning Disability 26 - 64,3rd Party Payments,Supported Living,COMMUNITY ACCESS NETWORK LTD,SN25,22/04/2022,24.00
18416239,Learning Disabilities,Adults,Learning Disability 26 - 64,3rd Party Payments,Supported Living,COMMUNITY ACCESS NETWORK LTD,SN25,22/04/2022,"3,683.08"
18416238,Learning Disabilities,Adults,Learning Disability 26 - 64,3rd Party Payments,Residential Care,COMMUNITY ACCESS NETWORK LTD,SN25,22/04/2022,"4,612.52"
16846233,Better Care Fund,Adults,Covid-19,Supplies and Services,Discretionary Costs,COMMUNITY ACCESS NETWORK LTD,SN25,13/04/2022,"2,780.00"
18416239,Learning Disabilities,Adults,Learning Disability 26 - 64,3rd Party Payments,Supported Living,COMMUNITY ACCESS NETWORK LTD,SN25,22/04/2022,"1,342.76"
18416239,Learning Disabilities,Adults,Learning Disability 26 - 64,3rd Party Payments,Supported Living,COMMUNITY ACCESS NETWORK LTD,SN25,22/04/2022,497.28
18429238,Learning Disabilities,Adults,Learning Disability 26 - 64,3rd Party Payments,Residential Care,COMMUNITY THERAPEUTIC SERVICES LTD,BS22,22/04/2022,"10,824.40"
19580233,Social Care,"Children, Families and Community Health Services",External Placements,3rd Party Payments,Residential Care,COMPASS CHILDREN'S HOMES LTD,LE7 ,29/04/2022,"8,432.32"
19579233,Social Care,"Children, Families and Community Health Services",External Placements,3rd Party Payments,Residential Care,COMPASS CHILDREN'S HOMES LTD,LE7 ,29/04/2022,"1,485.77"
19581233,Social Care,"Children, Families and Community Health Services",External Placements,3rd Party Payments,Residential Care,COMPASS CHILDREN'S HOMES LTD,LE7 ,29/04/2022,648.64
20172233,Social Care,"Children, Families and Community Health Services",External Placements,3rd Party Payments,Independent Fostering Agency Placements,COMPASS FOSTERING WEST LTD,LE11,29/04/2022,"3,437.59"
20169234,Social Care,"Children, Families and Community Health Services",External Placements,3rd Party Payments,Independent Fostering Agency Placements,COMPASS FOSTERING WEST LTD,LE11,29/04/2022,"3,349.50"
20167237,Social Care,"Children, Families and Community Health Services",External Placements,3rd Party Payments,Independent Fostering Agency Placements,COMPASS FOSTERING WEST LTD,LE11,29/04/2022,"3,618.63"
20168233,Social Care,"Children, Families and Community Health Services",External Placements,3rd Party Payments,Independent Fostering Agency Placements,COMPASS FOSTERING WEST LTD,LE11,29/04/2022,"3,501.90"
20158233,Social Care,"Children, Families and Community Health Services",Placement - Care Leaver Team,3rd Party Payments,Staying Put,COMPASS FOSTERING WEST LTD,LE11,29/04/2022,"2,000.04"
20170233,Social Care,"Children, Families and Community Health Services",External Placements,3rd Party Payments,Independent Fostering Agency Placements,COMPASS FOSTERING WEST LTD,LE11,29/04/2022,"3,437.59"
20163235,Social Care,"Children, Families and Community Health Services",External Placements,3rd Party Payments,Independent Fostering Agency Placements,COMPASS FOSTERING WEST LTD,LE11,29/04/2022,"3,138.53"
20166233,Social Care,"Children, Families and Community Health Services",External Placements,3rd Party Payments,Independent Fostering Agency Placements,COMPASS FOSTERING WEST LTD,LE11,29/04/2022,"2,970.00"
15838233,Social Care,"Children, Families and Community Health Services",External Placements,3rd Party Payments,Independent Fostering Agency Placements,COMPASS FOSTERING WEST LTD,LE11,08/04/2022,-656.88
15840233,Social Care,"Children, Families and Community Health Services",External Placements,3rd Party Payments,Independent Fostering Agency Placements,COMPASS FOSTERING WEST LTD,LE11,08/04/2022,-583.65
20167236,Social Care,"Children, Families and Community Health Services",External Placements,3rd Party Payments,Independent Fostering Agency Placements,COMPASS FOSTERING WEST LTD,LE11,29/04/2022,"3,120.00"
15841233,Social Care,"Children, Families and Community Health Services",External Placements,3rd Party Payments,Independent Fostering Agency Placements,COMPASS FOSTERING WEST LTD,LE11,08/04/2022,"1,166.77"
20173233,Social Care,"Children, Families and Community Health Services",External Placements,3rd Party Payments,Independent Fostering Agency Placements,COMPASS FOSTERING WEST LTD,LE11,29/04/2022,"3,326.70"
20167235,Social Care,"Children, Families and Community Health Services",External Placements,3rd Party Payments,Independent Fostering Agency Placements,COMPASS FOSTERING WEST LTD,LE11,29/04/2022,"3,224.00"
20163233,Social Care,"Children, Families and Community Health Services",External Placements,3rd Party Payments,Independent Fostering Agency Placements,COMPASS FOSTERING WEST LTD,LE11,29/04/2022,"3,176.26"
20174233,Social Care,"Children, Families and Community Health Services",External Placements,3rd Party Payments,Independent Fostering Agency Placements,COMPASS FOSTERING WEST LTD,LE11,29/04/2022,"3,288.17"
20162233,Social Care,"Children, Families and Community Health Services",External Placements,3rd Party Payments,Independent Fostering Agency Placements,COMPASS FOSTERING WEST LTD,LE11,29/04/2022,"3,334.50"
20161233,Social Care,"Children, Families and Community Health Services",External Placements,3rd Party Payments,Independent Fostering Agency Placements,COMPASS FOSTERING WEST LTD,LE11,29/04/2022,"3,445.65"
20167234,Social Care,"Children, Families and Community Health Services",External Placements,3rd Party Payments,Independent Fostering Agency Placements,COMPASS FOSTERING WEST LTD,LE11,29/04/2022,"3,120.00"
20160233,Social Care,"Children, Families and Community Health Services",External Placements,3rd Party Payments,Independent Fostering Agency Placements,COMPASS FOSTERING WEST LTD,LE11,29/04/2022,"3,135.00"
20159233,Social Care,"Children, Families and Community Health Services",External Placements,3rd Party Payments,Independent Fostering Agency Placements,COMPASS FOSTERING WEST LTD,LE11,29/04/2022,"3,239.50"
15840234,Social Care,"Children, Families and Community Health Services",External Placements,3rd Party Payments,Independent Fostering Agency Placements,COMPASS FOSTERING WEST LTD,LE11,08/04/2022,"1,166.77"
20171233,Social Care,"Children, Families and Community Health Services",External Placements,3rd Party Payments,Independent Fostering Agency Placements,COMPASS FOSTERING WEST LTD,LE11,29/04/2022,"3,326.70"
20167233,Social Care,"Children, Families and Community Health Services",External Placements,3rd Party Payments,Independent Fostering Agency Placements,COMPASS FOSTERING WEST LTD,LE11,29/04/2022,"3,224.00"
20164233,Social Care,"Children, Families and Community Health Services",External Placements,3rd Party Payments,Independent Fostering Agency Placements,COMPASS FOSTERING WEST LTD,LE11,29/04/2022,"2,912.10"
20165233,Social Care,"Children, Families and Community Health Services",External Placements,3rd Party Payments,Independent Fostering Agency Placements,COMPASS FOSTERING WEST LTD,LE11,29/04/2022,"3,201.00"
20175233,Social Care,"Children, Families and Community Health Services",External Placements,3rd Party Payments,Independent Fostering Agency Placements,COMPASS FOSTERING WEST LTD,LE11,29/04/2022,"-1,484.98"
20169233,Social Care,"Children, Families and Community Health Services",External Placements,3rd Party Payments,Independent Fostering Agency Placements,COMPASS FOSTERING WEST LTD,LE11,29/04/2022,"3,461.15"
15485233,Elections & Democracy,Elections and Democracy,Local Elections,Premises Costs,Rents,COMPASS SERVICES (UK) LTD,SN4 ,08/04/2022,"1,300.00"
20075234,Responsive Repairs,Repairs,Responsive Repairs,3rd Party Payments,Contract Payments,COMPLETE FLUE SOLUTIONS LIMITED,GL53,29/04/2022,575.00
20103233,Learning Disabilities,Adults,Learning Disability 26 - 64,Transfer Payments,Personal Budget - Direct Payments - Domiciliary Care,REDACTED PERSONAL DATA,GL2 ,29/04/2022,"4,199.53"
17266233,Environmental & Regulatory,Highways & Transport,Shaw Farm Landfill Site,Supplies and Services,Testing / Inspection,CONSOLIDATED DISTRIBUTION HOLDINGS LTD T/A HARRIER PNEUMATICS,BS2 ,13/04/2022,679.80
17374233,Environmental & Regulatory,Highways & Transport,Shaw Farm Landfill Site,Supplies and Services,Testing / Inspection,CONSOLIDATED DISTRIBUTION HOLDINGS LTD T/A HARRIER PNEUMATICS,BS2 ,20/04/2022,566.80
18568233,Physical Support,Adults,Fessey House,Supplies and Services,Materials,CONSORTIUM,NG15,25/04/2022,433.50
17848233,Social Care,"Children, Families and Community Health Services",Fostering Service Team,Supplies and Services,Subscriptions,CORAM ACADEMY LTD T/A CORAMBAAF,WC1N,20/04/2022,519.75
17848233,Social Care,"Children, Families and Community Health Services",Fostering Service Team,Supplies and Services,Subscriptions,CORAM ACADEMY LTD T/A CORAMBAAF,WC1N,20/04/2022,"3,287.87"
14252233,Safeguarding and Quality Assurance,"Children, Families and Community Health Services",Participation,3rd Party Payments,Contracts - Child Care,CORAM VOICE,WC1N,01/04/2022,"12,396.95"
18619241,Social Care,"Children, Families and Community Health Services",Placement Adoption Service,3rd Party Payments,Adoption Allowances,REDACTED PERSONAL DATA,BA15,25/04/2022,860.00
16233233,Social Care,"Children, Families and Community Health Services",Placement Adoption Service,3rd Party Payments,Adoption Allowances,REDACTED PERSONAL DATA,BA15,11/04/2022,860.00
18421240,Learning Disabilities,Adults,Learning Disability 26 - 64,3rd Party Payments,Residential Care,CORNERSTONES UK LTD,SN9 ,22/04/2022,"7,678.96"
18421240,Learning Disabilities,Adults,Learning Disability 26 - 64,Income,Client Contribution - Residential,CORNERSTONES UK LTD,SN9 ,22/04/2022,-423.00
18421240,Learning Disabilities,Adults,Learning Disability 26 - 64,3rd Party Payments,Residential Care,CORNERSTONES UK LTD,SN9 ,22/04/2022,"5,117.84"
18421240,Learning Disabilities,Adults,Learning Disability 26 - 64,Income,Client Contribution - Residential,CORNERSTONES UK LTD,SN9 ,22/04/2022,-361.00
18421240,Learning Disabilities,Adults,Learning Disability 26 - 64,3rd Party Payments,Residential Care,CORNERSTONES UK LTD,SN9 ,22/04/2022,"6,010.72"
18421240,Learning Disabilities,Adults,Learning Disability 26 - 64,Income,Client Contribution - Residential,CORNERSTONES UK LTD,SN9 ,22/04/2022,-410.20
18421240,Learning Disabilities,Adults,Learning Disability 26 - 64,3rd Party Payments,Residential Care,CORNERSTONES UK LTD,SN9 ,22/04/2022,"6,655.96"
18421240,Learning Disabilities,Adults,Learning Disability 26 - 64,Income,Client Contribution - Residential,CORNERSTONES UK LTD,SN9 ,22/04/2022,-414.20
18421240,Learning Disabilities,Adults,Learning Disability 26 - 64,3rd Party Payments,Residential Care,CORNERSTONES UK LTD,SN9 ,22/04/2022,"7,846.88"
18421240,Learning Disabilities,Adults,Learning Disability 26 - 64,3rd Party Payments,Residential Care,CORNERSTONES UK LTD,SN9 ,22/04/2022,"4,018.12"
15600233,Learning Disabilities,Adults,Firethorn Close,Supplies and Services,Services,COUNTRYWIDE GROUNDS MAINTENANCE LTD,NN13,08/04/2022,892.32
20105737,Learning Disabilities,Adults,Learning Disability 26 - 64,Transfer Payments,Personal Budget - Direct Payments - Domiciliary Care,REDACTED PERSONAL DATA,SP11,29/04/2022,"1,604.83"
16571325,Early Years Block,DSG Skills and Attainment,Free Nursery Education Commissioning - three & four  year olds,3rd Party Payments,Contracts - Child Care,COVINGHAM KINGFISHER PRE-SCHOOL,SN3 ,11/04/2022,"17,831.64"
16571326,Early Years Block,DSG Skills and Attainment,Free Nursery Education Commissioning - two year olds,3rd Party Payments,Contracts - Child Care,COVINGHAM KINGFISHER PRE-SCHOOL,SN3 ,11/04/2022,861.12
17111235,DSG Other Funding,DSG Skills and Attainment,DFE Additional Grants,3rd Party Payments,Payment of Pupil Premium to school,COVINGHAM PARK PRIMARY SCHOOL,SN3 ,13/04/2022,"8,157.00"
17104237,Schools - Primary,DSG Skills and Attainment,Primary School Budgets,3rd Party Payments,Mainstream Delegated Funding,COVINGHAM PARK PRIMARY SCHOOL,SN3 ,13/04/2022,"130,175.00"
17722233,High Needs Block,DSG Skills and Attainment,SEN Resourcing Assessment Panel,3rd Party Payments,Top up funding - Maintained providers Pre 16,COVINGHAM PARK PRIMARY SCHOOL,SN3 ,20/04/2022,"1,561.67"
16571332,Early Years Block,DSG Skills and Attainment,Free Nursery Education Commissioning - three & four  year olds,3rd Party Payments,Contracts - Child Care,COVINGHAM ROUNDABOUT PLAYGROUP,SN3 ,11/04/2022,725.46
16571331,Early Years Block,DSG Skills and Attainment,Free Nursery Education Commissioning - three & four  year olds,3rd Party Payments,Contracts - Child Care,COVINGHAM ROUNDABOUT PLAYGROUP,SN3 ,11/04/2022,915.46
16571330,Early Years Block,DSG Skills and Attainment,Free Nursery Education Commissioning - two year olds,3rd Party Payments,Contracts - Child Care,COVINGHAM ROUNDABOUT PLAYGROUP,SN3 ,11/04/2022,"1,837.05"
16571329,Early Years Block,DSG Skills and Attainment,Free Nursery Education Commissioning - three & four  year olds,3rd Party Payments,Contracts - Child Care,COVINGHAM ROUNDABOUT PLAYGROUP,SN3 ,11/04/2022,"34,752.06"
18442233,Memory & Cognition,Adults,Support for Memory and Cognition 65 and over,3rd Party Payments,Residential Care,COXWELL HALL AND MEWS NURSING HOME,TW20,22/04/2022,"5,630.40"
16055233,Streetsmart,Streetsmart,Lydiard House - Maintenance,Capital,Contractor Payments,CPS CONSTRUCTION LTD,BS15,08/04/2022,"17,634.35"
16055233,Streetsmart,Streetsmart,Lydiard House - Maintenance,Capital,Contractor Payments,CPS CONSTRUCTION LTD,BS15,08/04/2022,"23,591.10"
18468233,Streetsmart,Streetsmart,Lydiard House - Maintenance,Capital,Contractor Payments,CPS CONSTRUCTION LTD,BS15,22/04/2022,"27,341.42"
16055233,Streetsmart,Streetsmart,Lydiard House - Maintenance,Capital,Contractor Payments,CPS CONSTRUCTION LTD,BS15,08/04/2022,"67,161.39"
18417233,Learning Disabilities,Adults,Learning Disability 26 - 64,3rd Party Payments,Residential Care,CRAEGMOOR HEALTHCARE,BA14,22/04/2022,"8,267.84"
18417233,Learning Disabilities,Adults,Learning Disability 26 - 64,Income,Client Contribution - Residential,CRAEGMOOR HEALTHCARE,BA14,22/04/2022,-414.20
16011233,Museums & Heritage,Culture & Heritage,Leisure and Culture Commissioning,Supplies and Services,Services,CREATE STUDIOS DIGITAL MEDIA LTD,SN1 ,08/04/2022,"30,700.00"
16947233,Town Centre,"Economy, Growth and Place",Towns Fund,Supplies and Services,Consultants,CREATE STUDIOS DIGITAL MEDIA LTD,SN1 ,13/04/2022,"30,000.00"
19869233,School Transport,Inclusion and Achievement,Special Educational Needs Transport,Transport Costs,Home to School Transport,CRELLING HARNESSES LIMITED,FY5 ,29/04/2022,306.00
19869233,School Transport,Inclusion and Achievement,Special Educational Needs Transport,Transport Costs,Home to School Transport,CRELLING HARNESSES LIMITED,FY5 ,29/04/2022,13.50
19869233,School Transport,Inclusion and Achievement,Special Educational Needs Transport,Transport Costs,Home to School Transport,CRELLING HARNESSES LIMITED,FY5 ,29/04/2022,336.00
15796233,Property & Assets,Property & Assets,General Enhancement Works Corporate Buildings,Capital,Contractor Payments,CRL SURVEYS LIMITED,CR4 ,08/04/2022,"39,921.46"
15797233,Property & Assets,Property & Assets,General Enhancement Works Corporate Buildings,Capital,Contractor Payments,CRL SURVEYS LIMITED,CR4 ,08/04/2022,"1,243.54"
16571336,Early Years Block,DSG Skills and Attainment,Free Nursery Education Commissioning - three & four  year olds,3rd Party Payments,Contracts - Child Care,CROFT PLAYGROUP,SN3 ,11/04/2022,-547.80
16571333,Early Years Block,DSG Skills and Attainment,Free Nursery Education Commissioning - three & four  year olds,3rd Party Payments,Contracts - Child Care,CROFT PLAYGROUP,SN3 ,11/04/2022,"59,289.52"
17523233,Streetsmart,Streetsmart,Recycling Service,Supplies and Services,Equipment,CROSS MEDIA PRINT AND DIGITAL SOLUTIONS LIMITED,NR32,20/04/2022,"32,400.00"
15171234,School Transport,Inclusion and Achievement,Special Educational Needs Transport,Transport Costs,Home to School Transport,CROSS STREET RADIO CARS,SN1 ,06/04/2022,"2,100.00"
15168233,School Transport,Inclusion and Achievement,Special Educational Needs Transport,Transport Costs,Home to School Transport,CROSS STREET RADIO CARS,SN1 ,06/04/2022,"2,300.00"
15176233,School Transport,Inclusion and Achievement,Special Educational Needs Transport,Transport Costs,Home to School Transport,CROSS STREET RADIO CARS,SN1 ,06/04/2022,"2,200.00"
15175233,School Transport,Inclusion and Achievement,Special Educational Needs Transport,Transport Costs,Home to School Transport,CROSS STREET RADIO CARS,SN1 ,06/04/2022,"1,100.00"
15173233,School Transport,Inclusion and Achievement,Special Educational Needs Transport,Transport Costs,Home to School Transport,CROSS STREET RADIO CARS,SN1 ,06/04/2022,"2,250.00"
15058233,School Transport,Inclusion and Achievement,Special Educational Needs Transport,Transport Costs,Home to School Transport,CROSS STREET RADIO CARS,SN1 ,06/04/2022,"1,540.00"
17113235,DSG Other Funding,DSG Skills and Attainment,DFE Additional Grants,3rd Party Payments,Payment of Pupil Premium to school,CROWDYS HILL SCHOOL,SN2 ,13/04/2022,"9,578.00"
17106235,High Needs Block,DSG Skills and Attainment,Special School Place,3rd Party Payments,HNB- Place Funding pre 16,CROWDYS HILL SCHOOL,SN2 ,13/04/2022,"170,000.00"
17735241,High Needs Block,DSG Skills and Attainment,SEN Resourcing Assessment Panel,3rd Party Payments,Top up funding - Maintained providers Post 16,CROWDYS HILL SCHOOL,SN2 ,20/04/2022,"54,216.71"
17735235,High Needs Block,DSG Skills and Attainment,SEN Resourcing Assessment Panel,3rd Party Payments,Top up funding - Maintained providers Pre 16,CROWDYS HILL SCHOOL,SN2 ,20/04/2022,"116,403.71"
17735234,High Needs Block,DSG Skills and Attainment,SEN Resourcing Assessment Panel,3rd Party Payments,Top up funding - Maintained providers Pre 16,CROWDYS HILL SCHOOL,SN2 ,20/04/2022,"45,478.21"
17106234,High Needs Block,DSG Skills and Attainment,Special School Place,3rd Party Payments,HNB- Place Funding post 16,CROWDYS HILL SCHOOL,SN2 ,13/04/2022,"38,333.00"
15434233,"Volutary Sector, Equipment and Carers",Adults,Voluntary Sector Adults,3rd Party Payments,Contracts - Social Care,CRUSE BEREAVEMENT CARE,TW9 ,06/04/2022,"6,250.00"
15286235,Physical Support,Adults,Physical Support 65 and over,3rd Party Payments,Personal Budget - Domiciliary care,CRYSTAL CARING LIMITED,SN2 ,06/04/2022,"1,344.78"
15287233,Physical Support,Adults,Physical Support 65 and over,3rd Party Payments,Personal Budget - Domiciliary care,CRYSTAL CARING LIMITED,SN2 ,06/04/2022,"2,689.56"
15287235,Physical Support,Adults,Physical Support 18 - 64,3rd Party Payments,Personal Budget - Domiciliary care,CRYSTAL CARING LIMITED,SN2 ,06/04/2022,"4,183.76"
15287234,Physical Support,Adults,Physical Support 65 and over,3rd Party Payments,Personal Budget - Domiciliary care,CRYSTAL CARING LIMITED,SN2 ,06/04/2022,"1,566.50"
16703233,Responsive Repairs,Repairs,Responsive Repairs,3rd Party Payments,Contract Payments,CRYSTAL ELECTRONICS LTD,NN6 ,13/04/2022,494.00
20210233,Other Repairs,Repairs,Delivery Team & Overheads,Supplies and Services,Equipment,CRYSTAL ELECTRONICS LTD,NN6 ,29/04/2022,"1,667.17"
17997233,Museums & Heritage,Culture & Heritage,Steam:Income Generation,Supplies and Services,Goods for resale,CUSTOMWORKS LTD,EH51,20/04/2022,"1,341.80"
20105303,Physical Support,Adults,Physical Support 18 - 64,Transfer Payments,Personal Budget - Direct Payments - Domiciliary Care,REDACTED PERSONAL DATA,SN25,29/04/2022,"3,076.26"
20105859,Physical Support,Adults,Physical Support 18 - 64,Transfer Payments,Personal Budget - Direct Payments - Domiciliary Care,REDACTED PERSONAL DATA,SP11,29/04/2022,"4,468.00"
20072233,Physical Support,Adults,Physical Support 18 - 64,Transfer Payments,Personal Budget - Direct Payments - Domiciliary Care,REDACTED PERSONAL DATA,SN3 ,29/04/2022,"2,686.43"
20105559,Learning Disabilities,Adults,Learning Disability 26 - 64,Transfer Payments,Personal Budget - Direct Payments - Domiciliary Care,REDACTED PERSONAL DATA,SN2 ,29/04/2022,"1,445.84"
20105624,Learning Disabilities,Adults,Learning Disability 26 - 64,Transfer Payments,Personal Budget - Direct Payments - Domiciliary Care,REDACTED PERSONAL DATA,SN2 ,29/04/2022,"9,937.71"
16571337,Early Years Block,DSG Skills and Attainment,Free Nursery Education Commissioning - three & four  year olds,3rd Party Payments,Contracts - Child Care,REDACTED PERSONAL DATA,SN1 ,11/04/2022,"2,932.80"
17519233,Landscaping & Open Space,Culture & Heritage & Art,Moredon Recreation - Multi Sports Hub,Capital,Professional Fees,DARNTONB3 ARCHITECTURE,LS1 ,20/04/2022,"3,063.00"
17518233,Landscaping & Open Space,Culture & Heritage & Art,Moredon Recreation - Multi Sports Hub,Capital,Professional Fees,DARNTONB3 ARCHITECTURE,LS1 ,20/04/2022,"3,762.00"
19158233,Landscaping & Open Space,Culture & Heritage & Art,Moredon Recreation - Multi Sports Hub,Capital,Professional Fees,DARNTONB3 ARCHITECTURE,LS1 ,27/04/2022,"2,300.00"
17801233,Adults - Staffing and Supporting People,Adults,ASC Senior Management,Supplies and Services,Fees,REDACTED PERSONAL DATA,B4 6,20/04/2022,"1,000.00"
19025233,Adults - Staffing and Supporting People,Adults,ASC Senior Management,Supplies and Services,Fees,REDACTED PERSONAL DATA,B4 6,27/04/2022,500.00
20105400,Physical Support,Adults,Physical Support 18 - 64,Transfer Payments,Personal Budget - Direct Payments - Domiciliary Care,REDACTED PERSONAL DATA,SN2 ,29/04/2022,599.56
20105532,Learning Disabilities,Adults,Learning Disability 26 - 64,Transfer Payments,Personal Budget - Direct Payments - Domiciliary Care,REDACTED PERSONAL DATA,SP11,29/04/2022,698.07
20105536,Learning Disabilities,Adults,Learning Disability 26 - 64,Transfer Payments,Personal Budget - Direct Payments - Domiciliary Care,REDACTED PERSONAL DATA,SP11,29/04/2022,698.07
20105534,Learning Disabilities,Adults,Learning Disability 26 - 64,Transfer Payments,Personal Budget - Direct Payments - Domiciliary Care,REDACTED PERSONAL DATA,SP11,29/04/2022,698.07
14519234,Highways & Transport,Highways & Transport,Highways Development,Supplies and Services,Services,DAVIES & PARTNERS SOLICITORS LIMITED,GL4 ,01/04/2022,"2,000.00"
18689285,Social Care,"Children, Families and Community Health Services",Placement Adoption Service,3rd Party Payments,Special Guardianship Orders,REDACTED PERSONAL DATA,B35 ,25/04/2022,676.96
16387239,Social Care,"Children, Families and Community Health Services",Placement Adoption Service,3rd Party Payments,Special Guardianship Orders,REDACTED PERSONAL DATA,B35 ,11/04/2022,676.96
17305233,Streetsmart,Streetsmart,Waterside Fleet Hires,Transport Costs,Vehicle Hire / Contract,DAWSONRENTLES SWEEPERS,HD6 ,20/04/2022,"2,150.90"
17304233,Streetsmart,Streetsmart,Waterside Fleet Hires,Transport Costs,Vehicle Hire / Contract,DAWSONRENTLES SWEEPERS,HD6 ,20/04/2022,"3,041.67"
17306233,Streetsmart,Streetsmart,Waterside Fleet Hires,Transport Costs,Vehicle Hire / Contract,DAWSONRENTLES SWEEPERS,HD6 ,20/04/2022,"2,954.77"
17303233,Streetsmart,Streetsmart,Waterside Fleet Hires,Transport Costs,Vehicle Hire / Contract,DAWSONRENTLES SWEEPERS,HD6 ,20/04/2022,"2,780.96"
17306236,Streetsmart,Streetsmart,Waterside Fleet Hires,Transport Costs,Vehicle Hire / Contract,DAWSONRENTLES SWEEPERS,HD6 ,20/04/2022,"2,954.77"
15203233,Streetsmart,Streetsmart,Waterside Fleet Hires,Transport Costs,Vehicle Hire / Contract,DAYS RENTAL,SA4 ,06/04/2022,658.50
18736233,Social Care,"Children, Families and Community Health Services",Placement Fostering Service,3rd Party Payments,Foster Care Basic Payments,REDACTED PERSONAL DATA,SN5 ,25/04/2022,301.06
16178238,Social Care,"Children, Families and Community Health Services",Placement Fostering Service,3rd Party Payments,Foster Care Basic Payments,REDACTED PERSONAL DATA,SN5 ,11/04/2022,301.06
16178238,Social Care,"Children, Families and Community Health Services",Placement Fostering Service,3rd Party Payments,Foster Care Additional Allowance,REDACTED PERSONAL DATA,SN5 ,11/04/2022,18.00
18736233,Social Care,"Children, Families and Community Health Services",Placement Fostering Service,3rd Party Payments,Foster Care Additional Allowance,REDACTED PERSONAL DATA,SN5 ,25/04/2022,18.00
18705233,Social Care,"Children, Families and Community Health Services",Placement Fostering Service,3rd Party Payments,Foster Care Basic Payments,REDACTED PERSONAL DATA,SN5 ,25/04/2022,148.63
16164240,Social Care,"Children, Families and Community Health Services",Placement Fostering Service,3rd Party Payments,Foster Care Additional Allowance,REDACTED PERSONAL DATA,SN5 ,11/04/2022,100.00
18705233,Social Care,"Children, Families and Community Health Services",Placement Fostering Service,3rd Party Payments,Foster Care Basic Payments,REDACTED PERSONAL DATA,SN5 ,25/04/2022,351.09
18705233,Social Care,"Children, Families and Community Health Services",Placement Fostering Service,3rd Party Payments,Carers Skills Payments - Advanced,REDACTED PERSONAL DATA,SN5 ,25/04/2022,270.00
18705233,Social Care,"Children, Families and Community Health Services",Placement Fostering Service,3rd Party Payments,Foster Care Additional Allowance,REDACTED PERSONAL DATA,SN5 ,25/04/2022,100.00
16164240,Social Care,"Children, Families and Community Health Services",Placement Fostering Service,3rd Party Payments,Birthday Payment,REDACTED PERSONAL DATA,SN5 ,11/04/2022,260.10
16164240,Social Care,"Children, Families and Community Health Services",Placement Fostering Service,3rd Party Payments,Carers Skills Payments - Advanced,REDACTED PERSONAL DATA,SN5 ,11/04/2022,270.00
16164240,Social Care,"Children, Families and Community Health Services",Placement Fostering Service,3rd Party Payments,Foster Care Basic Payments,REDACTED PERSONAL DATA,SN5 ,11/04/2022,491.52
16571338,Early Years Block,DSG Skills and Attainment,Free Nursery Education Commissioning - three & four  year olds,3rd Party Payments,Contracts - Child Care,REDACTED PERSONAL DATA,SN5 ,11/04/2022,"4,448.08"
18721233,Social Care,"Children, Families and Community Health Services",Placement Fostering Service,3rd Party Payments,Foster Care Basic Payments,REDACTED PERSONAL DATA,SN1 ,25/04/2022,70.22
16174234,Social Care,"Children, Families and Community Health Services",Placement Fostering Service,3rd Party Payments,Carers Skills Payments - Qualified,REDACTED PERSONAL DATA,SN1 ,11/04/2022,160.00
18721233,Social Care,"Children, Families and Community Health Services",Placement Fostering Service,3rd Party Payments,Foster Care Basic Payments,REDACTED PERSONAL DATA,SN1 ,25/04/2022,520.20
18721233,Social Care,"Children, Families and Community Health Services",Placement Fostering Service,3rd Party Payments,Carers Skills Payments - Qualified,REDACTED PERSONAL DATA,SN1 ,25/04/2022,22.86
16174234,Social Care,"Children, Families and Community Health Services",Placement Fostering Service,3rd Party Payments,Foster Care Basic Payments,REDACTED PERSONAL DATA,SN1 ,11/04/2022,520.20
16174234,Social Care,"Children, Families and Community Health Services",Placement Fostering Service,3rd Party Payments,Foster Care Basic Payments,REDACTED PERSONAL DATA,SN1 ,11/04/2022,70.22
18721233,Social Care,"Children, Families and Community Health Services",Placement Fostering Service,3rd Party Payments,Carers Skills Payments - Qualified,REDACTED PERSONAL DATA,SN1 ,25/04/2022,160.00
16174234,Social Care,"Children, Families and Community Health Services",Placement Fostering Service,3rd Party Payments,Carers Skills Payments - Qualified,REDACTED PERSONAL DATA,SN1 ,11/04/2022,22.86
17167233,Landscaping & Open Space,Culture & Heritage & Art,GWCF - Trees for Climate,Capital,Contractor Payments,DEEPER GREEN SERVICES LTD,BS26,13/04/2022,"9,136.00"
18171234,Landscaping & Open Space,Culture & Heritage & Art,Great Western Community Forest,Capital,Contractor Payments,DEEPER GREEN SERVICES LTD,BS26,22/04/2022,"11,390.00"
16503242,Early Years Block,DSG Skills and Attainment,Free Nursery Education Commissioning - three & four  year olds,3rd Party Payments,Contracts - Child Care,REDACTED PERSONAL DATA,SN1 ,11/04/2022,534.40
17517233,HRA Capital Financing,HRA Capital Financing,Capital,Capital & Treasury Financing,SoA: Housing Capital Pool ContributionCharged,DEPARTMENT FOR COMMUNITIES AND LOCAL GOVERNMENT,HP2 ,20/04/2022,"735,965.67"
19012233,School Transport,Inclusion and Achievement,Special Educational Needs Transport,Supplies and Services,Discretionary Costs,DEPARTMENT FOR EDUCATION,CV1 ,27/04/2022,"17,561.00"
16740233,Traded Services,Inclusion and Achievement,Plas Pencelli Outdoor Education Centre,Transport Costs,Repairs & Maintenance - Vehicles,REDACTED PERSONAL DATA,LD3 ,13/04/2022,598.94
16695233,Traded Services,Inclusion and Achievement,Plas Pencelli Outdoor Education Centre,Transport Costs,Repairs & Maintenance - Vehicles,REDACTED PERSONAL DATA,LD3 ,13/04/2022,456.74
17353233,Learning Disabilities,Adults,Learning Disability 26 - 64,3rd Party Payments,Supported Accommodation Scheme,REDACTED PERSONAL DATA,SN2 ,20/04/2022,"2,131.43"
17353233,Learning Disabilities,Adults,Learning Disability 26 - 64,3rd Party Payments,Supported Accommodation Scheme,REDACTED PERSONAL DATA,SN2 ,20/04/2022,"1,785.20"
15704233,Street Furniture & Lighting,Strategic Planning and Highways,LED Street Lighting,Capital,Professional Fees,DESIGNS FOR LIGHTING LTD,SO23,08/04/2022,"2,760.00"
18609235,Social Care,"Children, Families and Community Health Services",Placement Adoption Service,3rd Party Payments,Adoption Allowances,REDACTED PERSONAL DATA,CF44,25/04/2022,500.34
16207233,Social Care,"Children, Families and Community Health Services",Placement Adoption Service,3rd Party Payments,Adoption Allowances,REDACTED PERSONAL DATA,CF44,11/04/2022,500.34
18437233,Physical Support,Adults,Physical Support 65 and over,3rd Party Payments,Nursing Care,DIVA CARE LIMITED,GL7 ,22/04/2022,"3,246.44"
18437233,Physical Support,Adults,Physical Support 65 and over,Income,Client Contribution - Nursing,DIVA CARE LIMITED,GL7 ,22/04/2022,-610.00
17865233,Social Care,"Children, Families and Community Health Services",Looked After Children Service,3rd Party Payments,Personal Needs,DMR SERVICES,B74 ,20/04/2022,649.40
16908233,Other Repairs,Repairs,Unallocated job costs from OPEN system,Supplies and Services,Equipment,DOMESTIC APPLIANCE DISTRIBUTORS,GL20,13/04/2022,"2,180.00"
16908233,Other Repairs,Repairs,Unallocated job costs from OPEN system,Supplies and Services,Equipment,DOMESTIC APPLIANCE DISTRIBUTORS,GL20,13/04/2022,"2,580.00"
20105242,Physical Support,Adults,Physical Support 18 - 64,Transfer Payments,Personal Budget - Direct Payments - Domiciliary Care,REDACTED PERSONAL DATA,SP11,29/04/2022,"4,756.08"
19743233,High Needs Block,DSG Skills and Attainment,Hearing Support Team,Premises Costs,Rents,DORCAN ACADEMY,SN3 ,29/04/2022,"4,596.35"
17753242,High Needs Block,DSG Skills and Attainment,SEN Resourcing Assessment Panel,3rd Party Payments,Top up funding - Academies and Free Schools Pre 16,DORCAN ACADEMY,SN3 ,20/04/2022,"5,135.42"
18110233,Property Service Charged Properties,Property,Service Charged - Dorcan Industrial Estate,Supplies and Services,Service Charges,DORCAN BUSINESS VILLAGE (SWINDON)LIMITED,SN3 ,22/04/2022,"2,640.00"
15039233,Early Help,"Children, Families and Community Health Services",Edge of Care,Employees,Training,DORSET & WILTSHIRE FIRE & RESCUE SERVICE,SP1 ,06/04/2022,"6,000.00"
15047233,Routes to Employment,Inclusion and Achievement,Adult Learning,3rd Party Payments,Contract Payments,DORSET & WILTSHIRE FIRE & RESCUE SERVICE,SP1 ,06/04/2022,"6,000.00"
20215233,Physical Support,Adults,Physical Support 65 and over,Supplies and Services,Fees,DOV OHRENSTEIN,WC2A,29/04/2022,"2,000.00"
20227233,High Needs Block,DSG Skills and Attainment,Out of Borough School Fees,3rd Party Payments,OLA Special schools- Pre 16,DOWNLAND SCHOOL WCC FUND A/C,SN10,29/04/2022,"19,385.67"
20227233,High Needs Block,DSG Skills and Attainment,Out of Borough School Fees,3rd Party Payments,OLA Special schools- Pre 16,DOWNLAND SCHOOL WCC FUND A/C,SN10,29/04/2022,"21,052.33"
18245245,Homelessness and Travellers,Housing Services,Leased Private Managed Accommodation,Transfer Payments,Payment of Costs,REDACTED PERSONAL DATA,SN6 ,25/04/2022,675.00
16483233,Social Care,"Children, Families and Community Health Services",Placement Fostering Service,3rd Party Payments,Foster Care Basic Payments,REDACTED PERSONAL DATA,SN6 ,11/04/2022,561.86
14085233,Licencing,Regulatory Services,Licensing,Supplies and Services,Fees,DROVEWAY KENNELS,SN6 ,01/04/2022,"1,182.00"
15612233,Sheltered Accomodation,Special Services,Snowdon Place,Supplies and Services,Equipment,DRPK CONTRACTS LTD,BT30,08/04/2022,675.00
18436236,Physical Support,Adults,Physical Support 18 - 64,3rd Party Payments,Nursing Care,DRUMMOND GRANGE NURSING HOME,EH18,22/04/2022,"6,603.00"
17329233,Learning Disabilities,Adults,Learning Disability 26 - 64,3rd Party Payments,Supported Accommodation Scheme,REDACTED PERSONAL DATA,SN25,20/04/2022,"2,171.02"
17971233,Legal Services,Legal Services,Legal Services,Supplies and Services,Post,DX NETWORK SERVICES LTD,SL3 ,20/04/2022,"1,073.25"
16868234,NEV,"Economy, Growth and Place",Gablecross Junction,Capital,Consultants,DYER & BUTLER LTD,SO16,13/04/2022,"289,829.94"
18436233,Learning Disabilities,Adults,Learning Disability 26 - 64,Income,Client Contribution - Supported Living,DYNAMIC SUPPORT LTD,SN25,22/04/2022,-61.80
18436233,Learning Disabilities,Adults,Learning Disability 26 - 64,3rd Party Payments,Supported Living,DYNAMIC SUPPORT LTD,SN25,22/04/2022,"6,393.60"
16658234,Learning Disabilities,Adults,Learning Disability 26 - 64,3rd Party Payments,Personal Budget - Domiciliary care,DYNAMIC SUPPORT LTD,SN25,13/04/2022,561.00
18436233,Physical Support,Adults,Physical Support 65 and over,3rd Party Payments,Supported Living,DYNAMIC SUPPORT LTD,SN25,22/04/2022,"7,459.20"
18436233,Learning Disabilities,Adults,Learning Disability 26 - 64,Income,Client Contribution - Supported Living,DYNAMIC SUPPORT LTD,SN25,22/04/2022,-440.60
18436233,Learning Disabilities,Adults,Learning Disability 26 - 64,Income,Client Contribution - Supported Living,DYNAMIC SUPPORT LTD,SN25,22/04/2022,-112.00
18436233,Learning Disabilities,Adults,Learning Disability 26 - 64,3rd Party Payments,Supported Living,DYNAMIC SUPPORT LTD,SN25,22/04/2022,"4,688.64"
18436233,Learning Disabilities,Adults,Learning Disability 26 - 64,3rd Party Payments,Supported Living,DYNAMIC SUPPORT LTD,SN25,22/04/2022,"2,060.16"
18436233,Learning Disabilities,Adults,Learning Disability 26 - 64,3rd Party Payments,Supported Living,DYNAMIC SUPPORT LTD,SN25,22/04/2022,"2,344.32"
18436233,Learning Disabilities,Adults,Learning Disability 26 - 64,3rd Party Payments,Supported Living,DYNAMIC SUPPORT LTD,SN25,22/04/2022,"3,765.12"
18436233,Learning Disabilities,Adults,Learning Disability 26 - 64,3rd Party Payments,Supported Living,DYNAMIC SUPPORT LTD,SN25,22/04/2022,"2,685.48"
18436233,Learning Disabilities,Adults,Learning Disability 26 - 64,3rd Party Payments,Supported Living,DYNAMIC SUPPORT LTD,SN25,22/04/2022,"4,984.56"
18436233,Learning Disabilities,Adults,Learning Disability 26 - 64,Income,Client Contribution - Personal Budget � Fairer Charging,DYNAMIC SUPPORT LTD,SN25,22/04/2022,-135.60
18436233,Learning Disabilities,Adults,Learning Disability 26 - 64,3rd Party Payments,Supported Living,DYNAMIC SUPPORT LTD,SN25,22/04/2022,"2,486.40"
18436233,Learning Disabilities,Adults,Learning Disability 26 - 64,3rd Party Payments,Supported Living,DYNAMIC SUPPORT LTD,SN25,22/04/2022,671.36
18436233,Learning Disabilities,Adults,Learning Disability 26 - 64,3rd Party Payments,Supported Living,DYNAMIC SUPPORT LTD,SN25,22/04/2022,532.80
18436233,Learning Disabilities,Adults,Learning Disability 26 - 64,3rd Party Payments,Supported Living,DYNAMIC SUPPORT LTD,SN25,22/04/2022,142.08
18845233,Learning Disabilities,Adults,Learning Disability 26 - 64,3rd Party Payments,Personal Budget - Domiciliary care,DYNAMIC SUPPORT LTD,SN25,25/04/2022,561.00
18436233,Mental Health,Adults,Mental Health 18-64,3rd Party Payments,Supported Living,DYNAMIC SUPPORT LTD,SN25,22/04/2022,"1,342.76"
18436233,Physical Support,Adults,Physical Support 65 and over,3rd Party Payments,Supported Living,DYNAMIC SUPPORT LTD,SN25,22/04/2022,"4,475.52"
18436233,Learning Disabilities,Adults,Learning Disability 26 - 64,Income,Client Contribution - Supported Living,DYNAMIC SUPPORT LTD,SN25,22/04/2022,-18.12
18435240,Learning Disabilities,Adults,Learning Disability 26 - 64,Income,Client Contribution - Supported Living,DYNAMIC SUPPORT LTD,SN25,22/04/2022,-4.00
18436233,Learning Disabilities,Adults,Learning Disability 26 - 64,3rd Party Payments,Supported Living,DYNAMIC SUPPORT LTD,SN25,22/04/2022,"1,847.04"
18436233,Learning Disabilities,Adults,Learning Disability 26 - 64,3rd Party Payments,Supported Living,DYNAMIC SUPPORT LTD,SN25,22/04/2022,426.24
18436233,Learning Disabilities,Adults,Learning Disability 65 and over,3rd Party Payments,Supported Living,DYNAMIC SUPPORT LTD,SN25,22/04/2022,"3,480.96"
18436233,Learning Disabilities,Adults,Learning Disability 26 - 64,3rd Party Payments,Supported Living,DYNAMIC SUPPORT LTD,SN25,22/04/2022,"1,562.88"
18436233,Learning Disabilities,Adults,Learning Disability 26 - 64,3rd Party Payments,Supported Living,DYNAMIC SUPPORT LTD,SN25,22/04/2022,"2,770.56"
18436233,Learning Disabilities,Adults,Learning Disability 26 - 64,3rd Party Payments,Supported Living,DYNAMIC SUPPORT LTD,SN25,22/04/2022,"1,072.00"
18436233,Learning Disabilities,Adults,Learning Disability 26 - 64,3rd Party Payments,Supported Living,DYNAMIC SUPPORT LTD,SN25,22/04/2022,"6,464.64"
18436233,Learning Disabilities,Adults,Learning Disability 26 - 64,3rd Party Payments,Supported Living,DYNAMIC SUPPORT LTD,SN25,22/04/2022,"7,459.20"
18436233,Learning Disabilities,Adults,Learning Disability 65 and over,3rd Party Payments,Supported Living,DYNAMIC SUPPORT LTD,SN25,22/04/2022,"2,685.48"
18436233,Mental Health,Adults,Mental Health 18-64,Income,Client Contribution - Supported Living,DYNAMIC SUPPORT LTD,SN25,22/04/2022,-25.32
18436233,Mental Health,Adults,Mental Health 18-64,3rd Party Payments,Supported Living,DYNAMIC SUPPORT LTD,SN25,22/04/2022,"1,491.84"
18436233,Mental Health,Adults,Mental Health 18-64,3rd Party Payments,Supported Living,DYNAMIC SUPPORT LTD,SN25,22/04/2022,"2,273.28"
15286233,Physical Support,Adults,Physical Support 65 and over,3rd Party Payments,Personal Budget - Domiciliary care,DYNAMIC SUPPORT LTD,SN25,06/04/2022,"7,172.16"
18435240,Learning Disabilities,Adults,Learning Disability 26 - 64,Income,Client Contribution - Supported Living,DYNAMIC SUPPORT LTD,SN25,22/04/2022,812.00
18436233,Learning Disabilities,Adults,Learning Disability 26 - 64,3rd Party Payments,Supported Living,DYNAMIC SUPPORT LTD,SN25,22/04/2022,"2,592.96"
18844233,Learning Disabilities,Adults,Learning Disability 26 - 64,3rd Party Payments,Personal Budget - Domiciliary care,DYNAMIC SUPPORT LTD,SN25,25/04/2022,596.48
18435240,Learning Disabilities,Adults,Learning Disability 65 and over,Income,Client Contribution - Personal Budget � Fairer Charging,DYNAMIC SUPPORT LTD,SN25,22/04/2022,728.00
18436233,Learning Disabilities,Adults,Learning Disability 26 - 64,Income,Client Contribution - Supported Living,DYNAMIC SUPPORT LTD,SN25,22/04/2022,-141.20
18436233,Learning Disabilities,Adults,Learning Disability 26 - 64,Income,Client Contribution - Supported Living,DYNAMIC SUPPORT LTD,SN25,22/04/2022,-142.72
18435240,Learning Disabilities,Adults,Learning Disability 26 - 64,Income,Client Contribution - Supported Living,DYNAMIC SUPPORT LTD,SN25,22/04/2022,4.00
18436233,Learning Disabilities,Adults,Learning Disability 26 - 64,3rd Party Payments,Supported Living,DYNAMIC SUPPORT LTD,SN25,22/04/2022,"2,244.00"
18436233,Learning Disabilities,Adults,Learning Disability 26 - 64,3rd Party Payments,Supported Living,DYNAMIC SUPPORT LTD,SN25,22/04/2022,"7,175.04"
18436233,Learning Disabilities,Adults,Learning Disability 26 - 64,3rd Party Payments,Supported Living,DYNAMIC SUPPORT LTD,SN25,22/04/2022,"6,606.72"
18436233,Learning Disabilities,Adults,Learning Disability 26 - 64,3rd Party Payments,Supported Living,DYNAMIC SUPPORT LTD,SN25,22/04/2022,"4,475.52"
18436233,Learning Disabilities,Adults,Learning Disability 26 - 64,3rd Party Payments,Supported Living,DYNAMIC SUPPORT LTD,SN25,22/04/2022,"13,019.76"
18435240,Learning Disabilities,Adults,Learning Disability 26 - 64,3rd Party Payments,Supported Living,DYNAMIC SUPPORT LTD,SN25,22/04/2022,-45.89
15285235,Physical Support,Adults,Physical Support 65 and over,3rd Party Payments,Personal Budget - Domiciliary care,DYNAMIC SUPPORT LTD,SN25,06/04/2022,"14,344.32"
18436233,Learning Disabilities,Adults,Learning Disability 26 - 64,3rd Party Payments,Supported Living,DYNAMIC SUPPORT LTD,SN25,22/04/2022,"1,342.76"
18436233,Learning Disabilities,Adults,Learning Disability 26 - 64,3rd Party Payments,Supported Living,DYNAMIC SUPPORT LTD,SN25,22/04/2022,122.64
18436233,Learning Disabilities,Adults,Learning Disability 26 - 64,3rd Party Payments,Supported Living,DYNAMIC SUPPORT LTD,SN25,22/04/2022,"1,390.40"
18436233,Learning Disabilities,Adults,Learning Disability 26 - 64,3rd Party Payments,Supported Living,DYNAMIC SUPPORT LTD,SN25,22/04/2022,"3,132.76"
16658233,Learning Disabilities,Adults,Learning Disability 26 - 64,3rd Party Payments,Personal Budget - Domiciliary care,DYNAMIC SUPPORT LTD,SN25,13/04/2022,596.48
18436233,Mental Health,Adults,Mental Health 18-64,3rd Party Payments,Supported Living,DYNAMIC SUPPORT LTD,SN25,22/04/2022,"2,592.96"
19018234,Property Management,Property,Property Assets,Supplies and Services,Fees,E P STEVENS ASSOCIATES,SN1 ,27/04/2022,750.00
17807233,Town Centre,"Economy, Growth and Place","No 7, 9 & 11 Carriage works @ Railway Village",Capital,Contractor Payments,E W BEARD LTD,SN3 ,20/04/2022,"285,751.91"
17972233,Environmental & Regulatory,Highways & Transport,Shaw Farm Landfill Site,Supplies and Services,Testing / Inspection,EARTH DIRECT LTD,WV10,20/04/2022,"1,950.00"
17370233,Environmental & Regulatory,Highways & Transport,Shaw Farm Landfill Site,Supplies and Services,Testing / Inspection,EARTH DIRECT LTD,WV10,20/04/2022,"1,456.98"
17972233,Environmental & Regulatory,Highways & Transport,Shaw Farm Landfill Site,Supplies and Services,Testing / Inspection,EARTH DIRECT LTD,WV10,20/04/2022,"1,258.56"
17371233,Environmental & Regulatory,Highways & Transport,Shaw Farm Landfill Site,Supplies and Services,Testing / Inspection,EARTH DIRECT LTD,WV10,20/04/2022,"1,245.37"
16571339,Early Years Block,DSG Skills and Attainment,Free Nursery Education Commissioning - three & four  year olds,3rd Party Payments,Contracts - Child Care,EAST WICHEL COMMUNITY PRIMARY SCHOOL,SN1 ,11/04/2022,"37,017.59"
17104238,Schools - Primary,DSG Skills and Attainment,Primary School Budgets,3rd Party Payments,Mainstream Delegated Funding,EAST WICHEL COMMUNITY PRIMARY SCHOOL,SN1 ,13/04/2022,"133,267.00"
17723233,High Needs Block,DSG Skills and Attainment,SEN Resourcing Assessment Panel,3rd Party Payments,Top up funding - Maintained providers Pre 16,EAST WICHEL COMMUNITY PRIMARY SCHOOL,SN1 ,20/04/2022,"4,653.75"
18481233,Early Years Block,DSG Skills and Attainment,Free Nursery Education Commissioning - three & four  year olds,Income,Grants - Department for Education,EAST WICHEL COMMUNITY PRIMARY SCHOOL,SN1 ,22/04/2022,650.00
17112233,DSG Other Funding,DSG Skills and Attainment,DFE Additional Grants,3rd Party Payments,Payment of Pupil Premium to school,EAST WICHEL COMMUNITY PRIMARY SCHOOL,SN1 ,13/04/2022,"7,076.00"
18429234,Learning Disabilities,Adults,Learning Disability 26 - 64,3rd Party Payments,Residential Care,EASTERBROOK FARM LTD,EX20,22/04/2022,"4,239.72"
18429234,Learning Disabilities,Adults,Learning Disability 26 - 64,Income,Client Contribution - Residential,EASTERBROOK FARM LTD,EX20,22/04/2022,-347.00
16437233,DSG Other Funding,DSG Skills and Attainment,LAC pupil premium,3rd Party Payments,Education / Training,EB EDUCATION SERVICES LTD,SK4 ,11/04/2022,"21,062.50"
Corporate Card Transaction,Lydiard Park,Streetsmart,Lydiard : Hotel Operations,Supplies and Services,Equipment,Ecatering,,06/04/2022,590.62
17880233,Social Care,"Children, Families and Community Health Services",Assessment and Child Protection Team,Employees,Temporary / Agency - by Accounts Payable,EDEN BROWN LTD T/A EDEN BROWN SYNERGY,EC2M,20/04/2022,"4,680.00"
18430241,Physical Support,Adults,Physical Support 65 and over,3rd Party Payments,Residential Care,EDGE HILL,DT5 ,22/04/2022,"4,205.71"
18430241,Physical Support,Adults,Physical Support 65 and over,Income,Client Contribution - Residential,EDGE HILL,DT5 ,22/04/2022,"-1,906.76"
18430241,Physical Support,Adults,Physical Support 65 and over,Income,Client Contribution - Residential,EDGE HILL,DT5 ,22/04/2022,-649.04
18430241,Physical Support,Adults,Physical Support 65 and over,Income,Client Contribution - Residential,EDGE HILL,DT5 ,22/04/2022,-627.80
18430241,Physical Support,Adults,Physical Support 65 and over,Income,Client Contribution - Nursing,EDGE HILL,DT5 ,22/04/2022,633.03
18430241,Physical Support,Adults,Physical Support 65 and over,Income,Client Contribution - Nursing,EDGE HILL,DT5 ,22/04/2022,63.30
18430241,Physical Support,Adults,Physical Support 65 and over,Income,Client Contribution - Residential,EDGE HILL,DT5 ,22/04/2022,"-2,251.81"
18430241,Physical Support,Adults,Physical Support 65 and over,Income,Client Contribution - Residential,EDGE HILL,DT5 ,22/04/2022,-613.92
18430241,Physical Support,Adults,Physical Support 65 and over,Income,Client Contribution - Residential,EDGE HILL,DT5 ,22/04/2022,"2,784.99"
18430241,Physical Support,Adults,Physical Support 65 and over,Income,Client Contribution - Residential,EDGE HILL,DT5 ,22/04/2022,-818.56
18430241,Physical Support,Adults,Physical Support 65 and over,Income,Client Contribution - Residential,EDGE HILL,DT5 ,22/04/2022,-984.52
18430241,Physical Support,Adults,Physical Support 65 and over,Income,Client Contribution - Residential,EDGE HILL,DT5 ,22/04/2022,-745.80
18430241,Physical Support,Adults,Physical Support 65 and over,Income,Client Contribution - Residential,EDGE HILL,DT5 ,22/04/2022,-595.40
18430241,Physical Support,Adults,Physical Support 65 and over,Income,Client Contribution - Residential,EDGE HILL,DT5 ,22/04/2022,-610.00
18430241,Physical Support,Adults,Physical Support 65 and over,3rd Party Payments,Residential Care,EDGE HILL,DT5 ,22/04/2022,"2,438.20"
18430241,Physical Support,Adults,Physical Support 65 and over,3rd Party Payments,Residential Care,EDGE HILL,DT5 ,22/04/2022,"2,734.84"
18430241,Physical Support,Adults,Physical Support 65 and over,Income,Client Contribution - Residential,EDGE HILL,DT5 ,22/04/2022,-726.24
18430241,Physical Support,Adults,Physical Support 65 and over,Income,Client Contribution - Residential,EDGE HILL,DT5 ,22/04/2022,-657.56
18430241,Physical Support,Adults,Physical Support 65 and over,Income,Client Contribution - Residential,EDGE HILL,DT5 ,22/04/2022,"1,594.78"
18430241,Physical Support,Adults,Physical Support 65 and over,Income,Client Contribution - Residential,EDGE HILL,DT5 ,22/04/2022,"-1,522.00"
18430241,Physical Support,Adults,Physical Support 65 and over,Income,Client Contribution - Residential,EDGE HILL,DT5 ,22/04/2022,-470.85
18430241,Physical Support,Adults,Physical Support 65 and over,Income,Client Contribution - Residential,EDGE HILL,DT5 ,22/04/2022,"-2,568.22"
18430241,Physical Support,Adults,Physical Support 65 and over,Income,Client Contribution - Residential,EDGE HILL,DT5 ,22/04/2022,"-1,431.36"
18430241,Physical Support,Adults,Physical Support 65 and over,Income,Client Contribution - Residential,EDGE HILL,DT5 ,22/04/2022,"-1,378.16"
18430241,Physical Support,Adults,Physical Support 65 and over,Income,Client Contribution - Residential,EDGE HILL,DT5 ,22/04/2022,-871.20
18430241,Physical Support,Adults,Physical Support 65 and over,Income,Client Contribution - Residential,EDGE HILL,DT5 ,22/04/2022,-569.40
18430241,Physical Support,Adults,Physical Support 65 and over,3rd Party Payments,Residential Care,EDGE HILL,DT5 ,22/04/2022,"3,680.00"
18430241,Physical Support,Adults,Physical Support 65 and over,3rd Party Payments,Residential Care,EDGE HILL,DT5 ,22/04/2022,"-4,651.43"
18430241,Physical Support,Adults,Physical Support 65 and over,3rd Party Payments,Residential Care,EDGE HILL,DT5 ,22/04/2022,"-1,621.80"
18430241,Physical Support,Adults,Physical Support 65 and over,Income,Client Contribution - Residential,EDGE HILL,DT5 ,22/04/2022,-576.92
18430241,Physical Support,Adults,Physical Support 65 and over,Income,Client Contribution - Residential,EDGE HILL,DT5 ,22/04/2022,614.13
18430241,Physical Support,Adults,Physical Support 65 and over,Income,Client Contribution - Residential,EDGE HILL,DT5 ,22/04/2022,-729.60
18430241,Physical Support,Adults,Physical Support 65 and over,Income,Client Contribution - Residential,EDGE HILL,DT5 ,22/04/2022,"-1,127.84"
18430241,Physical Support,Adults,Physical Support 65 and over,Income,Client Contribution - Residential,EDGE HILL,DT5 ,22/04/2022,"-1,632.99"
18430241,Physical Support,Adults,Physical Support 65 and over,Income,Client Contribution - Residential,EDGE HILL,DT5 ,22/04/2022,-879.52
18430241,Physical Support,Adults,Physical Support 65 and over,Income,Client Contribution - Residential,EDGE HILL,DT5 ,22/04/2022,-862.80
18430241,Physical Support,Adults,Physical Support 65 and over,Income,Client Contribution - Residential,EDGE HILL,DT5 ,22/04/2022,-655.84
18430241,Memory & Cognition,Adults,Support for Memory and Cognition 65 and over,3rd Party Payments,Residential Care,EDGE HILL,DT5 ,22/04/2022,"2,438.20"
18430241,Physical Support,Adults,Physical Support 65 and over,Income,Client Contribution - Residential,EDGE HILL,DT5 ,22/04/2022,-343.72
18430241,Physical Support,Adults,Physical Support 65 and over,Income,Client Contribution - Residential,EDGE HILL,DT5 ,22/04/2022,"2,548.93"
18430241,Physical Support,Adults,Physical Support 65 and over,Income,Client Contribution - Residential,EDGE HILL,DT5 ,22/04/2022,"2,701.43"
18430241,Physical Support,Adults,Physical Support 65 and over,Income,Client Contribution - Residential,EDGE HILL,DT5 ,22/04/2022,"-1,302.04"
18430241,Physical Support,Adults,Physical Support 65 and over,Income,Client Contribution - Residential,EDGE HILL,DT5 ,22/04/2022,-729.44
18430241,Physical Support,Adults,Physical Support 65 and over,Income,Client Contribution - Residential,EDGE HILL,DT5 ,22/04/2022,-608.80
18430241,Physical Support,Adults,Physical Support 65 and over,3rd Party Payments,Residential Care,EDGE HILL,DT5 ,22/04/2022,"2,270.52"
18430241,Physical Support,Adults,Physical Support 65 and over,Income,Client Contribution - Residential,EDGE HILL,DT5 ,22/04/2022,"-3,620.48"
18430241,Mental Health,Adults,Mental Health 65 and over,3rd Party Payments,Residential Care,EDGE HILL,DT5 ,22/04/2022,"2,438.20"
18430241,Physical Support,Adults,Physical Support 65 and over,Income,Client Contribution - Residential,EDGE HILL,DT5 ,22/04/2022,"1,270.10"
18430241,Physical Support,Adults,Physical Support 65 and over,Income,Client Contribution - Residential,EDGE HILL,DT5 ,22/04/2022,456.60
18430241,Physical Support,Adults,Physical Support 65 and over,Income,Client Contribution - Residential,EDGE HILL,DT5 ,22/04/2022,-567.28
18430241,Physical Support,Adults,Physical Support 65 and over,3rd Party Payments,Residential Care,EDGE HILL,DT5 ,22/04/2022,"2,541.64"
18430241,Memory & Cognition,Adults,Support for Memory and Cognition 65 and over,Income,Client Contribution - Residential,EDGE HILL,DT5 ,22/04/2022,-942.56
18430241,Physical Support,Adults,Physical Support 18 - 64,3rd Party Payments,Residential Care,EDGE HILL,DT5 ,22/04/2022,"2,438.20"
15817233,Treasury,Corporate Finance,Private Finance Initiatives (PFI),Income,Leases & Lettings,EDUCATION SUPPORT (SWINDON) LTD,BR8 ,08/04/2022,"-27,100.45"
15817233,Treasury,Corporate Finance,Private Finance Initiatives (PFI),Income,Leases & Lettings,EDUCATION SUPPORT (SWINDON) LTD,BR8 ,08/04/2022,"-1,301.77"
15817233,Treasury,Corporate Finance,Private Finance Initiatives (PFI),Income,Leases & Lettings,EDUCATION SUPPORT (SWINDON) LTD,BR8 ,08/04/2022,"-3,103.55"
15817233,Treasury,Corporate Finance,Private Finance Initiatives (PFI),Income,Leases & Lettings,EDUCATION SUPPORT (SWINDON) LTD,BR8 ,08/04/2022,"-2,470.19"
15817233,Treasury,Corporate Finance,Private Finance Initiatives (PFI),Supplies and Services,Service Charges,EDUCATION SUPPORT (SWINDON) LTD,BR8 ,08/04/2022,"2,911.60"
15817233,Treasury,Corporate Finance,Private Finance Initiatives (PFI),3rd Party Payments,Contract Payments,EDUCATION SUPPORT (SWINDON) LTD,BR8 ,08/04/2022,"951,418.51"
15817233,Treasury,Corporate Finance,Private Finance Initiatives (PFI),Income,Leases & Lettings,EDUCATION SUPPORT (SWINDON) LTD,BR8 ,08/04/2022,"-11,400.40"
15817233,Treasury,Corporate Finance,Private Finance Initiatives (PFI),Income,Leases & Lettings,EDUCATION SUPPORT (SWINDON) LTD,BR8 ,08/04/2022,"-1,307.33"
15817233,Treasury,Corporate Finance,Private Finance Initiatives (PFI),Supplies and Services,Service Charges,EDUCATION SUPPORT (SWINDON) LTD,BR8 ,08/04/2022,"13,349.49"
15817233,Treasury,Corporate Finance,Private Finance Initiatives (PFI),Supplies and Services,Service Charges,EDUCATION SUPPORT (SWINDON) LTD,BR8 ,08/04/2022,-158.32
15817233,Treasury,Corporate Finance,Private Finance Initiatives (PFI),Income,Leases & Lettings,EDUCATION SUPPORT (SWINDON) LTD,BR8 ,08/04/2022,"-1,307.32"
15817233,Treasury,Corporate Finance,Private Finance Initiatives (PFI),Income,Leases & Lettings,EDUCATION SUPPORT (SWINDON) LTD,BR8 ,08/04/2022,"-4,448.09"
15817233,Treasury,Corporate Finance,Private Finance Initiatives (PFI),Income,Settlements,EDUCATION SUPPORT (SWINDON) LTD,BR8 ,08/04/2022,-913.54
15817233,Treasury,Corporate Finance,Private Finance Initiatives (PFI),Income,Leases & Lettings,EDUCATION SUPPORT (SWINDON) LTD,BR8 ,08/04/2022,"-1,012.21"
15817233,Treasury,Corporate Finance,Private Finance Initiatives (PFI),Income,Leases & Lettings,EDUCATION SUPPORT (SWINDON) LTD,BR8 ,08/04/2022,-149.96
15817233,Treasury,Corporate Finance,Private Finance Initiatives (PFI),Income,Leases & Lettings,EDUCATION SUPPORT (SWINDON) LTD,BR8 ,08/04/2022,-89.87
15817233,Treasury,Corporate Finance,Private Finance Initiatives (PFI),Supplies and Services,Service Charges,EDUCATION SUPPORT (SWINDON) LTD,BR8 ,08/04/2022,-161.27
15817233,Treasury,Corporate Finance,Private Finance Initiatives (PFI),Supplies and Services,Service Charges,EDUCATION SUPPORT (SWINDON) LTD,BR8 ,08/04/2022,"12,718.66"
15817233,Treasury,Corporate Finance,Private Finance Initiatives (PFI),Supplies and Services,Service Charges,EDUCATION SUPPORT (SWINDON) LTD,BR8 ,08/04/2022,"3,392.60"
15817233,Treasury,Corporate Finance,Private Finance Initiatives (PFI),Income,Leases & Lettings,EDUCATION SUPPORT (SWINDON) LTD,BR8 ,08/04/2022,-448.31
16018233,,,Balance Sheet,Balance Sheet & Recharge,Mobile phone invoices,EE (EVERYTHING EVERYWHERE),S98 ,08/04/2022,"7,716.93"
19053233,,,Balance Sheet,Balance Sheet & Recharge,Mobile phone invoices,EE (EVERYTHING EVERYWHERE),S98 ,27/04/2022,"54,440.00"
17861233,Planning & Regulatory,Strategic Planning,Planning Development,Employees,Temporary / Agency - by Accounts Payable,EGGLETON PLANNING AND DESIGN LTD,HG4 ,20/04/2022,"1,548.00"
14267233,Planning & Regulatory,Strategic Planning,Planning Development,Employees,Temporary / Agency - by Accounts Payable,EGGLETON PLANNING AND DESIGN LTD,HG4 ,01/04/2022,"1,464.00"
17689233,Planning & Regulatory,Strategic Planning,Planning Development,Employees,Temporary / Agency - by Accounts Payable,EGGLETON PLANNING AND DESIGN LTD,HG4 ,20/04/2022,"1,848.00"
15264233,Planning & Regulatory,Strategic Planning,Planning Development,Employees,Temporary / Agency - by Accounts Payable,EGGLETON PLANNING AND DESIGN LTD,HG4 ,06/04/2022,"1,440.00"
18702234,Social Care,"Children, Families and Community Health Services",Placement Fostering Service,3rd Party Payments,Foster Care Basic Payments,REDACTED PERSONAL DATA,SN5 ,25/04/2022,491.52
16164236,Social Care,"Children, Families and Community Health Services",Placement Fostering Service,3rd Party Payments,Carers Skills Payments - Qualified,REDACTED PERSONAL DATA,SN5 ,11/04/2022,160.00
18702234,Social Care,"Children, Families and Community Health Services",Placement Fostering Service,3rd Party Payments,Carers Skills Payments - Qualified,REDACTED PERSONAL DATA,SN5 ,25/04/2022,160.00
16164236,Social Care,"Children, Families and Community Health Services",Placement Fostering Service,3rd Party Payments,Foster Care Basic Payments,REDACTED PERSONAL DATA,SN5 ,11/04/2022,491.52
17354233,Learning Disabilities,Adults,Learning Disability 26 - 64,3rd Party Payments,Supported Accommodation Scheme,REDACTED PERSONAL DATA,SN25,20/04/2022,"1,762.00"
16571345,Early Years Block,DSG Skills and Attainment,Free Nursery Education Commissioning - three & four  year olds,3rd Party Payments,Contracts - Child Care,ELDENE PRE-SCHOOL,SN3 ,11/04/2022,"38,818.44"
16571346,Early Years Block,DSG Skills and Attainment,Free Nursery Education Commissioning - two year olds,3rd Party Payments,Contracts - Child Care,ELDENE PRE-SCHOOL,SN3 ,11/04/2022,"16,562.21"
16571348,Early Years Block,DSG Skills and Attainment,Free Nursery Education Commissioning - three & four  year olds,3rd Party Payments,Contracts - Child Care,ELDENE PRE-SCHOOL,SN3 ,11/04/2022,787.02
16571347,Early Years Block,DSG Skills and Attainment,Free Nursery Education Commissioning - three & four  year olds,3rd Party Payments,Contracts - Child Care,ELDENE PRE-SCHOOL,SN3 ,11/04/2022,993.14
14300233,Social Care,"Children, Families and Community Health Services",CP & CIN Social Work - North,3rd Party Payments,Personal Needs,ELDENE PRIMARY SCHOOL,SN3 ,01/04/2022,559.00
16571342,Early Years Block,DSG Skills and Attainment,Free Nursery Education Commissioning - three & four  year olds,3rd Party Payments,Contracts - Child Care,ELDENE PRIMARY SCHOOL,SN3 ,11/04/2022,"22,277.89"
17101234,Schools - Primary,DSG Skills and Attainment,Primary School Budgets,3rd Party Payments,Mainstream Delegated Funding,ELDENE PRIMARY SCHOOL,SN3 ,13/04/2022,"128,237.00"
17114234,High Needs Block,DSG Skills and Attainment,SRP (Special Resource Provision) Place,3rd Party Payments,HNB- Place Funding pre 16,ELDENE PRIMARY SCHOOL,SN3 ,13/04/2022,"5,000.00"
17735239,High Needs Block,DSG Skills and Attainment,SEN Resourcing Assessment Panel,3rd Party Payments,Top up funding - Maintained providers Pre 16,ELDENE PRIMARY SCHOOL,SN3 ,20/04/2022,"8,194.17"
17107234,DSG Other Funding,DSG Skills and Attainment,DFE Additional Grants,3rd Party Payments,Payment of Pupil Premium to school,ELDENE PRIMARY SCHOOL,SN3 ,13/04/2022,"14,705.00"
17717234,High Needs Block,DSG Skills and Attainment,SEN Resourcing Assessment Panel,3rd Party Payments,Top up funding - Maintained providers Pre 16,ELDENE PRIMARY SCHOOL,SN3 ,20/04/2022,"9,742.50"
18260233,Public Health,Public Health,Sexual Health & Health Protection Budget,3rd Party Payments,Contract Payments,ELDENE SURGERY,SN3 ,22/04/2022,"7,042.00"
20105299,Learning Disabilities,Adults,Learning Disability 26 - 64,Transfer Payments,Personal Budget - Direct Payments - Other,REDACTED PERSONAL DATA,SP11,29/04/2022,548.47
19257233,Responsive Repairs,Repairs,Responsive Repairs,Supplies and Services,Materials,EMERGENCY SECURITY SERVICES LTD,SN2 ,27/04/2022,"1,454.20"
19232233,Responsive Repairs,Repairs,Responsive Repairs,3rd Party Payments,Contract Payments,EMERGENCY SECURITY SERVICES LTD,SN2 ,27/04/2022,896.85
16051233,Sheltered Accomodation,Special Services,Gardner House,Supplies and Services,Equipment,EMERGENCY SECURITY SERVICES LTD,SN2 ,11/04/2022,436.34
15598234,Sheltered Accomodation,Special Services,Midwinter Gardens,Supplies and Services,Equipment,EMERGENCY SECURITY SERVICES LTD,SN2 ,08/04/2022,480.35
19237233,Responsive Repairs,Repairs,Responsive Repairs,3rd Party Payments,Contract Payments,EMERGENCY SECURITY SERVICES LTD,SN2 ,27/04/2022,810.92
19234233,Responsive Repairs,Repairs,Responsive Repairs,3rd Party Payments,Contract Payments,EMERGENCY SECURITY SERVICES LTD,SN2 ,27/04/2022,"1,487.00"
16571349,Early Years Block,DSG Skills and Attainment,Free Nursery Education Commissioning - three & four  year olds,3rd Party Payments,Contracts - Child Care,REDACTED PERSONAL DATA,SN25,11/04/2022,"3,236.03"
20090233,Learning Disabilities,Adults,Learning Disability 26 - 64,Transfer Payments,Personal Budget - Direct Payments - Domiciliary Care,REDACTED PERSONAL DATA,SN25,29/04/2022,"1,081.38"
16509234,Early Years Block,DSG Skills and Attainment,Free Nursery Education Commissioning - three & four  year olds,3rd Party Payments,Contracts - Child Care,REDACTED PERSONAL DATA,SN4 ,11/04/2022,678.60
20128238,Social Care,"Children, Families and Community Health Services",Placement - Care Leaver Team,3rd Party Payments,Education / Training,REDACTED PERSONAL DATA,SN5 ,29/04/2022,"1,333.00"
16571352,Early Years Block,DSG Skills and Attainment,Free Nursery Education Commissioning - three & four  year olds,3rd Party Payments,Contracts - Child Care,REDACTED PERSONAL DATA,SN4 ,11/04/2022,"1,466.40"
20105476,Learning Disabilities,Adults,Learning Disability 26 - 64,3rd Party Payments,Carers,REDACTED PERSONAL DATA,SP11,29/04/2022,648.32
16571353,Early Years Block,DSG Skills and Attainment,Free Nursery Education Commissioning - three & four  year olds,3rd Party Payments,Contracts - Child Care,REDACTED PERSONAL DATA,SN3 ,11/04/2022,"1,285.44"
15474233,"Volutary Sector, Equipment and Carers",Adults,Voluntary Sector Adults,3rd Party Payments,Contracts - Social Care,EMMANUEL UNITED REFORMED CHURCH,SN25,06/04/2022,"1,500.00"
18111233,Human Resources and Organisational Development,"People, Culture and Organisational Resilience",Human Resources & Organisational Development,Employees,Training,ENERGY DEVELOPMENT SERVICES LIMITED,SN4 ,22/04/2022,65.00
18111233,Human Resources and Organisational Development,"People, Culture and Organisational Resilience",Human Resources & Organisational Development,Employees,Training,ENERGY DEVELOPMENT SERVICES LIMITED,SN4 ,22/04/2022,786.75
15438234,"Volutary Sector, Equipment and Carers",Adults,Voluntary Sector Adults,3rd Party Payments,Contracts - Social Care,ENHAM TRUST,SP11,06/04/2022,"12,826.50"
